Workbook

Sheet Traffic Count
A1: Start Date | B1: 2004-10-26 | AK1: Do Not Modify | AM1: Do Not Modify
A2: Start Time | B2: 06:00:00 | X2: FALSE | AF2: FALSE | AK2: 1 | AM2: 1
A3: Site Code | B3: 6466 | T3: #1 | X3: #2 | AB3: #3 | AF3: #4 | AM3: Number of Through Lanes | AS3: Number of Through lanes
A4: ='[1]SR 32 & Shuster Rd.'!A4 -> Street Name | B4: ='[1]SR 32 & Shuster Rd.'!B4 -> SchusterRd--Southbound | F4: ='[1]SR 32 & Shuster Rd.'!F4 -> S.R. 32--Westbound | J4: ='[1]SR 32 & Shuster Rd.'!J4 -> SchusterRd--Northbound | N4: ='[1]SR 32 & Shuster Rd.'!N4 -> S.R. 32--Eastbound | T4: =B4 -> SchusterRd--Southbound | X4: =F4 -> S.R. 32--Westbound | AB4: =J4 -> SchusterRd--Northbound | AF4: =N4 -> S.R. 32--Eastbound | AM4: 2 | AS4: 2
A5: ='[1]SR 32 & Shuster Rd.'!A5 -> Start Time | B5: ='[1]SR 32 & Shuster Rd.'!B5 -> Right | C5: ='[1]SR 32 & Shuster Rd.'!C5 -> Thru | D5: ='[1]SR 32 & Shuster Rd.'!D5 -> Left | E5: ='[1]SR 32 & Shuster Rd.'!E5 -> Peds | F5: ='[1]SR 32 & Shuster Rd.'!F5 -> Right | G5: ='[1]SR 32 & Shuster Rd.'!G5 -> Thru | H5: ='[1]SR 32 & Shuster Rd.'!H5 -> Left | I5: ='[1]SR 32 & Shuster Rd.'!I5 -> Peds | J5: ='[1]SR 32 & Shuster Rd.'!J5 -> Right | K5: ='[1]SR 32 & Shuster Rd.'!K5 -> Thru | L5: ='[1]SR 32 & Shuster Rd.'!L5 -> Left | M5: ='[1]SR 32 & Shuster Rd.'!M5 -> Peds | N5: ='[1]SR 32 & Shuster Rd.'!N5 -> Right | O5: ='[1]SR 32 & Shuster Rd.'!O5 -> Thru | P5: ='[1]SR 32 & Shuster Rd.'!P5 -> Left | Q5: ='[1]SR 32 & Shuster Rd.'!Q5 -> Peds | T5: Right | U5: Thru | V5: Left | W5: Peds | X5: Right | Y5: Thru | Z5: Left | AA5: Peds | AB5: Right | AC5: Thru | AD5: Left | AE5: Peds | AF5: Right | AG5: Thru | AH5: Left | AI5: Peds | AK5: #1 Minor Leg Lane Configurations and Right Turn Reductions | AL5: - | AM5: #2 Mainline Congestion Factors for Limiting Right Turn Reductions | AN5: = | AO5: Minor Street Right Turn Reduction | AQ5: #3 Minor Leg Lane Configurations and Right Turn Reductions | AR5: - | AS5: #4 Mainline Congestion Factors for Limiting Right Turn Reductions | AT5: = | AU5: Minor Street Right Turn Reduction
A6: ='[1]SR 32 & Shuster Rd.'!A6 -> 06:00:00 | B6: ='[1]SR 32 & Shuster Rd.'!B6 -> 3 | C6: ='[1]SR 32 & Shuster Rd.'!C6 -> 1 | D6: ='[1]SR 32 & Shuster Rd.'!D6+'[1]SR 32 & Germany Rd.'!C6+'[1]SR 32 & Germany Rd.'!D6 -> 16 | E6: ='[1]SR 32 & Shuster Rd.'!E6 -> 0 | F6: ='[1]SR 32 & Shuster Rd.'!F6 -> 5 | G6: ='[1]SR 32 & Shuster Rd.'!G6 -> 46 | H6: ='[1]SR 32 & Shuster Rd.'!H6 -> 0 | I6: ='[1]SR 32 & Shuster Rd.'!I6 -> 0 | J6: ='[1]SR 32 & Shuster Rd.'!J6 -> 1 | K6: ='[1]SR 32 & Shuster Rd.'!K6 -> 9 | L6: ='[1]SR 32 & Shuster Rd.'!L6 -> 1 | M6: ='[1]SR 32 & Shuster Rd.'!M6 -> 0 | N6: ='[1]SR 32 & Shuster Rd.'!N6 -> 0 | O6: ='[1]SR 32 & Shuster Rd.'!O6 -> 18 | P6: ='[1]SR 32 & Shuster Rd.'!P6+'[1]SR 32 & Germany Rd.'!P6 -> 5 | Q6: ='[1]SR 32 & Shuster Rd.'!Q6 -> 0
A7: ='[1]SR 32 & Shuster Rd.'!A7 -> 06:00:00 | B7: ='[1]SR 32 & Shuster Rd.'!B7 -> 0 | C7: ='[1]SR 32 & Shuster Rd.'!C7 -> 0 | D7: ='[1]SR 32 & Shuster Rd.'!D7+'[1]SR 32 & Germany Rd.'!C7+'[1]SR 32 & Germany Rd.'!D7 -> 0 | E7: ='[1]SR 32 & Shuster Rd.'!E7 -> 0 | F7: ='[1]SR 32 & Shuster Rd.'!F7 -> 0 | G7: ='[1]SR 32 & Shuster Rd.'!G7 -> 6 | H7: ='[1]SR 32 & Shuster Rd.'!H7 -> 0 | I7: ='[1]SR 32 & Shuster Rd.'!I7 -> 0 | J7: ='[1]SR 32 & Shuster Rd.'!J7 -> 0 | K7: ='[1]SR 32 & Shuster Rd.'!K7 -> 0 | L7: ='[1]SR 32 & Shuster Rd.'!L7 -> 0 | M7: ='[1]SR 32 & Shuster Rd.'!M7 -> 0 | N7: ='[1]SR 32 & Shuster Rd.'!N7 -> 0 | O7: ='[1]SR 32 & Shuster Rd.'!O7 -> 7 | P7: ='[1]SR 32 & Shuster Rd.'!P7+'[1]SR 32 & Germany Rd.'!P7 -> 1 | Q7: ='[1]SR 32 & Shuster Rd.'!Q7 -> 0
A8: ='[1]SR 32 & Shuster Rd.'!A8 -> 06:00:00 | B8: ='[1]SR 32 & Shuster Rd.'!B8 -> 0 | C8: ='[1]SR 32 & Shuster Rd.'!C8 -> 0 | D8: ='[1]SR 32 & Shuster Rd.'!D8+'[1]SR 32 & Germany Rd.'!C8+'[1]SR 32 & Germany Rd.'!D8 -> 0 | E8: ='[1]SR 32 & Shuster Rd.'!E8 -> 0 | F8: ='[1]SR 32 & Shuster Rd.'!F8 -> 0 | G8: ='[1]SR 32 & Shuster Rd.'!G8 -> 0 | H8: ='[1]SR 32 & Shuster Rd.'!H8 -> 0 | I8: ='[1]SR 32 & Shuster Rd.'!I8 -> 0 | J8: ='[1]SR 32 & Shuster Rd.'!J8 -> 0 | K8: ='[1]SR 32 & Shuster Rd.'!K8 -> 0 | L8: ='[1]SR 32 & Shuster Rd.'!L8 -> 0 | M8: ='[1]SR 32 & Shuster Rd.'!M8 -> 0 | N8: ='[1]SR 32 & Shuster Rd.'!N8 -> 0 | O8: ='[1]SR 32 & Shuster Rd.'!O8 -> 0 | P8: ='[1]SR 32 & Shuster Rd.'!P8+'[1]SR 32 & Germany Rd.'!P8 -> 0 | Q8: ='[1]SR 32 & Shuster Rd.'!Q8 -> 0 | S8: 06:00:00 | T8: =SUM(B6:B8) -> 3 | U8: 1 | V8: 16 | W8: 0 | X8: 5 | Y8: 52 | Z8: 0 | AA8: 0 | AB8: 1 | AC8: 9 | AD8: 1 | AE8: 0 | AF8: 0 | AG8: 25 | AH8: 6 | AI8: 0
A9: ='[1]SR 32 & Shuster Rd.'!A9 -> 06:15:00 | B9: ='[1]SR 32 & Shuster Rd.'!B9 -> 2 | C9: ='[1]SR 32 & Shuster Rd.'!C9 -> 1 | D9: ='[1]SR 32 & Shuster Rd.'!D9+'[1]SR 32 & Germany Rd.'!C9+'[1]SR 32 & Germany Rd.'!D9 -> 18 | E9: ='[1]SR 32 & Shuster Rd.'!E9 -> 0 | F9: ='[1]SR 32 & Shuster Rd.'!F9 -> 10 | G9: ='[1]SR 32 & Shuster Rd.'!G9 -> 62 | H9: ='[1]SR 32 & Shuster Rd.'!H9 -> 0 | I9: ='[1]SR 32 & Shuster Rd.'!I9 -> 0 | J9: ='[1]SR 32 & Shuster Rd.'!J9 -> 1 | K9: ='[1]SR 32 & Shuster Rd.'!K9 -> 0 | L9: ='[1]SR 32 & Shuster Rd.'!L9 -> 2 | M9: ='[1]SR 32 & Shuster Rd.'!M9 -> 0 | N9: ='[1]SR 32 & Shuster Rd.'!N9 -> 0 | O9: ='[1]SR 32 & Shuster Rd.'!O9 -> 33 | P9: ='[1]SR 32 & Shuster Rd.'!P9+'[1]SR 32 & Germany Rd.'!P9 -> 12 | Q9: ='[1]SR 32 & Shuster Rd.'!Q9 -> 0
A10: ='[1]SR 32 & Shuster Rd.'!A10 -> 06:15:00 | B10: ='[1]SR 32 & Shuster Rd.'!B10 -> 1 | C10: ='[1]SR 32 & Shuster Rd.'!C10 -> 0 | D10: ='[1]SR 32 & Shuster Rd.'!D10+'[1]SR 32 & Germany Rd.'!C10+'[1]SR 32 & Germany Rd.'!D10 -> 0 | E10: ='[1]SR 32 & Shuster Rd.'!E10 -> 0 | F10: ='[1]SR 32 & Shuster Rd.'!F10 -> 0 | G10: ='[1]SR 32 & Shuster Rd.'!G10 -> 10 | H10: ='[1]SR 32 & Shuster Rd.'!H10 -> 0 | I10: ='[1]SR 32 & Shuster Rd.'!I10 -> 0 | J10: ='[1]SR 32 & Shuster Rd.'!J10 -> 0 | K10: ='[1]SR 32 & Shuster Rd.'!K10 -> 0 | L10: ='[1]SR 32 & Shuster Rd.'!L10 -> 0 | M10: ='[1]SR 32 & Shuster Rd.'!M10 -> 0 | N10: ='[1]SR 32 & Shuster Rd.'!N10 -> 0 | O10: ='[1]SR 32 & Shuster Rd.'!O10 -> 2 | P10: ='[1]SR 32 & Shuster Rd.'!P10+'[1]SR 32 & Germany Rd.'!P10 -> 0 | Q10: ='[1]SR 32 & Shuster Rd.'!Q10 -> 0
A11: ='[1]SR 32 & Shuster Rd.'!A11 -> 06:15:00 | B11: ='[1]SR 32 & Shuster Rd.'!B11 -> 0 | C11: ='[1]SR 32 & Shuster Rd.'!C11 -> 0 | D11: ='[1]SR 32 & Shuster Rd.'!D11+'[1]SR 32 & Germany Rd.'!C11+'[1]SR 32 & Germany Rd.'!D11 -> 0 | E11: ='[1]SR 32 & Shuster Rd.'!E11 -> 0 | F11: ='[1]SR 32 & Shuster Rd.'!F11 -> 0 | G11: ='[1]SR 32 & Shuster Rd.'!G11 -> 0 | H11: ='[1]SR 32 & Shuster Rd.'!H11 -> 0 | I11: ='[1]SR 32 & Shuster Rd.'!I11 -> 0 | J11: ='[1]SR 32 & Shuster Rd.'!J11 -> 0 | K11: ='[1]SR 32 & Shuster Rd.'!K11 -> 0 | L11: ='[1]SR 32 & Shuster Rd.'!L11 -> 0 | M11: ='[1]SR 32 & Shuster Rd.'!M11 -> 0 | N11: ='[1]SR 32 & Shuster Rd.'!N11 -> 0 | O11: ='[1]SR 32 & Shuster Rd.'!O11 -> 0 | P11: ='[1]SR 32 & Shuster Rd.'!P11+'[1]SR 32 & Germany Rd.'!P11 -> 0 | Q11: ='[1]SR 32 & Shuster Rd.'!Q11 -> 0 | S11: 06:15:00 | T11: =SUM(B9:B11) -> 3 | U11: 1 | V11: 18 | W11: 0 | X11: 10 | Y11: 72 | Z11: 0 | AA11: 0 | AB11: 1 | AC11: 0 | AD11: 2 | AE11: 0 | AF11: 0 | AG11: 35 | AH11: 12 | AI11: 0
A12: ='[1]SR 32 & Shuster Rd.'!A12 -> 06:30:00 | B12: ='[1]SR 32 & Shuster Rd.'!B12 -> 5 | C12: ='[1]SR 32 & Shuster Rd.'!C12 -> 1 | D12: ='[1]SR 32 & Shuster Rd.'!D12+'[1]SR 32 & Germany Rd.'!C12+'[1]SR 32 & Germany Rd.'!D12 -> 23 | E12: ='[1]SR 32 & Shuster Rd.'!E12 -> 0 | F12: ='[1]SR 32 & Shuster Rd.'!F12 -> 12 | G12: ='[1]SR 32 & Shuster Rd.'!G12 -> 74 | H12: ='[1]SR 32 & Shuster Rd.'!H12 -> 0 | I12: ='[1]SR 32 & Shuster Rd.'!I12 -> 1 | J12: ='[1]SR 32 & Shuster Rd.'!J12 -> 0 | K12: ='[1]SR 32 & Shuster Rd.'!K12 -> 7 | L12: ='[1]SR 32 & Shuster Rd.'!L12 -> 5 | M12: ='[1]SR 32 & Shuster Rd.'!M12 -> 0 | N12: ='[1]SR 32 & Shuster Rd.'!N12 -> 1 | O12: ='[1]SR 32 & Shuster Rd.'!O12 -> 20 | P12: ='[1]SR 32 & Shuster Rd.'!P12+'[1]SR 32 & Germany Rd.'!P12 -> 22 | Q12: ='[1]SR 32 & Shuster Rd.'!Q12 -> 0
A13: ='[1]SR 32 & Shuster Rd.'!A13 -> 06:30:00 | B13: ='[1]SR 32 & Shuster Rd.'!B13 -> 1 | C13: ='[1]SR 32 & Shuster Rd.'!C13 -> 0 | D13: ='[1]SR 32 & Shuster Rd.'!D13+'[1]SR 32 & Germany Rd.'!C13+'[1]SR 32 & Germany Rd.'!D13 -> 2 | E13: ='[1]SR 32 & Shuster Rd.'!E13 -> 0 | F13: ='[1]SR 32 & Shuster Rd.'!F13 -> 0 | G13: ='[1]SR 32 & Shuster Rd.'!G13 -> 6 | H13: ='[1]SR 32 & Shuster Rd.'!H13 -> 0 | I13: ='[1]SR 32 & Shuster Rd.'!I13 -> 0 | J13: ='[1]SR 32 & Shuster Rd.'!J13 -> 0 | K13: ='[1]SR 32 & Shuster Rd.'!K13 -> 0 | L13: ='[1]SR 32 & Shuster Rd.'!L13 -> 0 | M13: ='[1]SR 32 & Shuster Rd.'!M13 -> 0 | N13: ='[1]SR 32 & Shuster Rd.'!N13 -> 0 | O13: ='[1]SR 32 & Shuster Rd.'!O13 -> 8 | P13: ='[1]SR 32 & Shuster Rd.'!P13+'[1]SR 32 & Germany Rd.'!P13 -> 0 | Q13: ='[1]SR 32 & Shuster Rd.'!Q13 -> 0
A14: ='[1]SR 32 & Shuster Rd.'!A14 -> 06:30:00 | B14: ='[1]SR 32 & Shuster Rd.'!B14 -> 0 | C14: ='[1]SR 32 & Shuster Rd.'!C14 -> 0 | D14: ='[1]SR 32 & Shuster Rd.'!D14+'[1]SR 32 & Germany Rd.'!C14+'[1]SR 32 & Germany Rd.'!D14 -> 0 | E14: ='[1]SR 32 & Shuster Rd.'!E14 -> 0 | F14: ='[1]SR 32 & Shuster Rd.'!F14 -> 0 | G14: ='[1]SR 32 & Shuster Rd.'!G14 -> 0 | H14: ='[1]SR 32 & Shuster Rd.'!H14 -> 0 | I14: ='[1]SR 32 & Shuster Rd.'!I14 -> 0 | J14: ='[1]SR 32 & Shuster Rd.'!J14 -> 0 | K14: ='[1]SR 32 & Shuster Rd.'!K14 -> 0 | L14: ='[1]SR 32 & Shuster Rd.'!L14 -> 0 | M14: ='[1]SR 32 & Shuster Rd.'!M14 -> 0 | N14: ='[1]SR 32 & Shuster Rd.'!N14 -> 0 | O14: ='[1]SR 32 & Shuster Rd.'!O14 -> 0 | P14: ='[1]SR 32 & Shuster Rd.'!P14+'[1]SR 32 & Germany Rd.'!P14 -> 0 | Q14: ='[1]SR 32 & Shuster Rd.'!Q14 -> 0 | S14: 06:30:00 | T14: =SUM(B12:B14) -> 6 | U14: 1 | V14: 25 | W14: 0 | X14: 12 | Y14: 80 | Z14: 0 | AA14: 1 | AB14: 0 | AC14: 7 | AD14: 5 | AE14: 0 | AF14: 1 | AG14: 28 | AH14: 22 | AI14: 0
A15: ='[1]SR 32 & Shuster Rd.'!A15 -> 06:45:00 | B15: ='[1]SR 32 & Shuster Rd.'!B15 -> 4 | C15: ='[1]SR 32 & Shuster Rd.'!C15 -> 3 | D15: ='[1]SR 32 & Shuster Rd.'!D15+'[1]SR 32 & Germany Rd.'!C15+'[1]SR 32 & Germany Rd.'!D15 -> 11 | E15: ='[1]SR 32 & Shuster Rd.'!E15 -> 0 | F15: ='[1]SR 32 & Shuster Rd.'!F15 -> 4 | G15: ='[1]SR 32 & Shuster Rd.'!G15 -> 65 | H15: ='[1]SR 32 & Shuster Rd.'!H15 -> 0 | I15: ='[1]SR 32 & Shuster Rd.'!I15 -> 0 | J15: ='[1]SR 32 & Shuster Rd.'!J15 -> 0 | K15: ='[1]SR 32 & Shuster Rd.'!K15 -> 3 | L15: ='[1]SR 32 & Shuster Rd.'!L15 -> 3 | M15: ='[1]SR 32 & Shuster Rd.'!M15 -> 0 | N15: ='[1]SR 32 & Shuster Rd.'!N15 -> 1 | O15: ='[1]SR 32 & Shuster Rd.'!O15 -> 36 | P15: ='[1]SR 32 & Shuster Rd.'!P15+'[1]SR 32 & Germany Rd.'!P15 -> 20 | Q15: ='[1]SR 32 & Shuster Rd.'!Q15 -> 0
A16: ='[1]SR 32 & Shuster Rd.'!A16 -> 06:45:00 | B16: ='[1]SR 32 & Shuster Rd.'!B16 -> 2 | C16: ='[1]SR 32 & Shuster Rd.'!C16 -> 0 | D16: ='[1]SR 32 & Shuster Rd.'!D16+'[1]SR 32 & Germany Rd.'!C16+'[1]SR 32 & Germany Rd.'!D16 -> 1 | E16: ='[1]SR 32 & Shuster Rd.'!E16 -> 0 | F16: ='[1]SR 32 & Shuster Rd.'!F16 -> 0 | G16: ='[1]SR 32 & Shuster Rd.'!G16 -> 6 | H16: ='[1]SR 32 & Shuster Rd.'!H16 -> 0 | I16: ='[1]SR 32 & Shuster Rd.'!I16 -> 0 | J16: ='[1]SR 32 & Shuster Rd.'!J16 -> 0 | K16: ='[1]SR 32 & Shuster Rd.'!K16 -> 0 | L16: ='[1]SR 32 & Shuster Rd.'!L16 -> 0 | M16: ='[1]SR 32 & Shuster Rd.'!M16 -> 0 | N16: ='[1]SR 32 & Shuster Rd.'!N16 -> 0 | O16: ='[1]SR 32 & Shuster Rd.'!O16 -> 4 | P16: ='[1]SR 32 & Shuster Rd.'!P16+'[1]SR 32 & Germany Rd.'!P16 -> 0 | Q16: ='[1]SR 32 & Shuster Rd.'!Q16 -> 0
A17: ='[1]SR 32 & Shuster Rd.'!A17 -> 06:45:00 | B17: ='[1]SR 32 & Shuster Rd.'!B17 -> 0 | C17: ='[1]SR 32 & Shuster Rd.'!C17 -> 0 | D17: ='[1]SR 32 & Shuster Rd.'!D17+'[1]SR 32 & Germany Rd.'!C17+'[1]SR 32 & Germany Rd.'!D17 -> 0 | E17: ='[1]SR 32 & Shuster Rd.'!E17 -> 0 | F17: ='[1]SR 32 & Shuster Rd.'!F17 -> 0 | G17: ='[1]SR 32 & Shuster Rd.'!G17 -> 0 | H17: ='[1]SR 32 & Shuster Rd.'!H17 -> 0 | I17: ='[1]SR 32 & Shuster Rd.'!I17 -> 0 | J17: ='[1]SR 32 & Shuster Rd.'!J17 -> 0 | K17: ='[1]SR 32 & Shuster Rd.'!K17 -> 0 | L17: ='[1]SR 32 & Shuster Rd.'!L17 -> 0 | M17: ='[1]SR 32 & Shuster Rd.'!M17 -> 0 | N17: ='[1]SR 32 & Shuster Rd.'!N17 -> 0 | O17: ='[1]SR 32 & Shuster Rd.'!O17 -> 0 | P17: ='[1]SR 32 & Shuster Rd.'!P17+'[1]SR 32 & Germany Rd.'!P17 -> 0 | Q17: ='[1]SR 32 & Shuster Rd.'!Q17 -> 0 | S17: 06:45:00 | T17: =SUM(B15:B17) -> 6 | U17: 3 | V17: 12 | W17: 0 | X17: 4 | Y17: 71 | Z17: 0 | AA17: 0 | AB17: 0 | AC17: 3 | AD17: 3 | AE17: 0 | AF17: 1 | AG17: 40 | AH17: 20 | AI17: 0
A18: ='[1]SR 32 & Shuster Rd.'!A18 -> 07:00:00 | B18: ='[1]SR 32 & Shuster Rd.'!B18 -> 8 | C18: ='[1]SR 32 & Shuster Rd.'!C18 -> 3 | D18: ='[1]SR 32 & Shuster Rd.'!D18+'[1]SR 32 & Germany Rd.'!C18+'[1]SR 32 & Germany Rd.'!D18 -> 24 | E18: ='[1]SR 32 & Shuster Rd.'!E18 -> 0 | F18: ='[1]SR 32 & Shuster Rd.'!F18 -> 5 | G18: ='[1]SR 32 & Shuster Rd.'!G18 -> 57 | H18: ='[1]SR 32 & Shuster Rd.'!H18 -> 0 | I18: ='[1]SR 32 & Shuster Rd.'!I18 -> 0 | J18: ='[1]SR 32 & Shuster Rd.'!J18 -> 1 | K18: ='[1]SR 32 & Shuster Rd.'!K18 -> 7 | L18: ='[1]SR 32 & Shuster Rd.'!L18 -> 3 | M18: ='[1]SR 32 & Shuster Rd.'!M18 -> 0 | N18: ='[1]SR 32 & Shuster Rd.'!N18 -> 4 | O18: ='[1]SR 32 & Shuster Rd.'!O18 -> 29 | P18: ='[1]SR 32 & Shuster Rd.'!P18+'[1]SR 32 & Germany Rd.'!P18 -> 6 | Q18: ='[1]SR 32 & Shuster Rd.'!Q18 -> 0 | S18: Movement Total | T18: =SUM(T8,T11,T14,T17) -> 18 | U18: 6 | V18: 71 | W18: 0 | X18: 31 | Y18: 275 | Z18: 0 | AA18: 1 | AB18: 2 | AC18: 19 | AD18: 11 | AE18: 0 | AF18: 2 | AG18: 128 | AH18: 60 | AI18: 0 | AK18: 0.2 | AL18: - | AM18: =IF(X$2=FALSE,LOOKUP((Y18+X18)/$AM$4,'Main Line Reduction Table'!$A$1:$B$21,'Main Line Reduction Table'!$C$1:$C$21),LOOKUP(Y18/$AM$4,'Main Line Reduction Table'!$A$1:$B$21,'Main Line Reduction Table'!$C$1:$C$21)) -> 0 | AN18: = | AO18: =AK18-AM18 -> 0.2 | AQ18: 0.2 | AR18: - | AS18: =IF(AF$2=FALSE,LOOKUP((AG18+AF18)/$AS$4,'Main Line Reduction Table'!$A$1:$B$21,'Main Line Reduction Table'!$C$1:$C$21),LOOKUP(AG18/$AS$4,'Main Line Reduction Table'!$A$1:$B$21,'Main Line Reduction Table'!$C$1:$C$21)) -> 0 | AT18: = | AU18: =AQ18-AS18 -> 0.2
A19: ='[1]SR 32 & Shuster Rd.'!A19 -> 07:00:00 | B19: ='[1]SR 32 & Shuster Rd.'!B19 -> 1 | C19: ='[1]SR 32 & Shuster Rd.'!C19 -> 0 | D19: ='[1]SR 32 & Shuster Rd.'!D19+'[1]SR 32 & Germany Rd.'!C19+'[1]SR 32 & Germany Rd.'!D19 -> 0 | E19: ='[1]SR 32 & Shuster Rd.'!E19 -> 0 | F19: ='[1]SR 32 & Shuster Rd.'!F19 -> 0 | G19: ='[1]SR 32 & Shuster Rd.'!G19 -> 8 | H19: ='[1]SR 32 & Shuster Rd.'!H19 -> 0 | I19: ='[1]SR 32 & Shuster Rd.'!I19 -> 0 | J19: ='[1]SR 32 & Shuster Rd.'!J19 -> 0 | K19: ='[1]SR 32 & Shuster Rd.'!K19 -> 0 | L19: ='[1]SR 32 & Shuster Rd.'!L19 -> 0 | M19: ='[1]SR 32 & Shuster Rd.'!M19 -> 0 | N19: ='[1]SR 32 & Shuster Rd.'!N19 -> 0 | O19: ='[1]SR 32 & Shuster Rd.'!O19 -> 9 | P19: ='[1]SR 32 & Shuster Rd.'!P19+'[1]SR 32 & Germany Rd.'!P19 -> 1 | Q19: ='[1]SR 32 & Shuster Rd.'!Q19 -> 0 | S19: Reduced Movement Total | T19: =T18*(1-AO18) -> 14.4 | U19: =(T18*(1-$AO18))+U18+V18 -> 91.4 | X19: =X18+Y18+Z18 -> 306 | AB19: =AB18*(1-AU18) -> 1.6 | AC19: =(AB18*(1-$AO18))+AC18+AD18 -> 31.6 | AF19: =AF18+AG18+AH18 -> 190
A20: ='[1]SR 32 & Shuster Rd.'!A20 -> 07:00:00 | B20: ='[1]SR 32 & Shuster Rd.'!B20 -> 0 | C20: ='[1]SR 32 & Shuster Rd.'!C20 -> 0 | D20: ='[1]SR 32 & Shuster Rd.'!D20+'[1]SR 32 & Germany Rd.'!C20+'[1]SR 32 & Germany Rd.'!D20 -> 0 | E20: ='[1]SR 32 & Shuster Rd.'!E20 -> 0 | F20: ='[1]SR 32 & Shuster Rd.'!F20 -> 0 | G20: ='[1]SR 32 & Shuster Rd.'!G20 -> 0 | H20: ='[1]SR 32 & Shuster Rd.'!H20 -> 0 | I20: ='[1]SR 32 & Shuster Rd.'!I20 -> 0 | J20: ='[1]SR 32 & Shuster Rd.'!J20 -> 0 | K20: ='[1]SR 32 & Shuster Rd.'!K20 -> 0 | L20: ='[1]SR 32 & Shuster Rd.'!L20 -> 0 | M20: ='[1]SR 32 & Shuster Rd.'!M20 -> 0 | N20: ='[1]SR 32 & Shuster Rd.'!N20 -> 0 | O20: ='[1]SR 32 & Shuster Rd.'!O20 -> 0 | P20: ='[1]SR 32 & Shuster Rd.'!P20+'[1]SR 32 & Germany Rd.'!P20 -> 0 | Q20: ='[1]SR 32 & Shuster Rd.'!Q20 -> 0 | S20: 07:00:00 | T20: =SUM(B18:B20) -> 9 | U20: 3 | V20: 24 | W20: 0 | X20: 5 | Y20: 65 | Z20: 0 | AA20: 0 | AB20: 1 | AC20: 7 | AD20: 3 | AE20: 0 | AF20: 4 | AG20: 38 | AH20: 7 | AI20: 0
A21: ='[1]SR 32 & Shuster Rd.'!A21 -> 07:15:00 | B21: ='[1]SR 32 & Shuster Rd.'!B21 -> 14 | C21: ='[1]SR 32 & Shuster Rd.'!C21 -> 0 | D21: ='[1]SR 32 & Shuster Rd.'!D21+'[1]SR 32 & Germany Rd.'!C21+'[1]SR 32 & Germany Rd.'!D21 -> 27 | E21: ='[1]SR 32 & Shuster Rd.'!E21 -> 1 | F21: ='[1]SR 32 & Shuster Rd.'!F21 -> 9 | G21: ='[1]SR 32 & Shuster Rd.'!G21 -> 72 | H21: ='[1]SR 32 & Shuster Rd.'!H21 -> 1 | I21: ='[1]SR 32 & Shuster Rd.'!I21 -> 0 | J21: ='[1]SR 32 & Shuster Rd.'!J21 -> 0 | K21: ='[1]SR 32 & Shuster Rd.'!K21 -> 9 | L21: ='[1]SR 32 & Shuster Rd.'!L21 -> 3 | M21: ='[1]SR 32 & Shuster Rd.'!M21 -> 0 | N21: ='[1]SR 32 & Shuster Rd.'!N21 -> 4 | O21: ='[1]SR 32 & Shuster Rd.'!O21 -> 43 | P21: ='[1]SR 32 & Shuster Rd.'!P21+'[1]SR 32 & Germany Rd.'!P21 -> 32 | Q21: ='[1]SR 32 & Shuster Rd.'!Q21 -> 0
A22: ='[1]SR 32 & Shuster Rd.'!A22 -> 07:15:00 | B22: ='[1]SR 32 & Shuster Rd.'!B22 -> 1 | C22: ='[1]SR 32 & Shuster Rd.'!C22 -> 0 | D22: ='[1]SR 32 & Shuster Rd.'!D22+'[1]SR 32 & Germany Rd.'!C22+'[1]SR 32 & Germany Rd.'!D22 -> 0 | E22: ='[1]SR 32 & Shuster Rd.'!E22 -> 0 | F22: ='[1]SR 32 & Shuster Rd.'!F22 -> 0 | G22: ='[1]SR 32 & Shuster Rd.'!G22 -> 5 | H22: ='[1]SR 32 & Shuster Rd.'!H22 -> 0 | I22: ='[1]SR 32 & Shuster Rd.'!I22 -> 0 | J22: ='[1]SR 32 & Shuster Rd.'!J22 -> 0 | K22: ='[1]SR 32 & Shuster Rd.'!K22 -> 0 | L22: ='[1]SR 32 & Shuster Rd.'!L22 -> 0 | M22: ='[1]SR 32 & Shuster Rd.'!M22 -> 0 | N22: ='[1]SR 32 & Shuster Rd.'!N22 -> 0 | O22: ='[1]SR 32 & Shuster Rd.'!O22 -> 13 | P22: ='[1]SR 32 & Shuster Rd.'!P22+'[1]SR 32 & Germany Rd.'!P22 -> 0 | Q22: ='[1]SR 32 & Shuster Rd.'!Q22 -> 0
A23: ='[1]SR 32 & Shuster Rd.'!A23 -> 07:15:00 | B23: ='[1]SR 32 & Shuster Rd.'!B23 -> 0 | C23: ='[1]SR 32 & Shuster Rd.'!C23 -> 0 | D23: ='[1]SR 32 & Shuster Rd.'!D23+'[1]SR 32 & Germany Rd.'!C23+'[1]SR 32 & Germany Rd.'!D23 -> 0 | E23: ='[1]SR 32 & Shuster Rd.'!E23 -> 0 | F23: ='[1]SR 32 & Shuster Rd.'!F23 -> 0 | G23: ='[1]SR 32 & Shuster Rd.'!G23 -> 0 | H23: ='[1]SR 32 & Shuster Rd.'!H23 -> 0 | I23: ='[1]SR 32 & Shuster Rd.'!I23 -> 0 | J23: ='[1]SR 32 & Shuster Rd.'!J23 -> 0 | K23: ='[1]SR 32 & Shuster Rd.'!K23 -> 0 | L23: ='[1]SR 32 & Shuster Rd.'!L23 -> 0 | M23: ='[1]SR 32 & Shuster Rd.'!M23 -> 0 | N23: ='[1]SR 32 & Shuster Rd.'!N23 -> 0 | O23: ='[1]SR 32 & Shuster Rd.'!O23 -> 0 | P23: ='[1]SR 32 & Shuster Rd.'!P23+'[1]SR 32 & Germany Rd.'!P23 -> 0 | Q23: ='[1]SR 32 & Shuster Rd.'!Q23 -> 0 | S23: 07:15:00 | T23: =SUM(B21:B23) -> 15 | U23: 0 | V23: 27 | W23: 1 | X23: 9 | Y23: 77 | Z23: 1 | AA23: 0 | AB23: 0 | AC23: 9 | AD23: 3 | AE23: 0 | AF23: 4 | AG23: 56 | AH23: 32 | AI23: 0
A24: ='[1]SR 32 & Shuster Rd.'!A24 -> 07:30:00 | B24: ='[1]SR 32 & Shuster Rd.'!B24 -> 57 | C24: ='[1]SR 32 & Shuster Rd.'!C24 -> 3 | D24: ='[1]SR 32 & Shuster Rd.'!D24+'[1]SR 32 & Germany Rd.'!C24+'[1]SR 32 & Germany Rd.'!D24 -> 12 | E24: ='[1]SR 32 & Shuster Rd.'!E24 -> 0 | F24: ='[1]SR 32 & Shuster Rd.'!F24 -> 8 | G24: ='[1]SR 32 & Shuster Rd.'!G24 -> 76 | H24: ='[1]SR 32 & Shuster Rd.'!H24 -> 0 | I24: ='[1]SR 32 & Shuster Rd.'!I24 -> 0 | J24: ='[1]SR 32 & Shuster Rd.'!J24 -> 0 | K24: ='[1]SR 32 & Shuster Rd.'!K24 -> 10 | L24: ='[1]SR 32 & Shuster Rd.'!L24 -> 2 | M24: ='[1]SR 32 & Shuster Rd.'!M24 -> 0 | N24: ='[1]SR 32 & Shuster Rd.'!N24 -> 2 | O24: ='[1]SR 32 & Shuster Rd.'!O24 -> 40 | P24: ='[1]SR 32 & Shuster Rd.'!P24+'[1]SR 32 & Germany Rd.'!P24 -> 32 | Q24: ='[1]SR 32 & Shuster Rd.'!Q24 -> 0
A25: ='[1]SR 32 & Shuster Rd.'!A25 -> 07:30:00 | B25: ='[1]SR 32 & Shuster Rd.'!B25 -> 1 | C25: ='[1]SR 32 & Shuster Rd.'!C25 -> 0 | D25: ='[1]SR 32 & Shuster Rd.'!D25+'[1]SR 32 & Germany Rd.'!C25+'[1]SR 32 & Germany Rd.'!D25 -> 1 | E25: ='[1]SR 32 & Shuster Rd.'!E25 -> 0 | F25: ='[1]SR 32 & Shuster Rd.'!F25 -> 0 | G25: ='[1]SR 32 & Shuster Rd.'!G25 -> 8 | H25: ='[1]SR 32 & Shuster Rd.'!H25 -> 0 | I25: ='[1]SR 32 & Shuster Rd.'!I25 -> 0 | J25: ='[1]SR 32 & Shuster Rd.'!J25 -> 0 | K25: ='[1]SR 32 & Shuster Rd.'!K25 -> 0 | L25: ='[1]SR 32 & Shuster Rd.'!L25 -> 0 | M25: ='[1]SR 32 & Shuster Rd.'!M25 -> 0 | N25: ='[1]SR 32 & Shuster Rd.'!N25 -> 0 | O25: ='[1]SR 32 & Shuster Rd.'!O25 -> 15 | P25: ='[1]SR 32 & Shuster Rd.'!P25+'[1]SR 32 & Germany Rd.'!P25 -> 1 | Q25: ='[1]SR 32 & Shuster Rd.'!Q25 -> 0
A26: ='[1]SR 32 & Shuster Rd.'!A26 -> 07:30:00 | B26: ='[1]SR 32 & Shuster Rd.'!B26 -> 0 | C26: ='[1]SR 32 & Shuster Rd.'!C26 -> 0 | D26: ='[1]SR 32 & Shuster Rd.'!D26+'[1]SR 32 & Germany Rd.'!C26+'[1]SR 32 & Germany Rd.'!D26 -> 0 | E26: ='[1]SR 32 & Shuster Rd.'!E26 -> 0 | F26: ='[1]SR 32 & Shuster Rd.'!F26 -> 0 | G26: ='[1]SR 32 & Shuster Rd.'!G26 -> 0 | H26: ='[1]SR 32 & Shuster Rd.'!H26 -> 0 | I26: ='[1]SR 32 & Shuster Rd.'!I26 -> 0 | J26: ='[1]SR 32 & Shuster Rd.'!J26 -> 0 | K26: ='[1]SR 32 & Shuster Rd.'!K26 -> 0 | L26: ='[1]SR 32 & Shuster Rd.'!L26 -> 0 | M26: ='[1]SR 32 & Shuster Rd.'!M26 -> 0 | N26: ='[1]SR 32 & Shuster Rd.'!N26 -> 0 | O26: ='[1]SR 32 & Shuster Rd.'!O26 -> 0 | P26: ='[1]SR 32 & Shuster Rd.'!P26+'[1]SR 32 & Germany Rd.'!P26 -> 0 | Q26: ='[1]SR 32 & Shuster Rd.'!Q26 -> 0 | S26: 07:30:00 | T26: =SUM(B24:B26) -> 58 | U26: 3 | V26: 13 | W26: 0 | X26: 8 | Y26: 84 | Z26: 0 | AA26: 0 | AB26: 0 | AC26: 10 | AD26: 2 | AE26: 0 | AF26: 2 | AG26: 55 | AH26: 33 | AI26: 0
A27: ='[1]SR 32 & Shuster Rd.'!A27 -> 07:45:00 | B27: ='[1]SR 32 & Shuster Rd.'!B27 -> 19 | C27: ='[1]SR 32 & Shuster Rd.'!C27 -> 4 | D27: ='[1]SR 32 & Shuster Rd.'!D27+'[1]SR 32 & Germany Rd.'!C27+'[1]SR 32 & Germany Rd.'!D27 -> 11 | E27: ='[1]SR 32 & Shuster Rd.'!E27 -> 0 | F27: ='[1]SR 32 & Shuster Rd.'!F27 -> 8 | G27: ='[1]SR 32 & Shuster Rd.'!G27 -> 74 | H27: ='[1]SR 32 & Shuster Rd.'!H27 -> 1 | I27: ='[1]SR 32 & Shuster Rd.'!I27 -> 0 | J27: ='[1]SR 32 & Shuster Rd.'!J27 -> 1 | K27: ='[1]SR 32 & Shuster Rd.'!K27 -> 7 | L27: ='[1]SR 32 & Shuster Rd.'!L27 -> 8 | M27: ='[1]SR 32 & Shuster Rd.'!M27 -> 0 | N27: ='[1]SR 32 & Shuster Rd.'!N27 -> 1 | O27: ='[1]SR 32 & Shuster Rd.'!O27 -> 43 | P27: ='[1]SR 32 & Shuster Rd.'!P27+'[1]SR 32 & Germany Rd.'!P27 -> 18 | Q27: ='[1]SR 32 & Shuster Rd.'!Q27 -> 0
A28: ='[1]SR 32 & Shuster Rd.'!A28 -> 07:45:00 | B28: ='[1]SR 32 & Shuster Rd.'!B28 -> 0 | C28: ='[1]SR 32 & Shuster Rd.'!C28 -> 0 | D28: ='[1]SR 32 & Shuster Rd.'!D28+'[1]SR 32 & Germany Rd.'!C28+'[1]SR 32 & Germany Rd.'!D28 -> 1 | E28: ='[1]SR 32 & Shuster Rd.'!E28 -> 0 | F28: ='[1]SR 32 & Shuster Rd.'!F28 -> 0 | G28: ='[1]SR 32 & Shuster Rd.'!G28 -> 11 | H28: ='[1]SR 32 & Shuster Rd.'!H28 -> 0 | I28: ='[1]SR 32 & Shuster Rd.'!I28 -> 0 | J28: ='[1]SR 32 & Shuster Rd.'!J28 -> 0 | K28: ='[1]SR 32 & Shuster Rd.'!K28 -> 0 | L28: ='[1]SR 32 & Shuster Rd.'!L28 -> 0 | M28: ='[1]SR 32 & Shuster Rd.'!M28 -> 0 | N28: ='[1]SR 32 & Shuster Rd.'!N28 -> 0 | O28: ='[1]SR 32 & Shuster Rd.'!O28 -> 6 | P28: ='[1]SR 32 & Shuster Rd.'!P28+'[1]SR 32 & Germany Rd.'!P28 -> 0 | Q28: ='[1]SR 32 & Shuster Rd.'!Q28 -> 0
A29: ='[1]SR 32 & Shuster Rd.'!A29 -> 07:45:00 | B29: ='[1]SR 32 & Shuster Rd.'!B29 -> 0 | C29: ='[1]SR 32 & Shuster Rd.'!C29 -> 0 | D29: ='[1]SR 32 & Shuster Rd.'!D29+'[1]SR 32 & Germany Rd.'!C29+'[1]SR 32 & Germany Rd.'!D29 -> 0 | E29: ='[1]SR 32 & Shuster Rd.'!E29 -> 0 | F29: ='[1]SR 32 & Shuster Rd.'!F29 -> 0 | G29: ='[1]SR 32 & Shuster Rd.'!G29 -> 0 | H29: ='[1]SR 32 & Shuster Rd.'!H29 -> 0 | I29: ='[1]SR 32 & Shuster Rd.'!I29 -> 0 | J29: ='[1]SR 32 & Shuster Rd.'!J29 -> 0 | K29: ='[1]SR 32 & Shuster Rd.'!K29 -> 0 | L29: ='[1]SR 32 & Shuster Rd.'!L29 -> 0 | M29: ='[1]SR 32 & Shuster Rd.'!M29 -> 0 | N29: ='[1]SR 32 & Shuster Rd.'!N29 -> 0 | O29: ='[1]SR 32 & Shuster Rd.'!O29 -> 0 | P29: ='[1]SR 32 & Shuster Rd.'!P29+'[1]SR 32 & Germany Rd.'!P29 -> 0 | Q29: ='[1]SR 32 & Shuster Rd.'!Q29 -> 0 | S29: 07:45:00 | T29: =SUM(B27:B29) -> 19 | U29: 4 | V29: 12 | W29: 0 | X29: 8 | Y29: 85 | Z29: 1 | AA29: 0 | AB29: 1 | AC29: 7 | AD29: 8 | AE29: 0 | AF29: 1 | AG29: 49 | AH29: 18 | AI29: 0
A30: ='[1]SR 32 & Shuster Rd.'!A30 -> 08:00:00 | B30: ='[1]SR 32 & Shuster Rd.'!B30 -> 3 | C30: ='[1]SR 32 & Shuster Rd.'!C30 -> 0 | D30: ='[1]SR 32 & Shuster Rd.'!D30+'[1]SR 32 & Germany Rd.'!C30+'[1]SR 32 & Germany Rd.'!D30 -> 9 | E30: ='[1]SR 32 & Shuster Rd.'!E30 -> 0 | F30: ='[1]SR 32 & Shuster Rd.'!F30 -> 2 | G30: ='[1]SR 32 & Shuster Rd.'!G30 -> 57 | H30: ='[1]SR 32 & Shuster Rd.'!H30 -> 0 | I30: ='[1]SR 32 & Shuster Rd.'!I30 -> 0 | J30: ='[1]SR 32 & Shuster Rd.'!J30 -> 0 | K30: ='[1]SR 32 & Shuster Rd.'!K30 -> 3 | L30: ='[1]SR 32 & Shuster Rd.'!L30 -> 6 | M30: ='[1]SR 32 & Shuster Rd.'!M30 -> 0 | N30: ='[1]SR 32 & Shuster Rd.'!N30 -> 3 | O30: ='[1]SR 32 & Shuster Rd.'!O30 -> 37 | P30: ='[1]SR 32 & Shuster Rd.'!P30+'[1]SR 32 & Germany Rd.'!P30 -> 9 | Q30: ='[1]SR 32 & Shuster Rd.'!Q30 -> 0 | S30: Movement Total | T30: =SUM(T20,T23,T26,T29) -> 101 | U30: 10 | V30: 76 | W30: 1 | X30: 30 | Y30: 311 | Z30: 2 | AA30: 0 | AB30: 2 | AC30: 33 | AD30: 16 | AE30: 0 | AF30: 11 | AG30: 198 | AH30: 90 | AI30: 0 | AK30: 0.4 | AL30: - | AM30: =IF(X$2=FALSE,LOOKUP((Y30+X30)/$AM$4,'Main Line Reduction Table'!$A$1:$B$21,'Main Line Reduction Table'!$C$1:$C$21),LOOKUP(Y30/$AM$4,'Main Line Reduction Table'!$A$1:$B$21,'Main Line Reduction Table'!$C$1:$C$21)) -> 0 | AN30: = | AO30: =AK30-AM30 -> 0.4 | AQ30: 0.2 | AR30: - | AS30: =IF(AF$2=FALSE,LOOKUP((AG30+AF30)/$AS$4,'Main Line Reduction Table'!$A$1:$B$21,'Main Line Reduction Table'!$C$1:$C$21),LOOKUP(AG30/$AS$4,'Main Line Reduction Table'!$A$1:$B$21,'Main Line Reduction Table'!$C$1:$C$21)) -> 0 | AT30: = | AU30: =AQ30-AS30 -> 0.2
A31: ='[1]SR 32 & Shuster Rd.'!A31 -> 08:00:00 | B31: ='[1]SR 32 & Shuster Rd.'!B31 -> 3 | C31: ='[1]SR 32 & Shuster Rd.'!C31 -> 0 | D31: ='[1]SR 32 & Shuster Rd.'!D31+'[1]SR 32 & Germany Rd.'!C31+'[1]SR 32 & Germany Rd.'!D31 -> 2 | E31: ='[1]SR 32 & Shuster Rd.'!E31 -> 0 | F31: ='[1]SR 32 & Shuster Rd.'!F31 -> 0 | G31: ='[1]SR 32 & Shuster Rd.'!G31 -> 8 | H31: ='[1]SR 32 & Shuster Rd.'!H31 -> 0 | I31: ='[1]SR 32 & Shuster Rd.'!I31 -> 0 | J31: ='[1]SR 32 & Shuster Rd.'!J31 -> 0 | K31: ='[1]SR 32 & Shuster Rd.'!K31 -> 0 | L31: ='[1]SR 32 & Shuster Rd.'!L31 -> 0 | M31: ='[1]SR 32 & Shuster Rd.'!M31 -> 0 | N31: ='[1]SR 32 & Shuster Rd.'!N31 -> 0 | O31: ='[1]SR 32 & Shuster Rd.'!O31 -> 16 | P31: ='[1]SR 32 & Shuster Rd.'!P31+'[1]SR 32 & Germany Rd.'!P31 -> 1 | Q31: ='[1]SR 32 & Shuster Rd.'!Q31 -> 0 | S31: Reduced Movement Total | T31: =T30*(1-AO30) -> 60.6 | U31: =(T30*(1-$AO30))+U30+V30 -> 146.6 | X31: =X30+Y30+Z30 -> 343 | AB31: =AB30*(1-AU30) -> 1.6 | AC31: =(AB30*(1-$AO30))+AC30+AD30 -> 50.2 | AF31: =AF30+AG30+AH30 -> 299
A32: ='[1]SR 32 & Shuster Rd.'!A32 -> 08:00:00 | B32: ='[1]SR 32 & Shuster Rd.'!B32 -> 0 | C32: ='[1]SR 32 & Shuster Rd.'!C32 -> 0 | D32: ='[1]SR 32 & Shuster Rd.'!D32+'[1]SR 32 & Germany Rd.'!C32+'[1]SR 32 & Germany Rd.'!D32 -> 0 | E32: ='[1]SR 32 & Shuster Rd.'!E32 -> 0 | F32: ='[1]SR 32 & Shuster Rd.'!F32 -> 0 | G32: ='[1]SR 32 & Shuster Rd.'!G32 -> 0 | H32: ='[1]SR 32 & Shuster Rd.'!H32 -> 0 | I32: ='[1]SR 32 & Shuster Rd.'!I32 -> 0 | J32: ='[1]SR 32 & Shuster Rd.'!J32 -> 0 | K32: ='[1]SR 32 & Shuster Rd.'!K32 -> 0 | L32: ='[1]SR 32 & Shuster Rd.'!L32 -> 0 | M32: ='[1]SR 32 & Shuster Rd.'!M32 -> 0 | N32: ='[1]SR 32 & Shuster Rd.'!N32 -> 0 | O32: ='[1]SR 32 & Shuster Rd.'!O32 -> 0 | P32: ='[1]SR 32 & Shuster Rd.'!P32+'[1]SR 32 & Germany Rd.'!P32 -> 0 | Q32: ='[1]SR 32 & Shuster Rd.'!Q32 -> 0 | S32: 08:00:00 | T32: =SUM(B30:B32) -> 6 | U32: 0 | V32: 11 | W32: 0 | X32: 2 | Y32: 65 | Z32: 0 | AA32: 0 | AB32: 0 | AC32: 3 | AD32: 6 | AE32: 0 | AF32: 3 | AG32: 53 | AH32: 10 | AI32: 0
A33: ='[1]SR 32 & Shuster Rd.'!A33 -> 08:15:00 | B33: ='[1]SR 32 & Shuster Rd.'!B33 -> 1 | C33: ='[1]SR 32 & Shuster Rd.'!C33 -> 0 | D33: ='[1]SR 32 & Shuster Rd.'!D33+'[1]SR 32 & Germany Rd.'!C33+'[1]SR 32 & Germany Rd.'!D33 -> 13 | E33: ='[1]SR 32 & Shuster Rd.'!E33 -> 0 | F33: ='[1]SR 32 & Shuster Rd.'!F33 -> 3 | G33: ='[1]SR 32 & Shuster Rd.'!G33 -> 41 | H33: ='[1]SR 32 & Shuster Rd.'!H33 -> 0 | I33: ='[1]SR 32 & Shuster Rd.'!I33 -> 0 | J33: ='[1]SR 32 & Shuster Rd.'!J33 -> 1 | K33: ='[1]SR 32 & Shuster Rd.'!K33 -> 5 | L33: ='[1]SR 32 & Shuster Rd.'!L33 -> 0 | M33: ='[1]SR 32 & Shuster Rd.'!M33 -> 0 | N33: ='[1]SR 32 & Shuster Rd.'!N33 -> 1 | O33: ='[1]SR 32 & Shuster Rd.'!O33 -> 27 | P33: ='[1]SR 32 & Shuster Rd.'!P33+'[1]SR 32 & Germany Rd.'!P33 -> 10 | Q33: ='[1]SR 32 & Shuster Rd.'!Q33 -> 0
A34: ='[1]SR 32 & Shuster Rd.'!A34 -> 08:15:00 | B34: ='[1]SR 32 & Shuster Rd.'!B34 -> 2 | C34: ='[1]SR 32 & Shuster Rd.'!C34 -> 0 | D34: ='[1]SR 32 & Shuster Rd.'!D34+'[1]SR 32 & Germany Rd.'!C34+'[1]SR 32 & Germany Rd.'!D34 -> 2 | E34: ='[1]SR 32 & Shuster Rd.'!E34 -> 0 | F34: ='[1]SR 32 & Shuster Rd.'!F34 -> 0 | G34: ='[1]SR 32 & Shuster Rd.'!G34 -> 12 | H34: ='[1]SR 32 & Shuster Rd.'!H34 -> 0 | I34: ='[1]SR 32 & Shuster Rd.'!I34 -> 0 | J34: ='[1]SR 32 & Shuster Rd.'!J34 -> 0 | K34: ='[1]SR 32 & Shuster Rd.'!K34 -> 0 | L34: ='[1]SR 32 & Shuster Rd.'!L34 -> 0 | M34: ='[1]SR 32 & Shuster Rd.'!M34 -> 0 | N34: ='[1]SR 32 & Shuster Rd.'!N34 -> 0 | O34: ='[1]SR 32 & Shuster Rd.'!O34 -> 8 | P34: ='[1]SR 32 & Shuster Rd.'!P34+'[1]SR 32 & Germany Rd.'!P34 -> 1 | Q34: ='[1]SR 32 & Shuster Rd.'!Q34 -> 0
A35: ='[1]SR 32 & Shuster Rd.'!A35 -> 08:15:00 | B35: ='[1]SR 32 & Shuster Rd.'!B35 -> 0 | C35: ='[1]SR 32 & Shuster Rd.'!C35 -> 0 | D35: ='[1]SR 32 & Shuster Rd.'!D35+'[1]SR 32 & Germany Rd.'!C35+'[1]SR 32 & Germany Rd.'!D35 -> 0 | E35: ='[1]SR 32 & Shuster Rd.'!E35 -> 0 | F35: ='[1]SR 32 & Shuster Rd.'!F35 -> 0 | G35: ='[1]SR 32 & Shuster Rd.'!G35 -> 0 | H35: ='[1]SR 32 & Shuster Rd.'!H35 -> 0 | I35: ='[1]SR 32 & Shuster Rd.'!I35 -> 0 | J35: ='[1]SR 32 & Shuster Rd.'!J35 -> 0 | K35: ='[1]SR 32 & Shuster Rd.'!K35 -> 0 | L35: ='[1]SR 32 & Shuster Rd.'!L35 -> 0 | M35: ='[1]SR 32 & Shuster Rd.'!M35 -> 0 | N35: ='[1]SR 32 & Shuster Rd.'!N35 -> 0 | O35: ='[1]SR 32 & Shuster Rd.'!O35 -> 0 | P35: ='[1]SR 32 & Shuster Rd.'!P35+'[1]SR 32 & Germany Rd.'!P35 -> 0 | Q35: ='[1]SR 32 & Shuster Rd.'!Q35 -> 0 | S35: 08:15:00 | T35: =SUM(B33:B35) -> 3 | U35: 0 | V35: 15 | W35: 0 | X35: 3 | Y35: 53 | Z35: 0 | AA35: 0 | AB35: 1 | AC35: 5 | AD35: 0 | AE35: 0 | AF35: 1 | AG35: 35 | AH35: 11 | AI35: 0
A36: ='[1]SR 32 & Shuster Rd.'!A36 -> 08:30:00 | B36: ='[1]SR 32 & Shuster Rd.'!B36 -> 9 | C36: ='[1]SR 32 & Shuster Rd.'!C36 -> 2 | D36: ='[1]SR 32 & Shuster Rd.'!D36+'[1]SR 32 & Germany Rd.'!C36+'[1]SR 32 & Germany Rd.'!D36 -> 18 | E36: ='[1]SR 32 & Shuster Rd.'!E36 -> 0 | F36: ='[1]SR 32 & Shuster Rd.'!F36 -> 1 | G36: ='[1]SR 32 & Shuster Rd.'!G36 -> 36 | H36: ='[1]SR 32 & Shuster Rd.'!H36 -> 0 | I36: ='[1]SR 32 & Shuster Rd.'!I36 -> 0 | J36: ='[1]SR 32 & Shuster Rd.'!J36 -> 1 | K36: ='[1]SR 32 & Shuster Rd.'!K36 -> 3 | L36: ='[1]SR 32 & Shuster Rd.'!L36 -> 1 | M36: ='[1]SR 32 & Shuster Rd.'!M36 -> 0 | N36: ='[1]SR 32 & Shuster Rd.'!N36 -> 1 | O36: ='[1]SR 32 & Shuster Rd.'!O36 -> 32 | P36: ='[1]SR 32 & Shuster Rd.'!P36+'[1]SR 32 & Germany Rd.'!P36 -> 1 | Q36: ='[1]SR 32 & Shuster Rd.'!Q36 -> 0
A37: ='[1]SR 32 & Shuster Rd.'!A37 -> 08:30:00 | B37: ='[1]SR 32 & Shuster Rd.'!B37 -> 1 | C37: ='[1]SR 32 & Shuster Rd.'!C37 -> 0 | D37: ='[1]SR 32 & Shuster Rd.'!D37+'[1]SR 32 & Germany Rd.'!C37+'[1]SR 32 & Germany Rd.'!D37 -> 1 | E37: ='[1]SR 32 & Shuster Rd.'!E37 -> 0 | F37: ='[1]SR 32 & Shuster Rd.'!F37 -> 2 | G37: ='[1]SR 32 & Shuster Rd.'!G37 -> 9 | H37: ='[1]SR 32 & Shuster Rd.'!H37 -> 0 | I37: ='[1]SR 32 & Shuster Rd.'!I37 -> 0 | J37: ='[1]SR 32 & Shuster Rd.'!J37 -> 0 | K37: ='[1]SR 32 & Shuster Rd.'!K37 -> 0 | L37: ='[1]SR 32 & Shuster Rd.'!L37 -> 0 | M37: ='[1]SR 32 & Shuster Rd.'!M37 -> 0 | N37: ='[1]SR 32 & Shuster Rd.'!N37 -> 0 | O37: ='[1]SR 32 & Shuster Rd.'!O37 -> 8 | P37: ='[1]SR 32 & Shuster Rd.'!P37+'[1]SR 32 & Germany Rd.'!P37 -> 0 | Q37: ='[1]SR 32 & Shuster Rd.'!Q37 -> 0
A38: ='[1]SR 32 & Shuster Rd.'!A38 -> 08:30:00 | B38: ='[1]SR 32 & Shuster Rd.'!B38 -> 0 | C38: ='[1]SR 32 & Shuster Rd.'!C38 -> 0 | D38: ='[1]SR 32 & Shuster Rd.'!D38+'[1]SR 32 & Germany Rd.'!C38+'[1]SR 32 & Germany Rd.'!D38 -> 0 | E38: ='[1]SR 32 & Shuster Rd.'!E38 -> 0 | F38: ='[1]SR 32 & Shuster Rd.'!F38 -> 0 | G38: ='[1]SR 32 & Shuster Rd.'!G38 -> 0 | H38: ='[1]SR 32 & Shuster Rd.'!H38 -> 0 | I38: ='[1]SR 32 & Shuster Rd.'!I38 -> 0 | J38: ='[1]SR 32 & Shuster Rd.'!J38 -> 0 | K38: ='[1]SR 32 & Shuster Rd.'!K38 -> 0 | L38: ='[1]SR 32 & Shuster Rd.'!L38 -> 0 | M38: ='[1]SR 32 & Shuster Rd.'!M38 -> 0 | N38: ='[1]SR 32 & Shuster Rd.'!N38 -> 0 | O38: ='[1]SR 32 & Shuster Rd.'!O38 -> 0 | P38: ='[1]SR 32 & Shuster Rd.'!P38+'[1]SR 32 & Germany Rd.'!P38 -> 0 | Q38: ='[1]SR 32 & Shuster Rd.'!Q38 -> 0 | S38: 08:30:00 | T38: =SUM(B36:B38) -> 10 | U38: 2 | V38: 19 | W38: 0 | X38: 3 | Y38: 45 | Z38: 0 | AA38: 0 | AB38: 1 | AC38: 3 | AD38: 1 | AE38: 0 | AF38: 1 | AG38: 40 | AH38: 1 | AI38: 0
A39: ='[1]SR 32 & Shuster Rd.'!A39 -> 08:45:00 | B39: ='[1]SR 32 & Shuster Rd.'!B39 -> 2 | C39: ='[1]SR 32 & Shuster Rd.'!C39 -> 4 | D39: ='[1]SR 32 & Shuster Rd.'!D39+'[1]SR 32 & Germany Rd.'!C39+'[1]SR 32 & Germany Rd.'!D39 -> 8 | E39: ='[1]SR 32 & Shuster Rd.'!E39 -> 0 | F39: ='[1]SR 32 & Shuster Rd.'!F39 -> 0 | G39: ='[1]SR 32 & Shuster Rd.'!G39 -> 26 | H39: ='[1]SR 32 & Shuster Rd.'!H39 -> 0 | I39: ='[1]SR 32 & Shuster Rd.'!I39 -> 0 | J39: ='[1]SR 32 & Shuster Rd.'!J39 -> 0 | K39: ='[1]SR 32 & Shuster Rd.'!K39 -> 2 | L39: ='[1]SR 32 & Shuster Rd.'!L39 -> 3 | M39: ='[1]SR 32 & Shuster Rd.'!M39 -> 0 | N39: ='[1]SR 32 & Shuster Rd.'!N39 -> 1 | O39: ='[1]SR 32 & Shuster Rd.'!O39 -> 35 | P39: ='[1]SR 32 & Shuster Rd.'!P39+'[1]SR 32 & Germany Rd.'!P39 -> 6 | Q39: ='[1]SR 32 & Shuster Rd.'!Q39 -> 0
A40: ='[1]SR 32 & Shuster Rd.'!A40 -> 08:45:00 | B40: ='[1]SR 32 & Shuster Rd.'!B40 -> 1 | C40: ='[1]SR 32 & Shuster Rd.'!C40 -> 0 | D40: ='[1]SR 32 & Shuster Rd.'!D40+'[1]SR 32 & Germany Rd.'!C40+'[1]SR 32 & Germany Rd.'!D40 -> 2 | E40: ='[1]SR 32 & Shuster Rd.'!E40 -> 0 | F40: ='[1]SR 32 & Shuster Rd.'!F40 -> 0 | G40: ='[1]SR 32 & Shuster Rd.'!G40 -> 13 | H40: ='[1]SR 32 & Shuster Rd.'!H40 -> 0 | I40: ='[1]SR 32 & Shuster Rd.'!I40 -> 0 | J40: ='[1]SR 32 & Shuster Rd.'!J40 -> 0 | K40: ='[1]SR 32 & Shuster Rd.'!K40 -> 0 | L40: ='[1]SR 32 & Shuster Rd.'!L40 -> 0 | M40: ='[1]SR 32 & Shuster Rd.'!M40 -> 0 | N40: ='[1]SR 32 & Shuster Rd.'!N40 -> 0 | O40: ='[1]SR 32 & Shuster Rd.'!O40 -> 11 | P40: ='[1]SR 32 & Shuster Rd.'!P40+'[1]SR 32 & Germany Rd.'!P40 -> 1 | Q40: ='[1]SR 32 & Shuster Rd.'!Q40 -> 0
A41: ='[1]SR 32 & Shuster Rd.'!A41 -> 08:45:00 | B41: ='[1]SR 32 & Shuster Rd.'!B41 -> 0 | C41: ='[1]SR 32 & Shuster Rd.'!C41 -> 0 | D41: ='[1]SR 32 & Shuster Rd.'!D41+'[1]SR 32 & Germany Rd.'!C41+'[1]SR 32 & Germany Rd.'!D41 -> 0 | E41: ='[1]SR 32 & Shuster Rd.'!E41 -> 0 | F41: ='[1]SR 32 & Shuster Rd.'!F41 -> 0 | G41: ='[1]SR 32 & Shuster Rd.'!G41 -> 0 | H41: ='[1]SR 32 & Shuster Rd.'!H41 -> 0 | I41: ='[1]SR 32 & Shuster Rd.'!I41 -> 0 | J41: ='[1]SR 32 & Shuster Rd.'!J41 -> 0 | K41: ='[1]SR 32 & Shuster Rd.'!K41 -> 0 | L41: ='[1]SR 32 & Shuster Rd.'!L41 -> 0 | M41: ='[1]SR 32 & Shuster Rd.'!M41 -> 0 | N41: ='[1]SR 32 & Shuster Rd.'!N41 -> 0 | O41: ='[1]SR 32 & Shuster Rd.'!O41 -> 0 | P41: ='[1]SR 32 & Shuster Rd.'!P41+'[1]SR 32 & Germany Rd.'!P41 -> 0 | Q41: ='[1]SR 32 & Shuster Rd.'!Q41 -> 0 | S41: 08:45:00 | T41: =SUM(B39:B41) -> 3 | U41: 4 | V41: 10 | W41: 0 | X41: 0 | Y41: 39 | Z41: 0 | AA41: 0 | AB41: 0 | AC41: 2 | AD41: 3 | AE41: 0 | AF41: 1 | AG41: 46 | AH41: 7 | AI41: 0
A42: ='[1]SR 32 & Shuster Rd.'!A42 -> 09:00:00 | B42: ='[1]SR 32 & Shuster Rd.'!B42 -> 2 | C42: ='[1]SR 32 & Shuster Rd.'!C42 -> 0 | D42: ='[1]SR 32 & Shuster Rd.'!D42+'[1]SR 32 & Germany Rd.'!C42+'[1]SR 32 & Germany Rd.'!D42 -> 14 | E42: ='[1]SR 32 & Shuster Rd.'!E42 -> 2 | F42: ='[1]SR 32 & Shuster Rd.'!F42 -> 3 | G42: ='[1]SR 32 & Shuster Rd.'!G42 -> 28 | H42: ='[1]SR 32 & Shuster Rd.'!H42 -> 1 | I42: ='[1]SR 32 & Shuster Rd.'!I42 -> 0 | J42: ='[1]SR 32 & Shuster Rd.'!J42 -> 0 | K42: ='[1]SR 32 & Shuster Rd.'!K42 -> 6 | L42: ='[1]SR 32 & Shuster Rd.'!L42 -> 0 | M42: ='[1]SR 32 & Shuster Rd.'!M42 -> 0 | N42: ='[1]SR 32 & Shuster Rd.'!N42 -> 0 | O42: ='[1]SR 32 & Shuster Rd.'!O42 -> 35 | P42: ='[1]SR 32 & Shuster Rd.'!P42+'[1]SR 32 & Germany Rd.'!P42 -> 4 | Q42: ='[1]SR 32 & Shuster Rd.'!Q42 -> 0 | S42: Movement Total | T42: =SUM(T32,T35,T38,T41) -> 22 | U42: 6 | V42: 55 | W42: 0 | X42: 8 | Y42: 202 | Z42: 0 | AA42: 0 | AB42: 2 | AC42: 13 | AD42: 10 | AE42: 0 | AF42: 6 | AG42: 174 | AH42: 29 | AI42: 0 | AK42: 0.4 | AL42: - | AM42: =IF(X$2=FALSE,LOOKUP((Y42+X42)/$AM$4,'Main Line Reduction Table'!$A$1:$B$21,'Main Line Reduction Table'!$C$1:$C$21),LOOKUP(Y42/$AM$4,'Main Line Reduction Table'!$A$1:$B$21,'Main Line Reduction Table'!$C$1:$C$21)) -> 0 | AN42: = | AO42: =AK42-AM42 -> 0.4 | AQ42: 0.2 | AR42: - | AS42: =IF(AF$2=FALSE,LOOKUP((AG42+AF42)/$AS$4,'Main Line Reduction Table'!$A$1:$B$21,'Main Line Reduction Table'!$C$1:$C$21),LOOKUP(AG42/$AS$4,'Main Line Reduction Table'!$A$1:$B$21,'Main Line Reduction Table'!$C$1:$C$21)) -> 0 | AT42: = | AU42: =AQ42-AS42 -> 0.2
A43: ='[1]SR 32 & Shuster Rd.'!A43 -> 09:00:00 | B43: ='[1]SR 32 & Shuster Rd.'!B43 -> 1 | C43: ='[1]SR 32 & Shuster Rd.'!C43 -> 0 | D43: ='[1]SR 32 & Shuster Rd.'!D43+'[1]SR 32 & Germany Rd.'!C43+'[1]SR 32 & Germany Rd.'!D43 -> 1 | E43: ='[1]SR 32 & Shuster Rd.'!E43 -> 0 | F43: ='[1]SR 32 & Shuster Rd.'!F43 -> 0 | G43: ='[1]SR 32 & Shuster Rd.'!G43 -> 8 | H43: ='[1]SR 32 & Shuster Rd.'!H43 -> 0 | I43: ='[1]SR 32 & Shuster Rd.'!I43 -> 0 | J43: ='[1]SR 32 & Shuster Rd.'!J43 -> 0 | K43: ='[1]SR 32 & Shuster Rd.'!K43 -> 0 | L43: ='[1]SR 32 & Shuster Rd.'!L43 -> 0 | M43: ='[1]SR 32 & Shuster Rd.'!M43 -> 0 | N43: ='[1]SR 32 & Shuster Rd.'!N43 -> 0 | O43: ='[1]SR 32 & Shuster Rd.'!O43 -> 9 | P43: ='[1]SR 32 & Shuster Rd.'!P43+'[1]SR 32 & Germany Rd.'!P43 -> 3 | Q43: ='[1]SR 32 & Shuster Rd.'!Q43 -> 0 | S43: Reduced Movement Total | T43: =T42*(1-AO42) -> 13.2 | U43: =(T42*(1-$AO42))+U42+V42 -> 74.2 | X43: =X42+Y42+Z42 -> 210 | AB43: =AB42*(1-AU42) -> 1.6 | AC43: =(AB42*(1-$AO42))+AC42+AD42 -> 24.2 | AF43: =AF42+AG42+AH42 -> 209
A44: ='[1]SR 32 & Shuster Rd.'!A44 -> 09:00:00 | B44: ='[1]SR 32 & Shuster Rd.'!B44 -> 0 | C44: ='[1]SR 32 & Shuster Rd.'!C44 -> 0 | D44: ='[1]SR 32 & Shuster Rd.'!D44+'[1]SR 32 & Germany Rd.'!C44+'[1]SR 32 & Germany Rd.'!D44 -> 0 | E44: ='[1]SR 32 & Shuster Rd.'!E44 -> 0 | F44: ='[1]SR 32 & Shuster Rd.'!F44 -> 0 | G44: ='[1]SR 32 & Shuster Rd.'!G44 -> 0 | H44: ='[1]SR 32 & Shuster Rd.'!H44 -> 0 | I44: ='[1]SR 32 & Shuster Rd.'!I44 -> 0 | J44: ='[1]SR 32 & Shuster Rd.'!J44 -> 0 | K44: ='[1]SR 32 & Shuster Rd.'!K44 -> 0 | L44: ='[1]SR 32 & Shuster Rd.'!L44 -> 0 | M44: ='[1]SR 32 & Shuster Rd.'!M44 -> 0 | N44: ='[1]SR 32 & Shuster Rd.'!N44 -> 0 | O44: ='[1]SR 32 & Shuster Rd.'!O44 -> 0 | P44: ='[1]SR 32 & Shuster Rd.'!P44+'[1]SR 32 & Germany Rd.'!P44 -> 0 | Q44: ='[1]SR 32 & Shuster Rd.'!Q44 -> 0 | S44: 09:00:00 | T44: =SUM(B42:B44) -> 3 | U44: 0 | V44: 15 | W44: 2 | X44: 3 | Y44: 36 | Z44: 1 | AA44: 0 | AB44: 0 | AC44: 6 | AD44: 0 | AE44: 0 | AF44: 0 | AG44: 44 | AH44: 7 | AI44: 0
A45: ='[1]SR 32 & Shuster Rd.'!A45 -> 09:15:00 | B45: ='[1]SR 32 & Shuster Rd.'!B45 -> 6 | C45: ='[1]SR 32 & Shuster Rd.'!C45 -> 3 | D45: ='[1]SR 32 & Shuster Rd.'!D45+'[1]SR 32 & Germany Rd.'!C45+'[1]SR 32 & Germany Rd.'!D45 -> 8 | E45: ='[1]SR 32 & Shuster Rd.'!E45 -> 0 | F45: ='[1]SR 32 & Shuster Rd.'!F45 -> 1 | G45: ='[1]SR 32 & Shuster Rd.'!G45 -> 17 | H45: ='[1]SR 32 & Shuster Rd.'!H45 -> 1 | I45: ='[1]SR 32 & Shuster Rd.'!I45 -> 0 | J45: ='[1]SR 32 & Shuster Rd.'!J45 -> 0 | K45: ='[1]SR 32 & Shuster Rd.'!K45 -> 3 | L45: ='[1]SR 32 & Shuster Rd.'!L45 -> 3 | M45: ='[1]SR 32 & Shuster Rd.'!M45 -> 0 | N45: ='[1]SR 32 & Shuster Rd.'!N45 -> 2 | O45: ='[1]SR 32 & Shuster Rd.'!O45 -> 28 | P45: ='[1]SR 32 & Shuster Rd.'!P45+'[1]SR 32 & Germany Rd.'!P45 -> 1 | Q45: ='[1]SR 32 & Shuster Rd.'!Q45 -> 0
A46: ='[1]SR 32 & Shuster Rd.'!A46 -> 09:15:00 | B46: ='[1]SR 32 & Shuster Rd.'!B46 -> 0 | C46: ='[1]SR 32 & Shuster Rd.'!C46 -> 0 | D46: ='[1]SR 32 & Shuster Rd.'!D46+'[1]SR 32 & Germany Rd.'!C46+'[1]SR 32 & Germany Rd.'!D46 -> 1 | E46: ='[1]SR 32 & Shuster Rd.'!E46 -> 0 | F46: ='[1]SR 32 & Shuster Rd.'!F46 -> 0 | G46: ='[1]SR 32 & Shuster Rd.'!G46 -> 11 | H46: ='[1]SR 32 & Shuster Rd.'!H46 -> 0 | I46: ='[1]SR 32 & Shuster Rd.'!I46 -> 0 | J46: ='[1]SR 32 & Shuster Rd.'!J46 -> 0 | K46: ='[1]SR 32 & Shuster Rd.'!K46 -> 0 | L46: ='[1]SR 32 & Shuster Rd.'!L46 -> 0 | M46: ='[1]SR 32 & Shuster Rd.'!M46 -> 0 | N46: ='[1]SR 32 & Shuster Rd.'!N46 -> 0 | O46: ='[1]SR 32 & Shuster Rd.'!O46 -> 16 | P46: ='[1]SR 32 & Shuster Rd.'!P46+'[1]SR 32 & Germany Rd.'!P46 -> 1 | Q46: ='[1]SR 32 & Shuster Rd.'!Q46 -> 0
A47: ='[1]SR 32 & Shuster Rd.'!A47 -> 09:15:00 | B47: ='[1]SR 32 & Shuster Rd.'!B47 -> 0 | C47: ='[1]SR 32 & Shuster Rd.'!C47 -> 0 | D47: ='[1]SR 32 & Shuster Rd.'!D47+'[1]SR 32 & Germany Rd.'!C47+'[1]SR 32 & Germany Rd.'!D47 -> 0 | E47: ='[1]SR 32 & Shuster Rd.'!E47 -> 0 | F47: ='[1]SR 32 & Shuster Rd.'!F47 -> 0 | G47: ='[1]SR 32 & Shuster Rd.'!G47 -> 0 | H47: ='[1]SR 32 & Shuster Rd.'!H47 -> 0 | I47: ='[1]SR 32 & Shuster Rd.'!I47 -> 0 | J47: ='[1]SR 32 & Shuster Rd.'!J47 -> 0 | K47: ='[1]SR 32 & Shuster Rd.'!K47 -> 0 | L47: ='[1]SR 32 & Shuster Rd.'!L47 -> 0 | M47: ='[1]SR 32 & Shuster Rd.'!M47 -> 0 | N47: ='[1]SR 32 & Shuster Rd.'!N47 -> 0 | O47: ='[1]SR 32 & Shuster Rd.'!O47 -> 0 | P47: ='[1]SR 32 & Shuster Rd.'!P47+'[1]SR 32 & Germany Rd.'!P47 -> 0 | Q47: ='[1]SR 32 & Shuster Rd.'!Q47 -> 0 | S47: 09:15:00 | T47: =SUM(B45:B47) -> 6 | U47: 3 | V47: 9 | W47: 0 | X47: 1 | Y47: 28 | Z47: 1 | AA47: 0 | AB47: 0 | AC47: 3 | AD47: 3 | AE47: 0 | AF47: 2 | AG47: 44 | AH47: 2 | AI47: 0
A48: ='[1]SR 32 & Shuster Rd.'!A48 -> 09:30:00 | B48: ='[1]SR 32 & Shuster Rd.'!B48 -> 0 | C48: ='[1]SR 32 & Shuster Rd.'!C48 -> 0 | D48: ='[1]SR 32 & Shuster Rd.'!D48+'[1]SR 32 & Germany Rd.'!C48+'[1]SR 32 & Germany Rd.'!D48 -> 9 | E48: ='[1]SR 32 & Shuster Rd.'!E48 -> 0 | F48: ='[1]SR 32 & Shuster Rd.'!F48 -> 1 | G48: ='[1]SR 32 & Shuster Rd.'!G48 -> 28 | H48: ='[1]SR 32 & Shuster Rd.'!H48 -> 0 | I48: ='[1]SR 32 & Shuster Rd.'!I48 -> 0 | J48: ='[1]SR 32 & Shuster Rd.'!J48 -> 1 | K48: ='[1]SR 32 & Shuster Rd.'!K48 -> 7 | L48: ='[1]SR 32 & Shuster Rd.'!L48 -> 1 | M48: ='[1]SR 32 & Shuster Rd.'!M48 -> 0 | N48: ='[1]SR 32 & Shuster Rd.'!N48 -> 1 | O48: ='[1]SR 32 & Shuster Rd.'!O48 -> 35 | P48: ='[1]SR 32 & Shuster Rd.'!P48+'[1]SR 32 & Germany Rd.'!P48 -> 1 | Q48: ='[1]SR 32 & Shuster Rd.'!Q48 -> 0
A49: ='[1]SR 32 & Shuster Rd.'!A49 -> 09:30:00 | B49: ='[1]SR 32 & Shuster Rd.'!B49 -> 1 | C49: ='[1]SR 32 & Shuster Rd.'!C49 -> 0 | D49: ='[1]SR 32 & Shuster Rd.'!D49+'[1]SR 32 & Germany Rd.'!C49+'[1]SR 32 & Germany Rd.'!D49 -> 1 | E49: ='[1]SR 32 & Shuster Rd.'!E49 -> 0 | F49: ='[1]SR 32 & Shuster Rd.'!F49 -> 0 | G49: ='[1]SR 32 & Shuster Rd.'!G49 -> 17 | H49: ='[1]SR 32 & Shuster Rd.'!H49 -> 0 | I49: ='[1]SR 32 & Shuster Rd.'!I49 -> 0 | J49: ='[1]SR 32 & Shuster Rd.'!J49 -> 0 | K49: ='[1]SR 32 & Shuster Rd.'!K49 -> 0 | L49: ='[1]SR 32 & Shuster Rd.'!L49 -> 0 | M49: ='[1]SR 32 & Shuster Rd.'!M49 -> 0 | N49: ='[1]SR 32 & Shuster Rd.'!N49 -> 0 | O49: ='[1]SR 32 & Shuster Rd.'!O49 -> 8 | P49: ='[1]SR 32 & Shuster Rd.'!P49+'[1]SR 32 & Germany Rd.'!P49 -> 1 | Q49: ='[1]SR 32 & Shuster Rd.'!Q49 -> 0
A50: ='[1]SR 32 & Shuster Rd.'!A50 -> 09:30:00 | B50: ='[1]SR 32 & Shuster Rd.'!B50 -> 0 | C50: ='[1]SR 32 & Shuster Rd.'!C50 -> 0 | D50: ='[1]SR 32 & Shuster Rd.'!D50+'[1]SR 32 & Germany Rd.'!C50+'[1]SR 32 & Germany Rd.'!D50 -> 0 | E50: ='[1]SR 32 & Shuster Rd.'!E50 -> 0 | F50: ='[1]SR 32 & Shuster Rd.'!F50 -> 0 | G50: ='[1]SR 32 & Shuster Rd.'!G50 -> 0 | H50: ='[1]SR 32 & Shuster Rd.'!H50 -> 0 | I50: ='[1]SR 32 & Shuster Rd.'!I50 -> 0 | J50: ='[1]SR 32 & Shuster Rd.'!J50 -> 0 | K50: ='[1]SR 32 & Shuster Rd.'!K50 -> 0 | L50: ='[1]SR 32 & Shuster Rd.'!L50 -> 0 | M50: ='[1]SR 32 & Shuster Rd.'!M50 -> 0 | N50: ='[1]SR 32 & Shuster Rd.'!N50 -> 0 | O50: ='[1]SR 32 & Shuster Rd.'!O50 -> 0 | P50: ='[1]SR 32 & Shuster Rd.'!P50+'[1]SR 32 & Germany Rd.'!P50 -> 0 | Q50: ='[1]SR 32 & Shuster Rd.'!Q50 -> 0 | S50: 09:30:00 | T50: =SUM(B48:B50) -> 1 | U50: 0 | V50: 10 | W50: 0 | X50: 1 | Y50: 45 | Z50: 0 | AA50: 0 | AB50: 1 | AC50: 7 | AD50: 1 | AE50: 0 | AF50: 1 | AG50: 43 | AH50: 2 | AI50: 0
A51: ='[1]SR 32 & Shuster Rd.'!A51 -> 09:45:00 | B51: ='[1]SR 32 & Shuster Rd.'!B51 -> 3 | C51: ='[1]SR 32 & Shuster Rd.'!C51 -> 2 | D51: ='[1]SR 32 & Shuster Rd.'!D51+'[1]SR 32 & Germany Rd.'!C51+'[1]SR 32 & Germany Rd.'!D51 -> 10 | E51: ='[1]SR 32 & Shuster Rd.'!E51 -> 0 | F51: ='[1]SR 32 & Shuster Rd.'!F51 -> 1 | G51: ='[1]SR 32 & Shuster Rd.'!G51 -> 27 | H51: ='[1]SR 32 & Shuster Rd.'!H51 -> 1 | I51: ='[1]SR 32 & Shuster Rd.'!I51 -> 0 | J51: ='[1]SR 32 & Shuster Rd.'!J51 -> 1 | K51: ='[1]SR 32 & Shuster Rd.'!K51 -> 4 | L51: ='[1]SR 32 & Shuster Rd.'!L51 -> 1 | M51: ='[1]SR 32 & Shuster Rd.'!M51 -> 0 | N51: ='[1]SR 32 & Shuster Rd.'!N51 -> 1 | O51: ='[1]SR 32 & Shuster Rd.'!O51 -> 39 | P51: ='[1]SR 32 & Shuster Rd.'!P51+'[1]SR 32 & Germany Rd.'!P51 -> 3 | Q51: ='[1]SR 32 & Shuster Rd.'!Q51 -> 0
A52: ='[1]SR 32 & Shuster Rd.'!A52 -> 09:45:00 | B52: ='[1]SR 32 & Shuster Rd.'!B52 -> 1 | C52: ='[1]SR 32 & Shuster Rd.'!C52 -> 1 | D52: ='[1]SR 32 & Shuster Rd.'!D52+'[1]SR 32 & Germany Rd.'!C52+'[1]SR 32 & Germany Rd.'!D52 -> 0 | E52: ='[1]SR 32 & Shuster Rd.'!E52 -> 0 | F52: ='[1]SR 32 & Shuster Rd.'!F52 -> 1 | G52: ='[1]SR 32 & Shuster Rd.'!G52 -> 14 | H52: ='[1]SR 32 & Shuster Rd.'!H52 -> 0 | I52: ='[1]SR 32 & Shuster Rd.'!I52 -> 0 | J52: ='[1]SR 32 & Shuster Rd.'!J52 -> 0 | K52: ='[1]SR 32 & Shuster Rd.'!K52 -> 0 | L52: ='[1]SR 32 & Shuster Rd.'!L52 -> 0 | M52: ='[1]SR 32 & Shuster Rd.'!M52 -> 0 | N52: ='[1]SR 32 & Shuster Rd.'!N52 -> 0 | O52: ='[1]SR 32 & Shuster Rd.'!O52 -> 4 | P52: ='[1]SR 32 & Shuster Rd.'!P52+'[1]SR 32 & Germany Rd.'!P52 -> 0 | Q52: ='[1]SR 32 & Shuster Rd.'!Q52 -> 0
A53: ='[1]SR 32 & Shuster Rd.'!A53 -> 09:45:00 | B53: ='[1]SR 32 & Shuster Rd.'!B53 -> 0 | C53: ='[1]SR 32 & Shuster Rd.'!C53 -> 0 | D53: ='[1]SR 32 & Shuster Rd.'!D53+'[1]SR 32 & Germany Rd.'!C53+'[1]SR 32 & Germany Rd.'!D53 -> 0 | E53: ='[1]SR 32 & Shuster Rd.'!E53 -> 0 | F53: ='[1]SR 32 & Shuster Rd.'!F53 -> 0 | G53: ='[1]SR 32 & Shuster Rd.'!G53 -> 0 | H53: ='[1]SR 32 & Shuster Rd.'!H53 -> 0 | I53: ='[1]SR 32 & Shuster Rd.'!I53 -> 0 | J53: ='[1]SR 32 & Shuster Rd.'!J53 -> 0 | K53: ='[1]SR 32 & Shuster Rd.'!K53 -> 0 | L53: ='[1]SR 32 & Shuster Rd.'!L53 -> 0 | M53: ='[1]SR 32 & Shuster Rd.'!M53 -> 0 | N53: ='[1]SR 32 & Shuster Rd.'!N53 -> 0 | O53: ='[1]SR 32 & Shuster Rd.'!O53 -> 0 | P53: ='[1]SR 32 & Shuster Rd.'!P53+'[1]SR 32 & Germany Rd.'!P53 -> 0 | Q53: ='[1]SR 32 & Shuster Rd.'!Q53 -> 0 | S53: 09:45:00 | T53: =SUM(B51:B53) -> 4 | U53: 3 | V53: 10 | W53: 0 | X53: 2 | Y53: 41 | Z53: 1 | AA53: 0 | AB53: 1 | AC53: 4 | AD53: 1 | AE53: 0 | AF53: 1 | AG53: 43 | AH53: 3 | AI53: 0
A54: ='[1]SR 32 & Shuster Rd.'!A54 -> 10:00:00 | B54: ='[1]SR 32 & Shuster Rd.'!B54 -> 2 | C54: ='[1]SR 32 & Shuster Rd.'!C54 -> 2 | D54: ='[1]SR 32 & Shuster Rd.'!D54+'[1]SR 32 & Germany Rd.'!C54+'[1]SR 32 & Germany Rd.'!D54 -> 14 | E54: ='[1]SR 32 & Shuster Rd.'!E54 -> 0 | F54: ='[1]SR 32 & Shuster Rd.'!F54 -> 1 | G54: ='[1]SR 32 & Shuster Rd.'!G54 -> 28 | H54: ='[1]SR 32 & Shuster Rd.'!H54 -> 0 | I54: ='[1]SR 32 & Shuster Rd.'!I54 -> 0 | J54: ='[1]SR 32 & Shuster Rd.'!J54 -> 0 | K54: ='[1]SR 32 & Shuster Rd.'!K54 -> 5 | L54: ='[1]SR 32 & Shuster Rd.'!L54 -> 1 | M54: ='[1]SR 32 & Shuster Rd.'!M54 -> 0 | N54: ='[1]SR 32 & Shuster Rd.'!N54 -> 0 | O54: ='[1]SR 32 & Shuster Rd.'!O54 -> 20 | P54: ='[1]SR 32 & Shuster Rd.'!P54+'[1]SR 32 & Germany Rd.'!P54 -> 2 | Q54: ='[1]SR 32 & Shuster Rd.'!Q54 -> 0 | S54: Movement Total | T54: =SUM(T44,T47,T50,T53) -> 14 | U54: 6 | V54: 44 | W54: 2 | X54: 7 | Y54: 150 | Z54: 3 | AA54: 0 | AB54: 2 | AC54: 20 | AD54: 5 | AE54: 0 | AF54: 4 | AG54: 174 | AH54: 14 | AI54: 0 | AK54: 0.2 | AL54: - | AM54: =IF(X$2=FALSE,LOOKUP((Y54+X54)/$AM$4,'Main Line Reduction Table'!$A$1:$B$21,'Main Line Reduction Table'!$C$1:$C$21),LOOKUP(Y54/$AM$4,'Main Line Reduction Table'!$A$1:$B$21,'Main Line Reduction Table'!$C$1:$C$21)) -> 0 | AN54: = | AO54: =AK54-AM54 -> 0.2 | AQ54: 0.2 | AR54: - | AS54: =IF(AF$2=FALSE,LOOKUP((AG54+AF54)/$AS$4,'Main Line Reduction Table'!$A$1:$B$21,'Main Line Reduction Table'!$C$1:$C$21),LOOKUP(AG54/$AS$4,'Main Line Reduction Table'!$A$1:$B$21,'Main Line Reduction Table'!$C$1:$C$21)) -> 0 | AT54: = | AU54: =AQ54-AS54 -> 0.2
A55: ='[1]SR 32 & Shuster Rd.'!A55 -> 10:00:00 | B55: ='[1]SR 32 & Shuster Rd.'!B55 -> 3 | C55: ='[1]SR 32 & Shuster Rd.'!C55 -> 0 | D55: ='[1]SR 32 & Shuster Rd.'!D55+'[1]SR 32 & Germany Rd.'!C55+'[1]SR 32 & Germany Rd.'!D55 -> 0 | E55: ='[1]SR 32 & Shuster Rd.'!E55 -> 0 | F55: ='[1]SR 32 & Shuster Rd.'!F55 -> 0 | G55: ='[1]SR 32 & Shuster Rd.'!G55 -> 10 | H55: ='[1]SR 32 & Shuster Rd.'!H55 -> 1 | I55: ='[1]SR 32 & Shuster Rd.'!I55 -> 0 | J55: ='[1]SR 32 & Shuster Rd.'!J55 -> 0 | K55: ='[1]SR 32 & Shuster Rd.'!K55 -> 0 | L55: ='[1]SR 32 & Shuster Rd.'!L55 -> 0 | M55: ='[1]SR 32 & Shuster Rd.'!M55 -> 0 | N55: ='[1]SR 32 & Shuster Rd.'!N55 -> 0 | O55: ='[1]SR 32 & Shuster Rd.'!O55 -> 7 | P55: ='[1]SR 32 & Shuster Rd.'!P55+'[1]SR 32 & Germany Rd.'!P55 -> 3 | Q55: ='[1]SR 32 & Shuster Rd.'!Q55 -> 0 | S55: Reduced Movement Total | T55: =T54*(1-AO54) -> 11.2 | U55: =(T54*(1-$AO54))+U54+V54 -> 61.2 | X55: =X54+Y54+Z54 -> 160 | AB55: =AB54*(1-AU54) -> 1.6 | AC55: =(AB54*(1-$AO54))+AC54+AD54 -> 26.6 | AF55: =AF54+AG54+AH54 -> 192
A56: ='[1]SR 32 & Shuster Rd.'!A56 -> 10:00:00 | B56: ='[1]SR 32 & Shuster Rd.'!B56 -> 0 | C56: ='[1]SR 32 & Shuster Rd.'!C56 -> 0 | D56: ='[1]SR 32 & Shuster Rd.'!D56+'[1]SR 32 & Germany Rd.'!C56+'[1]SR 32 & Germany Rd.'!D56 -> 0 | E56: ='[1]SR 32 & Shuster Rd.'!E56 -> 0 | F56: ='[1]SR 32 & Shuster Rd.'!F56 -> 0 | G56: ='[1]SR 32 & Shuster Rd.'!G56 -> 0 | H56: ='[1]SR 32 & Shuster Rd.'!H56 -> 0 | I56: ='[1]SR 32 & Shuster Rd.'!I56 -> 0 | J56: ='[1]SR 32 & Shuster Rd.'!J56 -> 0 | K56: ='[1]SR 32 & Shuster Rd.'!K56 -> 0 | L56: ='[1]SR 32 & Shuster Rd.'!L56 -> 0 | M56: ='[1]SR 32 & Shuster Rd.'!M56 -> 0 | N56: ='[1]SR 32 & Shuster Rd.'!N56 -> 0 | O56: ='[1]SR 32 & Shuster Rd.'!O56 -> 0 | P56: ='[1]SR 32 & Shuster Rd.'!P56+'[1]SR 32 & Germany Rd.'!P56 -> 0 | Q56: ='[1]SR 32 & Shuster Rd.'!Q56 -> 0 | S56: 10:00:00 | T56: =SUM(B54:B56) -> 5 | U56: 2 | V56: 14 | W56: 0 | X56: 1 | Y56: 38 | Z56: 1 | AA56: 0 | AB56: 0 | AC56: 5 | AD56: 1 | AE56: 0 | AF56: 0 | AG56: 27 | AH56: 5 | AI56: 0
A57: ='[1]SR 32 & Shuster Rd.'!A57 -> 10:15:00 | B57: ='[1]SR 32 & Shuster Rd.'!B57 -> 0 | C57: ='[1]SR 32 & Shuster Rd.'!C57 -> 3 | D57: ='[1]SR 32 & Shuster Rd.'!D57+'[1]SR 32 & Germany Rd.'!C57+'[1]SR 32 & Germany Rd.'!D57 -> 22 | E57: ='[1]SR 32 & Shuster Rd.'!E57 -> 0 | F57: ='[1]SR 32 & Shuster Rd.'!F57 -> 1 | G57: ='[1]SR 32 & Shuster Rd.'!G57 -> 22 | H57: ='[1]SR 32 & Shuster Rd.'!H57 -> 0 | I57: ='[1]SR 32 & Shuster Rd.'!I57 -> 0 | J57: ='[1]SR 32 & Shuster Rd.'!J57 -> 0 | K57: ='[1]SR 32 & Shuster Rd.'!K57 -> 2 | L57: ='[1]SR 32 & Shuster Rd.'!L57 -> 2 | M57: ='[1]SR 32 & Shuster Rd.'!M57 -> 0 | N57: ='[1]SR 32 & Shuster Rd.'!N57 -> 1 | O57: ='[1]SR 32 & Shuster Rd.'!O57 -> 26 | P57: ='[1]SR 32 & Shuster Rd.'!P57+'[1]SR 32 & Germany Rd.'!P57 -> 3 | Q57: ='[1]SR 32 & Shuster Rd.'!Q57 -> 0
A58: ='[1]SR 32 & Shuster Rd.'!A58 -> 10:15:00 | B58: ='[1]SR 32 & Shuster Rd.'!B58 -> 0 | C58: ='[1]SR 32 & Shuster Rd.'!C58 -> 0 | D58: ='[1]SR 32 & Shuster Rd.'!D58+'[1]SR 32 & Germany Rd.'!C58+'[1]SR 32 & Germany Rd.'!D58 -> 1 | E58: ='[1]SR 32 & Shuster Rd.'!E58 -> 0 | F58: ='[1]SR 32 & Shuster Rd.'!F58 -> 0 | G58: ='[1]SR 32 & Shuster Rd.'!G58 -> 5 | H58: ='[1]SR 32 & Shuster Rd.'!H58 -> 0 | I58: ='[1]SR 32 & Shuster Rd.'!I58 -> 0 | J58: ='[1]SR 32 & Shuster Rd.'!J58 -> 0 | K58: ='[1]SR 32 & Shuster Rd.'!K58 -> 1 | L58: ='[1]SR 32 & Shuster Rd.'!L58 -> 0 | M58: ='[1]SR 32 & Shuster Rd.'!M58 -> 0 | N58: ='[1]SR 32 & Shuster Rd.'!N58 -> 0 | O58: ='[1]SR 32 & Shuster Rd.'!O58 -> 10 | P58: ='[1]SR 32 & Shuster Rd.'!P58+'[1]SR 32 & Germany Rd.'!P58 -> 1 | Q58: ='[1]SR 32 & Shuster Rd.'!Q58 -> 0
A59: ='[1]SR 32 & Shuster Rd.'!A59 -> 10:15:00 | B59: ='[1]SR 32 & Shuster Rd.'!B59 -> 0 | C59: ='[1]SR 32 & Shuster Rd.'!C59 -> 0 | D59: ='[1]SR 32 & Shuster Rd.'!D59+'[1]SR 32 & Germany Rd.'!C59+'[1]SR 32 & Germany Rd.'!D59 -> 0 | E59: ='[1]SR 32 & Shuster Rd.'!E59 -> 0 | F59: ='[1]SR 32 & Shuster Rd.'!F59 -> 0 | G59: ='[1]SR 32 & Shuster Rd.'!G59 -> 0 | H59: ='[1]SR 32 & Shuster Rd.'!H59 -> 0 | I59: ='[1]SR 32 & Shuster Rd.'!I59 -> 0 | J59: ='[1]SR 32 & Shuster Rd.'!J59 -> 0 | K59: ='[1]SR 32 & Shuster Rd.'!K59 -> 0 | L59: ='[1]SR 32 & Shuster Rd.'!L59 -> 0 | M59: ='[1]SR 32 & Shuster Rd.'!M59 -> 0 | N59: ='[1]SR 32 & Shuster Rd.'!N59 -> 0 | O59: ='[1]SR 32 & Shuster Rd.'!O59 -> 0 | P59: ='[1]SR 32 & Shuster Rd.'!P59+'[1]SR 32 & Germany Rd.'!P59 -> 0 | Q59: ='[1]SR 32 & Shuster Rd.'!Q59 -> 0 | S59: 10:15:00 | T59: =SUM(B57:B59) -> 0 | U59: 3 | V59: 23 | W59: 0 | X59: 1 | Y59: 27 | Z59: 0 | AA59: 0 | AB59: 0 | AC59: 3 | AD59: 2 | AE59: 0 | AF59: 1 | AG59: 36 | AH59: 4 | AI59: 0
A60: ='[1]SR 32 & Shuster Rd.'!A60 -> 10:30:00 | B60: ='[1]SR 32 & Shuster Rd.'!B60 -> 1 | C60: ='[1]SR 32 & Shuster Rd.'!C60 -> 3 | D60: ='[1]SR 32 & Shuster Rd.'!D60+'[1]SR 32 & Germany Rd.'!C60+'[1]SR 32 & Germany Rd.'!D60 -> 14 | E60: ='[1]SR 32 & Shuster Rd.'!E60 -> 0 | F60: ='[1]SR 32 & Shuster Rd.'!F60 -> 2 | G60: ='[1]SR 32 & Shuster Rd.'!G60 -> 32 | H60: ='[1]SR 32 & Shuster Rd.'!H60 -> 0 | I60: ='[1]SR 32 & Shuster Rd.'!I60 -> 0 | J60: ='[1]SR 32 & Shuster Rd.'!J60 -> 1 | K60: ='[1]SR 32 & Shuster Rd.'!K60 -> 5 | L60: ='[1]SR 32 & Shuster Rd.'!L60 -> 0 | M60: ='[1]SR 32 & Shuster Rd.'!M60 -> 0 | N60: ='[1]SR 32 & Shuster Rd.'!N60 -> 3 | O60: ='[1]SR 32 & Shuster Rd.'!O60 -> 37 | P60: ='[1]SR 32 & Shuster Rd.'!P60+'[1]SR 32 & Germany Rd.'!P60 -> 3 | Q60: ='[1]SR 32 & Shuster Rd.'!Q60 -> 0
A61: ='[1]SR 32 & Shuster Rd.'!A61 -> 10:30:00 | B61: ='[1]SR 32 & Shuster Rd.'!B61 -> 2 | C61: ='[1]SR 32 & Shuster Rd.'!C61 -> 0 | D61: ='[1]SR 32 & Shuster Rd.'!D61+'[1]SR 32 & Germany Rd.'!C61+'[1]SR 32 & Germany Rd.'!D61 -> 1 | E61: ='[1]SR 32 & Shuster Rd.'!E61 -> 0 | F61: ='[1]SR 32 & Shuster Rd.'!F61 -> 0 | G61: ='[1]SR 32 & Shuster Rd.'!G61 -> 12 | H61: ='[1]SR 32 & Shuster Rd.'!H61 -> 0 | I61: ='[1]SR 32 & Shuster Rd.'!I61 -> 0 | J61: ='[1]SR 32 & Shuster Rd.'!J61 -> 0 | K61: ='[1]SR 32 & Shuster Rd.'!K61 -> 0 | L61: ='[1]SR 32 & Shuster Rd.'!L61 -> 0 | M61: ='[1]SR 32 & Shuster Rd.'!M61 -> 0 | N61: ='[1]SR 32 & Shuster Rd.'!N61 -> 0 | O61: ='[1]SR 32 & Shuster Rd.'!O61 -> 16 | P61: ='[1]SR 32 & Shuster Rd.'!P61+'[1]SR 32 & Germany Rd.'!P61 -> 3 | Q61: ='[1]SR 32 & Shuster Rd.'!Q61 -> 0
A62: ='[1]SR 32 & Shuster Rd.'!A62 -> 10:30:00 | B62: ='[1]SR 32 & Shuster Rd.'!B62 -> 0 | C62: ='[1]SR 32 & Shuster Rd.'!C62 -> 0 | D62: ='[1]SR 32 & Shuster Rd.'!D62+'[1]SR 32 & Germany Rd.'!C62+'[1]SR 32 & Germany Rd.'!D62 -> 0 | E62: ='[1]SR 32 & Shuster Rd.'!E62 -> 0 | F62: ='[1]SR 32 & Shuster Rd.'!F62 -> 0 | G62: ='[1]SR 32 & Shuster Rd.'!G62 -> 0 | H62: ='[1]SR 32 & Shuster Rd.'!H62 -> 0 | I62: ='[1]SR 32 & Shuster Rd.'!I62 -> 0 | J62: ='[1]SR 32 & Shuster Rd.'!J62 -> 0 | K62: ='[1]SR 32 & Shuster Rd.'!K62 -> 0 | L62: ='[1]SR 32 & Shuster Rd.'!L62 -> 0 | M62: ='[1]SR 32 & Shuster Rd.'!M62 -> 0 | N62: ='[1]SR 32 & Shuster Rd.'!N62 -> 0 | O62: ='[1]SR 32 & Shuster Rd.'!O62 -> 0 | P62: ='[1]SR 32 & Shuster Rd.'!P62+'[1]SR 32 & Germany Rd.'!P62 -> 0 | Q62: ='[1]SR 32 & Shuster Rd.'!Q62 -> 0 | S62: 10:30:00 | T62: =SUM(B60:B62) -> 3 | U62: 3 | V62: 15 | W62: 0 | X62: 2 | Y62: 44 | Z62: 0 | AA62: 0 | AB62: 1 | AC62: 5 | AD62: 0 | AE62: 0 | AF62: 3 | AG62: 53 | AH62: 6 | AI62: 0
A63: ='[1]SR 32 & Shuster Rd.'!A63 -> 10:45:00 | B63: ='[1]SR 32 & Shuster Rd.'!B63 -> 5 | C63: ='[1]SR 32 & Shuster Rd.'!C63 -> 1 | D63: ='[1]SR 32 & Shuster Rd.'!D63+'[1]SR 32 & Germany Rd.'!C63+'[1]SR 32 & Germany Rd.'!D63 -> 15 | E63: ='[1]SR 32 & Shuster Rd.'!E63 -> 0 | F63: ='[1]SR 32 & Shuster Rd.'!F63 -> 1 | G63: ='[1]SR 32 & Shuster Rd.'!G63 -> 40 | H63: ='[1]SR 32 & Shuster Rd.'!H63 -> 0 | I63: ='[1]SR 32 & Shuster Rd.'!I63 -> 0 | J63: ='[1]SR 32 & Shuster Rd.'!J63 -> 1 | K63: ='[1]SR 32 & Shuster Rd.'!K63 -> 2 | L63: ='[1]SR 32 & Shuster Rd.'!L63 -> 3 | M63: ='[1]SR 32 & Shuster Rd.'!M63 -> 0 | N63: ='[1]SR 32 & Shuster Rd.'!N63 -> 0 | O63: ='[1]SR 32 & Shuster Rd.'!O63 -> 38 | P63: ='[1]SR 32 & Shuster Rd.'!P63+'[1]SR 32 & Germany Rd.'!P63 -> 2 | Q63: ='[1]SR 32 & Shuster Rd.'!Q63 -> 0
A64: ='[1]SR 32 & Shuster Rd.'!A64 -> 10:45:00 | B64: ='[1]SR 32 & Shuster Rd.'!B64 -> 4 | C64: ='[1]SR 32 & Shuster Rd.'!C64 -> 0 | D64: ='[1]SR 32 & Shuster Rd.'!D64+'[1]SR 32 & Germany Rd.'!C64+'[1]SR 32 & Germany Rd.'!D64 -> 0 | E64: ='[1]SR 32 & Shuster Rd.'!E64 -> 0 | F64: ='[1]SR 32 & Shuster Rd.'!F64 -> 0 | G64: ='[1]SR 32 & Shuster Rd.'!G64 -> 6 | H64: ='[1]SR 32 & Shuster Rd.'!H64 -> 0 | I64: ='[1]SR 32 & Shuster Rd.'!I64 -> 0 | J64: ='[1]SR 32 & Shuster Rd.'!J64 -> 0 | K64: ='[1]SR 32 & Shuster Rd.'!K64 -> 0 | L64: ='[1]SR 32 & Shuster Rd.'!L64 -> 0 | M64: ='[1]SR 32 & Shuster Rd.'!M64 -> 0 | N64: ='[1]SR 32 & Shuster Rd.'!N64 -> 0 | O64: ='[1]SR 32 & Shuster Rd.'!O64 -> 17 | P64: ='[1]SR 32 & Shuster Rd.'!P64+'[1]SR 32 & Germany Rd.'!P64 -> 3 | Q64: ='[1]SR 32 & Shuster Rd.'!Q64 -> 0
A65: ='[1]SR 32 & Shuster Rd.'!A65 -> 10:45:00 | B65: ='[1]SR 32 & Shuster Rd.'!B65 -> 0 | C65: ='[1]SR 32 & Shuster Rd.'!C65 -> 0 | D65: ='[1]SR 32 & Shuster Rd.'!D65+'[1]SR 32 & Germany Rd.'!C65+'[1]SR 32 & Germany Rd.'!D65 -> 0 | E65: ='[1]SR 32 & Shuster Rd.'!E65 -> 0 | F65: ='[1]SR 32 & Shuster Rd.'!F65 -> 0 | G65: ='[1]SR 32 & Shuster Rd.'!G65 -> 0 | H65: ='[1]SR 32 & Shuster Rd.'!H65 -> 0 | I65: ='[1]SR 32 & Shuster Rd.'!I65 -> 0 | J65: ='[1]SR 32 & Shuster Rd.'!J65 -> 0 | K65: ='[1]SR 32 & Shuster Rd.'!K65 -> 0 | L65: ='[1]SR 32 & Shuster Rd.'!L65 -> 0 | M65: ='[1]SR 32 & Shuster Rd.'!M65 -> 0 | N65: ='[1]SR 32 & Shuster Rd.'!N65 -> 0 | O65: ='[1]SR 32 & Shuster Rd.'!O65 -> 0 | P65: ='[1]SR 32 & Shuster Rd.'!P65+'[1]SR 32 & Germany Rd.'!P65 -> 0 | Q65: ='[1]SR 32 & Shuster Rd.'!Q65 -> 0 | S65: 10:45:00 | T65: =SUM(B63:B65) -> 9 | U65: 1 | V65: 15 | W65: 0 | X65: 1 | Y65: 46 | Z65: 0 | AA65: 0 | AB65: 1 | AC65: 2 | AD65: 3 | AE65: 0 | AF65: 0 | AG65: 55 | AH65: 5 | AI65: 0
A66: ='[1]SR 32 & Shuster Rd.'!A66 -> 11:00:00 | B66: ='[1]SR 32 & Shuster Rd.'!B66 -> 1 | C66: ='[1]SR 32 & Shuster Rd.'!C66 -> 1 | D66: ='[1]SR 32 & Shuster Rd.'!D66+'[1]SR 32 & Germany Rd.'!C66+'[1]SR 32 & Germany Rd.'!D66 -> 16 | E66: ='[1]SR 32 & Shuster Rd.'!E66 -> 0 | F66: ='[1]SR 32 & Shuster Rd.'!F66 -> 0 | G66: ='[1]SR 32 & Shuster Rd.'!G66 -> 28 | H66: ='[1]SR 32 & Shuster Rd.'!H66 -> 0 | I66: ='[1]SR 32 & Shuster Rd.'!I66 -> 0 | J66: ='[1]SR 32 & Shuster Rd.'!J66 -> 0 | K66: ='[1]SR 32 & Shuster Rd.'!K66 -> 3 | L66: ='[1]SR 32 & Shuster Rd.'!L66 -> 0 | M66: ='[1]SR 32 & Shuster Rd.'!M66 -> 0 | N66: ='[1]SR 32 & Shuster Rd.'!N66 -> 1 | O66: ='[1]SR 32 & Shuster Rd.'!O66 -> 37 | P66: ='[1]SR 32 & Shuster Rd.'!P66+'[1]SR 32 & Germany Rd.'!P66 -> 2 | Q66: ='[1]SR 32 & Shuster Rd.'!Q66 -> 0 | S66: Movement Total | T66: =SUM(T56,T59,T62,T65) -> 17 | U66: 9 | V66: 67 | W66: 0 | X66: 5 | Y66: 155 | Z66: 1 | AA66: 0 | AB66: 2 | AC66: 15 | AD66: 6 | AE66: 0 | AF66: 4 | AG66: 171 | AH66: 20 | AI66: 0 | AK66: 0.2 | AL66: - | AM66: =IF(X$2=FALSE,LOOKUP((Y66+X66)/$AM$4,'Main Line Reduction Table'!$A$1:$B$21,'Main Line Reduction Table'!$C$1:$C$21),LOOKUP(Y66/$AM$4,'Main Line Reduction Table'!$A$1:$B$21,'Main Line Reduction Table'!$C$1:$C$21)) -> 0 | AN66: = | AO66: =AK66-AM66 -> 0.2 | AQ66: 0.2 | AR66: - | AS66: =IF(AF$2=FALSE,LOOKUP((AG66+AF66)/$AS$4,'Main Line Reduction Table'!$A$1:$B$21,'Main Line Reduction Table'!$C$1:$C$21),LOOKUP(AG66/$AS$4,'Main Line Reduction Table'!$A$1:$B$21,'Main Line Reduction Table'!$C$1:$C$21)) -> 0 | AT66: = | AU66: =AQ66-AS66 -> 0.2
A67: ='[1]SR 32 & Shuster Rd.'!A67 -> 11:00:00 | B67: ='[1]SR 32 & Shuster Rd.'!B67 -> 1 | C67: ='[1]SR 32 & Shuster Rd.'!C67 -> 0 | D67: ='[1]SR 32 & Shuster Rd.'!D67+'[1]SR 32 & Germany Rd.'!C67+'[1]SR 32 & Germany Rd.'!D67 -> 2 | E67: ='[1]SR 32 & Shuster Rd.'!E67 -> 0 | F67: ='[1]SR 32 & Shuster Rd.'!F67 -> 0 | G67: ='[1]SR 32 & Shuster Rd.'!G67 -> 8 | H67: ='[1]SR 32 & Shuster Rd.'!H67 -> 0 | I67: ='[1]SR 32 & Shuster Rd.'!I67 -> 0 | J67: ='[1]SR 32 & Shuster Rd.'!J67 -> 0 | K67: ='[1]SR 32 & Shuster Rd.'!K67 -> 0 | L67: ='[1]SR 32 & Shuster Rd.'!L67 -> 0 | M67: ='[1]SR 32 & Shuster Rd.'!M67 -> 0 | N67: ='[1]SR 32 & Shuster Rd.'!N67 -> 0 | O67: ='[1]SR 32 & Shuster Rd.'!O67 -> 10 | P67: ='[1]SR 32 & Shuster Rd.'!P67+'[1]SR 32 & Germany Rd.'!P67 -> 2 | Q67: ='[1]SR 32 & Shuster Rd.'!Q67 -> 0 | S67: Reduced Movement Total | T67: =T66*(1-AO66) -> 13.6 | U67: =(T66*(1-$AO66))+U66+V66 -> 89.6 | X67: =X66+Y66+Z66 -> 161 | AB67: =AB66*(1-AU66) -> 1.6 | AC67: =(AB66*(1-$AO66))+AC66+AD66 -> 22.6 | AF67: =AF66+AG66+AH66 -> 195
A68: ='[1]SR 32 & Shuster Rd.'!A68 -> 11:00:00 | B68: ='[1]SR 32 & Shuster Rd.'!B68 -> 0 | C68: ='[1]SR 32 & Shuster Rd.'!C68 -> 0 | D68: ='[1]SR 32 & Shuster Rd.'!D68+'[1]SR 32 & Germany Rd.'!C68+'[1]SR 32 & Germany Rd.'!D68 -> 0 | E68: ='[1]SR 32 & Shuster Rd.'!E68 -> 0 | F68: ='[1]SR 32 & Shuster Rd.'!F68 -> 0 | G68: ='[1]SR 32 & Shuster Rd.'!G68 -> 0 | H68: ='[1]SR 32 & Shuster Rd.'!H68 -> 0 | I68: ='[1]SR 32 & Shuster Rd.'!I68 -> 0 | J68: ='[1]SR 32 & Shuster Rd.'!J68 -> 0 | K68: ='[1]SR 32 & Shuster Rd.'!K68 -> 0 | L68: ='[1]SR 32 & Shuster Rd.'!L68 -> 0 | M68: ='[1]SR 32 & Shuster Rd.'!M68 -> 0 | N68: ='[1]SR 32 & Shuster Rd.'!N68 -> 0 | O68: ='[1]SR 32 & Shuster Rd.'!O68 -> 0 | P68: ='[1]SR 32 & Shuster Rd.'!P68+'[1]SR 32 & Germany Rd.'!P68 -> 0 | Q68: ='[1]SR 32 & Shuster Rd.'!Q68 -> 0 | S68: 11:00:00 | T68: =SUM(B66:B68) -> 2 | U68: 1 | V68: 18 | W68: 0 | X68: 0 | Y68: 36 | Z68: 0 | AA68: 0 | AB68: 0 | AC68: 3 | AD68: 0 | AE68: 0 | AF68: 1 | AG68: 47 | AH68: 4 | AI68: 0
A69: ='[1]SR 32 & Shuster Rd.'!A69 -> 11:15:00 | B69: ='[1]SR 32 & Shuster Rd.'!B69 -> 2 | C69: ='[1]SR 32 & Shuster Rd.'!C69 -> 2 | D69: ='[1]SR 32 & Shuster Rd.'!D69+'[1]SR 32 & Germany Rd.'!C69+'[1]SR 32 & Germany Rd.'!D69 -> 10 | E69: ='[1]SR 32 & Shuster Rd.'!E69 -> 0 | F69: ='[1]SR 32 & Shuster Rd.'!F69 -> 3 | G69: ='[1]SR 32 & Shuster Rd.'!G69 -> 39 | H69: ='[1]SR 32 & Shuster Rd.'!H69 -> 0 | I69: ='[1]SR 32 & Shuster Rd.'!I69 -> 0 | J69: ='[1]SR 32 & Shuster Rd.'!J69 -> 0 | K69: ='[1]SR 32 & Shuster Rd.'!K69 -> 4 | L69: ='[1]SR 32 & Shuster Rd.'!L69 -> 1 | M69: ='[1]SR 32 & Shuster Rd.'!M69 -> 0 | N69: ='[1]SR 32 & Shuster Rd.'!N69 -> 1 | O69: ='[1]SR 32 & Shuster Rd.'!O69 -> 32 | P69: ='[1]SR 32 & Shuster Rd.'!P69+'[1]SR 32 & Germany Rd.'!P69 -> 5 | Q69: ='[1]SR 32 & Shuster Rd.'!Q69 -> 0
A70: ='[1]SR 32 & Shuster Rd.'!A70 -> 11:15:00 | B70: ='[1]SR 32 & Shuster Rd.'!B70 -> 4 | C70: ='[1]SR 32 & Shuster Rd.'!C70 -> 0 | D70: ='[1]SR 32 & Shuster Rd.'!D70+'[1]SR 32 & Germany Rd.'!C70+'[1]SR 32 & Germany Rd.'!D70 -> 0 | E70: ='[1]SR 32 & Shuster Rd.'!E70 -> 0 | F70: ='[1]SR 32 & Shuster Rd.'!F70 -> 0 | G70: ='[1]SR 32 & Shuster Rd.'!G70 -> 5 | H70: ='[1]SR 32 & Shuster Rd.'!H70 -> 0 | I70: ='[1]SR 32 & Shuster Rd.'!I70 -> 0 | J70: ='[1]SR 32 & Shuster Rd.'!J70 -> 0 | K70: ='[1]SR 32 & Shuster Rd.'!K70 -> 0 | L70: ='[1]SR 32 & Shuster Rd.'!L70 -> 0 | M70: ='[1]SR 32 & Shuster Rd.'!M70 -> 0 | N70: ='[1]SR 32 & Shuster Rd.'!N70 -> 0 | O70: ='[1]SR 32 & Shuster Rd.'!O70 -> 12 | P70: ='[1]SR 32 & Shuster Rd.'!P70+'[1]SR 32 & Germany Rd.'!P70 -> 1 | Q70: ='[1]SR 32 & Shuster Rd.'!Q70 -> 0
A71: ='[1]SR 32 & Shuster Rd.'!A71 -> 11:15:00 | B71: ='[1]SR 32 & Shuster Rd.'!B71 -> 0 | C71: ='[1]SR 32 & Shuster Rd.'!C71 -> 0 | D71: ='[1]SR 32 & Shuster Rd.'!D71+'[1]SR 32 & Germany Rd.'!C71+'[1]SR 32 & Germany Rd.'!D71 -> 0 | E71: ='[1]SR 32 & Shuster Rd.'!E71 -> 0 | F71: ='[1]SR 32 & Shuster Rd.'!F71 -> 0 | G71: ='[1]SR 32 & Shuster Rd.'!G71 -> 0 | H71: ='[1]SR 32 & Shuster Rd.'!H71 -> 0 | I71: ='[1]SR 32 & Shuster Rd.'!I71 -> 0 | J71: ='[1]SR 32 & Shuster Rd.'!J71 -> 0 | K71: ='[1]SR 32 & Shuster Rd.'!K71 -> 0 | L71: ='[1]SR 32 & Shuster Rd.'!L71 -> 0 | M71: ='[1]SR 32 & Shuster Rd.'!M71 -> 0 | N71: ='[1]SR 32 & Shuster Rd.'!N71 -> 0 | O71: ='[1]SR 32 & Shuster Rd.'!O71 -> 0 | P71: ='[1]SR 32 & Shuster Rd.'!P71+'[1]SR 32 & Germany Rd.'!P71 -> 0 | Q71: ='[1]SR 32 & Shuster Rd.'!Q71 -> 0 | S71: 11:15:00 | T71: =SUM(B69:B71) -> 6 | U71: 2 | V71: 10 | W71: 0 | X71: 3 | Y71: 44 | Z71: 0 | AA71: 0 | AB71: 0 | AC71: 4 | AD71: 1 | AE71: 0 | AF71: 1 | AG71: 44 | AH71: 6 | AI71: 0
A72: ='[1]SR 32 & Shuster Rd.'!A72 -> 11:30:00 | B72: ='[1]SR 32 & Shuster Rd.'!B72 -> 3 | C72: ='[1]SR 32 & Shuster Rd.'!C72 -> 1 | D72: ='[1]SR 32 & Shuster Rd.'!D72+'[1]SR 32 & Germany Rd.'!C72+'[1]SR 32 & Germany Rd.'!D72 -> 12 | E72: ='[1]SR 32 & Shuster Rd.'!E72 -> 0 | F72: ='[1]SR 32 & Shuster Rd.'!F72 -> 3 | G72: ='[1]SR 32 & Shuster Rd.'!G72 -> 29 | H72: ='[1]SR 32 & Shuster Rd.'!H72 -> 0 | I72: ='[1]SR 32 & Shuster Rd.'!I72 -> 0 | J72: ='[1]SR 32 & Shuster Rd.'!J72 -> 0 | K72: ='[1]SR 32 & Shuster Rd.'!K72 -> 0 | L72: ='[1]SR 32 & Shuster Rd.'!L72 -> 0 | M72: ='[1]SR 32 & Shuster Rd.'!M72 -> 0 | N72: ='[1]SR 32 & Shuster Rd.'!N72 -> 1 | O72: ='[1]SR 32 & Shuster Rd.'!O72 -> 39 | P72: ='[1]SR 32 & Shuster Rd.'!P72+'[1]SR 32 & Germany Rd.'!P72 -> 4 | Q72: ='[1]SR 32 & Shuster Rd.'!Q72 -> 0
A73: ='[1]SR 32 & Shuster Rd.'!A73 -> 11:30:00 | B73: ='[1]SR 32 & Shuster Rd.'!B73 -> 2 | C73: ='[1]SR 32 & Shuster Rd.'!C73 -> 0 | D73: ='[1]SR 32 & Shuster Rd.'!D73+'[1]SR 32 & Germany Rd.'!C73+'[1]SR 32 & Germany Rd.'!D73 -> 1 | E73: ='[1]SR 32 & Shuster Rd.'!E73 -> 0 | F73: ='[1]SR 32 & Shuster Rd.'!F73 -> 1 | G73: ='[1]SR 32 & Shuster Rd.'!G73 -> 4 | H73: ='[1]SR 32 & Shuster Rd.'!H73 -> 1 | I73: ='[1]SR 32 & Shuster Rd.'!I73 -> 0 | J73: ='[1]SR 32 & Shuster Rd.'!J73 -> 0 | K73: ='[1]SR 32 & Shuster Rd.'!K73 -> 0 | L73: ='[1]SR 32 & Shuster Rd.'!L73 -> 0 | M73: ='[1]SR 32 & Shuster Rd.'!M73 -> 0 | N73: ='[1]SR 32 & Shuster Rd.'!N73 -> 0 | O73: ='[1]SR 32 & Shuster Rd.'!O73 -> 11 | P73: ='[1]SR 32 & Shuster Rd.'!P73+'[1]SR 32 & Germany Rd.'!P73 -> 0 | Q73: ='[1]SR 32 & Shuster Rd.'!Q73 -> 0
A74: ='[1]SR 32 & Shuster Rd.'!A74 -> 11:30:00 | B74: ='[1]SR 32 & Shuster Rd.'!B74 -> 0 | C74: ='[1]SR 32 & Shuster Rd.'!C74 -> 0 | D74: ='[1]SR 32 & Shuster Rd.'!D74+'[1]SR 32 & Germany Rd.'!C74+'[1]SR 32 & Germany Rd.'!D74 -> 0 | E74: ='[1]SR 32 & Shuster Rd.'!E74 -> 0 | F74: ='[1]SR 32 & Shuster Rd.'!F74 -> 0 | G74: ='[1]SR 32 & Shuster Rd.'!G74 -> 0 | H74: ='[1]SR 32 & Shuster Rd.'!H74 -> 0 | I74: ='[1]SR 32 & Shuster Rd.'!I74 -> 0 | J74: ='[1]SR 32 & Shuster Rd.'!J74 -> 0 | K74: ='[1]SR 32 & Shuster Rd.'!K74 -> 0 | L74: ='[1]SR 32 & Shuster Rd.'!L74 -> 0 | M74: ='[1]SR 32 & Shuster Rd.'!M74 -> 0 | N74: ='[1]SR 32 & Shuster Rd.'!N74 -> 0 | O74: ='[1]SR 32 & Shuster Rd.'!O74 -> 0 | P74: ='[1]SR 32 & Shuster Rd.'!P74+'[1]SR 32 & Germany Rd.'!P74 -> 0 | Q74: ='[1]SR 32 & Shuster Rd.'!Q74 -> 0 | S74: 11:30:00 | T74: =SUM(B72:B74) -> 5 | U74: 1 | V74: 13 | W74: 0 | X74: 4 | Y74: 33 | Z74: 1 | AA74: 0 | AB74: 0 | AC74: 0 | AD74: 0 | AE74: 0 | AF74: 1 | AG74: 50 | AH74: 4 | AI74: 0
A75: ='[1]SR 32 & Shuster Rd.'!A75 -> 11:45:00 | B75: ='[1]SR 32 & Shuster Rd.'!B75 -> 3 | C75: ='[1]SR 32 & Shuster Rd.'!C75 -> 4 | D75: ='[1]SR 32 & Shuster Rd.'!D75+'[1]SR 32 & Germany Rd.'!C75+'[1]SR 32 & Germany Rd.'!D75 -> 15 | E75: ='[1]SR 32 & Shuster Rd.'!E75 -> 0 | F75: ='[1]SR 32 & Shuster Rd.'!F75 -> 2 | G75: ='[1]SR 32 & Shuster Rd.'!G75 -> 26 | H75: ='[1]SR 32 & Shuster Rd.'!H75 -> 0 | I75: ='[1]SR 32 & Shuster Rd.'!I75 -> 0 | J75: ='[1]SR 32 & Shuster Rd.'!J75 -> 0 | K75: ='[1]SR 32 & Shuster Rd.'!K75 -> 8 | L75: ='[1]SR 32 & Shuster Rd.'!L75 -> 1 | M75: ='[1]SR 32 & Shuster Rd.'!M75 -> 0 | N75: ='[1]SR 32 & Shuster Rd.'!N75 -> 2 | O75: ='[1]SR 32 & Shuster Rd.'!O75 -> 33 | P75: ='[1]SR 32 & Shuster Rd.'!P75+'[1]SR 32 & Germany Rd.'!P75 -> 5 | Q75: ='[1]SR 32 & Shuster Rd.'!Q75 -> 0
A76: ='[1]SR 32 & Shuster Rd.'!A76 -> 11:45:00 | B76: ='[1]SR 32 & Shuster Rd.'!B76 -> 2 | C76: ='[1]SR 32 & Shuster Rd.'!C76 -> 0 | D76: ='[1]SR 32 & Shuster Rd.'!D76+'[1]SR 32 & Germany Rd.'!C76+'[1]SR 32 & Germany Rd.'!D76 -> 2 | E76: ='[1]SR 32 & Shuster Rd.'!E76 -> 0 | F76: ='[1]SR 32 & Shuster Rd.'!F76 -> 0 | G76: ='[1]SR 32 & Shuster Rd.'!G76 -> 10 | H76: ='[1]SR 32 & Shuster Rd.'!H76 -> 0 | I76: ='[1]SR 32 & Shuster Rd.'!I76 -> 0 | J76: ='[1]SR 32 & Shuster Rd.'!J76 -> 0 | K76: ='[1]SR 32 & Shuster Rd.'!K76 -> 0 | L76: ='[1]SR 32 & Shuster Rd.'!L76 -> 0 | M76: ='[1]SR 32 & Shuster Rd.'!M76 -> 0 | N76: ='[1]SR 32 & Shuster Rd.'!N76 -> 0 | O76: ='[1]SR 32 & Shuster Rd.'!O76 -> 3 | P76: ='[1]SR 32 & Shuster Rd.'!P76+'[1]SR 32 & Germany Rd.'!P76 -> 0 | Q76: ='[1]SR 32 & Shuster Rd.'!Q76 -> 0
A77: ='[1]SR 32 & Shuster Rd.'!A77 -> 11:45:00 | B77: ='[1]SR 32 & Shuster Rd.'!B77 -> 0 | C77: ='[1]SR 32 & Shuster Rd.'!C77 -> 0 | D77: ='[1]SR 32 & Shuster Rd.'!D77+'[1]SR 32 & Germany Rd.'!C77+'[1]SR 32 & Germany Rd.'!D77 -> 0 | E77: ='[1]SR 32 & Shuster Rd.'!E77 -> 0 | F77: ='[1]SR 32 & Shuster Rd.'!F77 -> 0 | G77: ='[1]SR 32 & Shuster Rd.'!G77 -> 0 | H77: ='[1]SR 32 & Shuster Rd.'!H77 -> 0 | I77: ='[1]SR 32 & Shuster Rd.'!I77 -> 0 | J77: ='[1]SR 32 & Shuster Rd.'!J77 -> 0 | K77: ='[1]SR 32 & Shuster Rd.'!K77 -> 0 | L77: ='[1]SR 32 & Shuster Rd.'!L77 -> 0 | M77: ='[1]SR 32 & Shuster Rd.'!M77 -> 0 | N77: ='[1]SR 32 & Shuster Rd.'!N77 -> 0 | O77: ='[1]SR 32 & Shuster Rd.'!O77 -> 0 | P77: ='[1]SR 32 & Shuster Rd.'!P77+'[1]SR 32 & Germany Rd.'!P77 -> 0 | Q77: ='[1]SR 32 & Shuster Rd.'!Q77 -> 0 | S77: 11:45:00 | T77: =SUM(B75:B77) -> 5 | U77: 4 | V77: 17 | W77: 0 | X77: 2 | Y77: 36 | Z77: 0 | AA77: 0 | AB77: 0 | AC77: 8 | AD77: 1 | AE77: 0 | AF77: 2 | AG77: 36 | AH77: 5 | AI77: 0
A78: ='[1]SR 32 & Shuster Rd.'!A78 -> 12:00:00 | B78: ='[1]SR 32 & Shuster Rd.'!B78 -> 5 | C78: ='[1]SR 32 & Shuster Rd.'!C78 -> 4 | D78: ='[1]SR 32 & Shuster Rd.'!D78+'[1]SR 32 & Germany Rd.'!C78+'[1]SR 32 & Germany Rd.'!D78 -> 22 | E78: ='[1]SR 32 & Shuster Rd.'!E78 -> 0 | F78: ='[1]SR 32 & Shuster Rd.'!F78 -> 1 | G78: ='[1]SR 32 & Shuster Rd.'!G78 -> 32 | H78: ='[1]SR 32 & Shuster Rd.'!H78 -> 0 | I78: ='[1]SR 32 & Shuster Rd.'!I78 -> 0 | J78: ='[1]SR 32 & Shuster Rd.'!J78 -> 0 | K78: ='[1]SR 32 & Shuster Rd.'!K78 -> 2 | L78: ='[1]SR 32 & Shuster Rd.'!L78 -> 2 | M78: ='[1]SR 32 & Shuster Rd.'!M78 -> 0 | N78: ='[1]SR 32 & Shuster Rd.'!N78 -> 1 | O78: ='[1]SR 32 & Shuster Rd.'!O78 -> 42 | P78: ='[1]SR 32 & Shuster Rd.'!P78+'[1]SR 32 & Germany Rd.'!P78 -> 5 | Q78: ='[1]SR 32 & Shuster Rd.'!Q78 -> 0 | S78: Movement Total | T78: =SUM(T68,T71,T74,T77) -> 18 | U78: 8 | V78: 58 | W78: 0 | X78: 9 | Y78: 149 | Z78: 1 | AA78: 0 | AB78: 0 | AC78: 15 | AD78: 2 | AE78: 0 | AF78: 5 | AG78: 177 | AH78: 19 | AI78: 0 | AK78: 0.4 | AL78: - | AM78: =IF(X$2=FALSE,LOOKUP((Y78+X78)/$AM$4,'Main Line Reduction Table'!$A$1:$B$21,'Main Line Reduction Table'!$C$1:$C$21),LOOKUP(Y78/$AM$4,'Main Line Reduction Table'!$A$1:$B$21,'Main Line Reduction Table'!$C$1:$C$21)) -> 0 | AN78: = | AO78: =AK78-AM78 -> 0.4 | AQ78: 0.2 | AR78: - | AS78: =IF(AF$2=FALSE,LOOKUP((AG78+AF78)/$AS$4,'Main Line Reduction Table'!$A$1:$B$21,'Main Line Reduction Table'!$C$1:$C$21),LOOKUP(AG78/$AS$4,'Main Line Reduction Table'!$A$1:$B$21,'Main Line Reduction Table'!$C$1:$C$21)) -> 0 | AT78: = | AU78: =AQ78-AS78 -> 0.2
A79: ='[1]SR 32 & Shuster Rd.'!A79 -> 12:00:00 | B79: ='[1]SR 32 & Shuster Rd.'!B79 -> 2 | C79: ='[1]SR 32 & Shuster Rd.'!C79 -> 0 | D79: ='[1]SR 32 & Shuster Rd.'!D79+'[1]SR 32 & Germany Rd.'!C79+'[1]SR 32 & Germany Rd.'!D79 -> 0 | E79: ='[1]SR 32 & Shuster Rd.'!E79 -> 0 | F79: ='[1]SR 32 & Shuster Rd.'!F79 -> 0 | G79: ='[1]SR 32 & Shuster Rd.'!G79 -> 11 | H79: ='[1]SR 32 & Shuster Rd.'!H79 -> 0 | I79: ='[1]SR 32 & Shuster Rd.'!I79 -> 0 | J79: ='[1]SR 32 & Shuster Rd.'!J79 -> 0 | K79: ='[1]SR 32 & Shuster Rd.'!K79 -> 0 | L79: ='[1]SR 32 & Shuster Rd.'!L79 -> 0 | M79: ='[1]SR 32 & Shuster Rd.'!M79 -> 0 | N79: ='[1]SR 32 & Shuster Rd.'!N79 -> 0 | O79: ='[1]SR 32 & Shuster Rd.'!O79 -> 9 | P79: ='[1]SR 32 & Shuster Rd.'!P79+'[1]SR 32 & Germany Rd.'!P79 -> 0 | Q79: ='[1]SR 32 & Shuster Rd.'!Q79 -> 0 | S79: Reduced Movement Total | T79: =T78*(1-AO78) -> 10.8 | U79: =(T78*(1-$AO78))+U78+V78 -> 76.8 | X79: =X78+Y78+Z78 -> 159 | AB79: =AB78*(1-AU78) -> 0 | AC79: =(AB78*(1-$AO78))+AC78+AD78 -> 17 | AF79: =AF78+AG78+AH78 -> 201
A80: ='[1]SR 32 & Shuster Rd.'!A80 -> 12:00:00 | B80: ='[1]SR 32 & Shuster Rd.'!B80 -> 0 | C80: ='[1]SR 32 & Shuster Rd.'!C80 -> 0 | D80: ='[1]SR 32 & Shuster Rd.'!D80+'[1]SR 32 & Germany Rd.'!C80+'[1]SR 32 & Germany Rd.'!D80 -> 0 | E80: ='[1]SR 32 & Shuster Rd.'!E80 -> 0 | F80: ='[1]SR 32 & Shuster Rd.'!F80 -> 0 | G80: ='[1]SR 32 & Shuster Rd.'!G80 -> 0 | H80: ='[1]SR 32 & Shuster Rd.'!H80 -> 0 | I80: ='[1]SR 32 & Shuster Rd.'!I80 -> 0 | J80: ='[1]SR 32 & Shuster Rd.'!J80 -> 0 | K80: ='[1]SR 32 & Shuster Rd.'!K80 -> 0 | L80: ='[1]SR 32 & Shuster Rd.'!L80 -> 0 | M80: ='[1]SR 32 & Shuster Rd.'!M80 -> 0 | N80: ='[1]SR 32 & Shuster Rd.'!N80 -> 0 | O80: ='[1]SR 32 & Shuster Rd.'!O80 -> 0 | P80: ='[1]SR 32 & Shuster Rd.'!P80+'[1]SR 32 & Germany Rd.'!P80 -> 0 | Q80: ='[1]SR 32 & Shuster Rd.'!Q80 -> 0 | S80: 12:00:00 | T80: =SUM(B78:B80) -> 7 | U80: 4 | V80: 22 | W80: 0 | X80: 1 | Y80: 43 | Z80: 0 | AA80: 0 | AB80: 0 | AC80: 2 | AD80: 2 | AE80: 0 | AF80: 1 | AG80: 51 | AH80: 5 | AI80: 0
A81: ='[1]SR 32 & Shuster Rd.'!A81 -> 12:15:00 | B81: ='[1]SR 32 & Shuster Rd.'!B81 -> 2 | C81: ='[1]SR 32 & Shuster Rd.'!C81 -> 2 | D81: ='[1]SR 32 & Shuster Rd.'!D81+'[1]SR 32 & Germany Rd.'!C81+'[1]SR 32 & Germany Rd.'!D81 -> 20 | E81: ='[1]SR 32 & Shuster Rd.'!E81 -> 0 | F81: ='[1]SR 32 & Shuster Rd.'!F81 -> 1 | G81: ='[1]SR 32 & Shuster Rd.'!G81 -> 32 | H81: ='[1]SR 32 & Shuster Rd.'!H81 -> 1 | I81: ='[1]SR 32 & Shuster Rd.'!I81 -> 0 | J81: ='[1]SR 32 & Shuster Rd.'!J81 -> 0 | K81: ='[1]SR 32 & Shuster Rd.'!K81 -> 3 | L81: ='[1]SR 32 & Shuster Rd.'!L81 -> 0 | M81: ='[1]SR 32 & Shuster Rd.'!M81 -> 0 | N81: ='[1]SR 32 & Shuster Rd.'!N81 -> 6 | O81: ='[1]SR 32 & Shuster Rd.'!O81 -> 29 | P81: ='[1]SR 32 & Shuster Rd.'!P81+'[1]SR 32 & Germany Rd.'!P81 -> 4 | Q81: ='[1]SR 32 & Shuster Rd.'!Q81 -> 0
A82: ='[1]SR 32 & Shuster Rd.'!A82 -> 12:15:00 | B82: ='[1]SR 32 & Shuster Rd.'!B82 -> 1 | C82: ='[1]SR 32 & Shuster Rd.'!C82 -> 0 | D82: ='[1]SR 32 & Shuster Rd.'!D82+'[1]SR 32 & Germany Rd.'!C82+'[1]SR 32 & Germany Rd.'!D82 -> 0 | E82: ='[1]SR 32 & Shuster Rd.'!E82 -> 0 | F82: ='[1]SR 32 & Shuster Rd.'!F82 -> 0 | G82: ='[1]SR 32 & Shuster Rd.'!G82 -> 7 | H82: ='[1]SR 32 & Shuster Rd.'!H82 -> 0 | I82: ='[1]SR 32 & Shuster Rd.'!I82 -> 0 | J82: ='[1]SR 32 & Shuster Rd.'!J82 -> 0 | K82: ='[1]SR 32 & Shuster Rd.'!K82 -> 0 | L82: ='[1]SR 32 & Shuster Rd.'!L82 -> 0 | M82: ='[1]SR 32 & Shuster Rd.'!M82 -> 0 | N82: ='[1]SR 32 & Shuster Rd.'!N82 -> 0 | O82: ='[1]SR 32 & Shuster Rd.'!O82 -> 12 | P82: ='[1]SR 32 & Shuster Rd.'!P82+'[1]SR 32 & Germany Rd.'!P82 -> 1 | Q82: ='[1]SR 32 & Shuster Rd.'!Q82 -> 0
A83: ='[1]SR 32 & Shuster Rd.'!A83 -> 12:15:00 | B83: ='[1]SR 32 & Shuster Rd.'!B83 -> 0 | C83: ='[1]SR 32 & Shuster Rd.'!C83 -> 0 | D83: ='[1]SR 32 & Shuster Rd.'!D83+'[1]SR 32 & Germany Rd.'!C83+'[1]SR 32 & Germany Rd.'!D83 -> 0 | E83: ='[1]SR 32 & Shuster Rd.'!E83 -> 0 | F83: ='[1]SR 32 & Shuster Rd.'!F83 -> 0 | G83: ='[1]SR 32 & Shuster Rd.'!G83 -> 0 | H83: ='[1]SR 32 & Shuster Rd.'!H83 -> 0 | I83: ='[1]SR 32 & Shuster Rd.'!I83 -> 0 | J83: ='[1]SR 32 & Shuster Rd.'!J83 -> 0 | K83: ='[1]SR 32 & Shuster Rd.'!K83 -> 0 | L83: ='[1]SR 32 & Shuster Rd.'!L83 -> 0 | M83: ='[1]SR 32 & Shuster Rd.'!M83 -> 0 | N83: ='[1]SR 32 & Shuster Rd.'!N83 -> 0 | O83: ='[1]SR 32 & Shuster Rd.'!O83 -> 0 | P83: ='[1]SR 32 & Shuster Rd.'!P83+'[1]SR 32 & Germany Rd.'!P83 -> 0 | Q83: ='[1]SR 32 & Shuster Rd.'!Q83 -> 0 | S83: 12:15:00 | T83: =SUM(B81:B83) -> 3 | U83: 2 | V83: 20 | W83: 0 | X83: 1 | Y83: 39 | Z83: 1 | AA83: 0 | AB83: 0 | AC83: 3 | AD83: 0 | AE83: 0 | AF83: 6 | AG83: 41 | AH83: 5 | AI83: 0
A84: ='[1]SR 32 & Shuster Rd.'!A84 -> 12:30:00 | B84: ='[1]SR 32 & Shuster Rd.'!B84 -> 4 | C84: ='[1]SR 32 & Shuster Rd.'!C84 -> 6 | D84: ='[1]SR 32 & Shuster Rd.'!D84+'[1]SR 32 & Germany Rd.'!C84+'[1]SR 32 & Germany Rd.'!D84 -> 21 | E84: ='[1]SR 32 & Shuster Rd.'!E84 -> 0 | F84: ='[1]SR 32 & Shuster Rd.'!F84 -> 1 | G84: ='[1]SR 32 & Shuster Rd.'!G84 -> 30 | H84: ='[1]SR 32 & Shuster Rd.'!H84 -> 1 | I84: ='[1]SR 32 & Shuster Rd.'!I84 -> 0 | J84: ='[1]SR 32 & Shuster Rd.'!J84 -> 0 | K84: ='[1]SR 32 & Shuster Rd.'!K84 -> 3 | L84: ='[1]SR 32 & Shuster Rd.'!L84 -> 3 | M84: ='[1]SR 32 & Shuster Rd.'!M84 -> 0 | N84: ='[1]SR 32 & Shuster Rd.'!N84 -> 2 | O84: ='[1]SR 32 & Shuster Rd.'!O84 -> 16 | P84: ='[1]SR 32 & Shuster Rd.'!P84+'[1]SR 32 & Germany Rd.'!P84 -> 3 | Q84: ='[1]SR 32 & Shuster Rd.'!Q84 -> 0
A85: ='[1]SR 32 & Shuster Rd.'!A85 -> 12:30:00 | B85: ='[1]SR 32 & Shuster Rd.'!B85 -> 0 | C85: ='[1]SR 32 & Shuster Rd.'!C85 -> 0 | D85: ='[1]SR 32 & Shuster Rd.'!D85+'[1]SR 32 & Germany Rd.'!C85+'[1]SR 32 & Germany Rd.'!D85 -> 0 | E85: ='[1]SR 32 & Shuster Rd.'!E85 -> 0 | F85: ='[1]SR 32 & Shuster Rd.'!F85 -> 2 | G85: ='[1]SR 32 & Shuster Rd.'!G85 -> 9 | H85: ='[1]SR 32 & Shuster Rd.'!H85 -> 0 | I85: ='[1]SR 32 & Shuster Rd.'!I85 -> 0 | J85: ='[1]SR 32 & Shuster Rd.'!J85 -> 0 | K85: ='[1]SR 32 & Shuster Rd.'!K85 -> 0 | L85: ='[1]SR 32 & Shuster Rd.'!L85 -> 0 | M85: ='[1]SR 32 & Shuster Rd.'!M85 -> 0 | N85: ='[1]SR 32 & Shuster Rd.'!N85 -> 0 | O85: ='[1]SR 32 & Shuster Rd.'!O85 -> 7 | P85: ='[1]SR 32 & Shuster Rd.'!P85+'[1]SR 32 & Germany Rd.'!P85 -> 0 | Q85: ='[1]SR 32 & Shuster Rd.'!Q85 -> 0
A86: ='[1]SR 32 & Shuster Rd.'!A86 -> 12:30:00 | B86: ='[1]SR 32 & Shuster Rd.'!B86 -> 0 | C86: ='[1]SR 32 & Shuster Rd.'!C86 -> 0 | D86: ='[1]SR 32 & Shuster Rd.'!D86+'[1]SR 32 & Germany Rd.'!C86+'[1]SR 32 & Germany Rd.'!D86 -> 0 | E86: ='[1]SR 32 & Shuster Rd.'!E86 -> 0 | F86: ='[1]SR 32 & Shuster Rd.'!F86 -> 0 | G86: ='[1]SR 32 & Shuster Rd.'!G86 -> 0 | H86: ='[1]SR 32 & Shuster Rd.'!H86 -> 0 | I86: ='[1]SR 32 & Shuster Rd.'!I86 -> 0 | J86: ='[1]SR 32 & Shuster Rd.'!J86 -> 0 | K86: ='[1]SR 32 & Shuster Rd.'!K86 -> 0 | L86: ='[1]SR 32 & Shuster Rd.'!L86 -> 0 | M86: ='[1]SR 32 & Shuster Rd.'!M86 -> 0 | N86: ='[1]SR 32 & Shuster Rd.'!N86 -> 0 | O86: ='[1]SR 32 & Shuster Rd.'!O86 -> 0 | P86: ='[1]SR 32 & Shuster Rd.'!P86+'[1]SR 32 & Germany Rd.'!P86 -> 0 | Q86: ='[1]SR 32 & Shuster Rd.'!Q86 -> 0 | S86: 12:30:00 | T86: =SUM(B84:B86) -> 4 | U86: 6 | V86: 21 | W86: 0 | X86: 3 | Y86: 39 | Z86: 1 | AA86: 0 | AB86: 0 | AC86: 3 | AD86: 3 | AE86: 0 | AF86: 2 | AG86: 23 | AH86: 3 | AI86: 0
A87: ='[1]SR 32 & Shuster Rd.'!A87 -> 12:45:00 | B87: ='[1]SR 32 & Shuster Rd.'!B87 -> 3 | C87: ='[1]SR 32 & Shuster Rd.'!C87 -> 3 | D87: ='[1]SR 32 & Shuster Rd.'!D87+'[1]SR 32 & Germany Rd.'!C87+'[1]SR 32 & Germany Rd.'!D87 -> 14 | E87: ='[1]SR 32 & Shuster Rd.'!E87 -> 0 | F87: ='[1]SR 32 & Shuster Rd.'!F87 -> 2 | G87: ='[1]SR 32 & Shuster Rd.'!G87 -> 29 | H87: ='[1]SR 32 & Shuster Rd.'!H87 -> 0 | I87: ='[1]SR 32 & Shuster Rd.'!I87 -> 0 | J87: ='[1]SR 32 & Shuster Rd.'!J87 -> 0 | K87: ='[1]SR 32 & Shuster Rd.'!K87 -> 2 | L87: ='[1]SR 32 & Shuster Rd.'!L87 -> 2 | M87: ='[1]SR 32 & Shuster Rd.'!M87 -> 0 | N87: ='[1]SR 32 & Shuster Rd.'!N87 -> 4 | O87: ='[1]SR 32 & Shuster Rd.'!O87 -> 19 | P87: ='[1]SR 32 & Shuster Rd.'!P87+'[1]SR 32 & Germany Rd.'!P87 -> 3 | Q87: ='[1]SR 32 & Shuster Rd.'!Q87 -> 0
A88: ='[1]SR 32 & Shuster Rd.'!A88 -> 12:45:00 | B88: ='[1]SR 32 & Shuster Rd.'!B88 -> 0 | C88: ='[1]SR 32 & Shuster Rd.'!C88 -> 0 | D88: ='[1]SR 32 & Shuster Rd.'!D88+'[1]SR 32 & Germany Rd.'!C88+'[1]SR 32 & Germany Rd.'!D88 -> 2 | E88: ='[1]SR 32 & Shuster Rd.'!E88 -> 0 | F88: ='[1]SR 32 & Shuster Rd.'!F88 -> 0 | G88: ='[1]SR 32 & Shuster Rd.'!G88 -> 4 | H88: ='[1]SR 32 & Shuster Rd.'!H88 -> 0 | I88: ='[1]SR 32 & Shuster Rd.'!I88 -> 0 | J88: ='[1]SR 32 & Shuster Rd.'!J88 -> 0 | K88: ='[1]SR 32 & Shuster Rd.'!K88 -> 0 | L88: ='[1]SR 32 & Shuster Rd.'!L88 -> 0 | M88: ='[1]SR 32 & Shuster Rd.'!M88 -> 0 | N88: ='[1]SR 32 & Shuster Rd.'!N88 -> 0 | O88: ='[1]SR 32 & Shuster Rd.'!O88 -> 7 | P88: ='[1]SR 32 & Shuster Rd.'!P88+'[1]SR 32 & Germany Rd.'!P88 -> 1 | Q88: ='[1]SR 32 & Shuster Rd.'!Q88 -> 0
A89: ='[1]SR 32 & Shuster Rd.'!A89 -> 12:45:00 | B89: ='[1]SR 32 & Shuster Rd.'!B89 -> 0 | C89: ='[1]SR 32 & Shuster Rd.'!C89 -> 0 | D89: ='[1]SR 32 & Shuster Rd.'!D89+'[1]SR 32 & Germany Rd.'!C89+'[1]SR 32 & Germany Rd.'!D89 -> 0 | E89: ='[1]SR 32 & Shuster Rd.'!E89 -> 0 | F89: ='[1]SR 32 & Shuster Rd.'!F89 -> 0 | G89: ='[1]SR 32 & Shuster Rd.'!G89 -> 0 | H89: ='[1]SR 32 & Shuster Rd.'!H89 -> 0 | I89: ='[1]SR 32 & Shuster Rd.'!I89 -> 0 | J89: ='[1]SR 32 & Shuster Rd.'!J89 -> 0 | K89: ='[1]SR 32 & Shuster Rd.'!K89 -> 0 | L89: ='[1]SR 32 & Shuster Rd.'!L89 -> 0 | M89: ='[1]SR 32 & Shuster Rd.'!M89 -> 0 | N89: ='[1]SR 32 & Shuster Rd.'!N89 -> 0 | O89: ='[1]SR 32 & Shuster Rd.'!O89 -> 0 | P89: ='[1]SR 32 & Shuster Rd.'!P89+'[1]SR 32 & Germany Rd.'!P89 -> 0 | Q89: ='[1]SR 32 & Shuster Rd.'!Q89 -> 0 | S89: 12:45:00 | T89: =SUM(B87:B89) -> 3 | U89: 3 | V89: 16 | W89: 0 | X89: 2 | Y89: 33 | Z89: 0 | AA89: 0 | AB89: 0 | AC89: 2 | AD89: 2 | AE89: 0 | AF89: 4 | AG89: 26 | AH89: 4 | AI89: 0
A90: ='[1]SR 32 & Shuster Rd.'!A90 -> 13:00:00 | B90: ='[1]SR 32 & Shuster Rd.'!B90 -> 4 | C90: ='[1]SR 32 & Shuster Rd.'!C90 -> 2 | D90: ='[1]SR 32 & Shuster Rd.'!D90+'[1]SR 32 & Germany Rd.'!C90+'[1]SR 32 & Germany Rd.'!D90 -> 22 | E90: ='[1]SR 32 & Shuster Rd.'!E90 -> 0 | F90: ='[1]SR 32 & Shuster Rd.'!F90 -> 4 | G90: ='[1]SR 32 & Shuster Rd.'!G90 -> 28 | H90: ='[1]SR 32 & Shuster Rd.'!H90 -> 0 | I90: ='[1]SR 32 & Shuster Rd.'!I90 -> 0 | J90: ='[1]SR 32 & Shuster Rd.'!J90 -> 3 | K90: ='[1]SR 32 & Shuster Rd.'!K90 -> 1 | L90: ='[1]SR 32 & Shuster Rd.'!L90 -> 3 | M90: ='[1]SR 32 & Shuster Rd.'!M90 -> 0 | N90: ='[1]SR 32 & Shuster Rd.'!N90 -> 4 | O90: ='[1]SR 32 & Shuster Rd.'!O90 -> 27 | P90: ='[1]SR 32 & Shuster Rd.'!P90+'[1]SR 32 & Germany Rd.'!P90 -> 4 | Q90: ='[1]SR 32 & Shuster Rd.'!Q90 -> 0 | S90: Movement Total | T90: =SUM(T80,T83,T86,T89) -> 17 | U90: 15 | V90: 79 | W90: 0 | X90: 7 | Y90: 154 | Z90: 2 | AA90: 0 | AB90: 0 | AC90: 10 | AD90: 7 | AE90: 0 | AF90: 13 | AG90: 141 | AH90: 17 | AI90: 0 | AK90: 0.2 | AL90: - | AM90: =IF(X$2=FALSE,LOOKUP((Y90+X90)/$AM$4,'Main Line Reduction Table'!$A$1:$B$21,'Main Line Reduction Table'!$C$1:$C$21),LOOKUP(Y90/$AM$4,'Main Line Reduction Table'!$A$1:$B$21,'Main Line Reduction Table'!$C$1:$C$21)) -> 0 | AN90: = | AO90: =AK90-AM90 -> 0.2 | AQ90: 0.2 | AR90: - | AS90: =IF(AF$2=FALSE,LOOKUP((AG90+AF90)/$AS$4,'Main Line Reduction Table'!$A$1:$B$21,'Main Line Reduction Table'!$C$1:$C$21),LOOKUP(AG90/$AS$4,'Main Line Reduction Table'!$A$1:$B$21,'Main Line Reduction Table'!$C$1:$C$21)) -> 0 | AT90: = | AU90: =AQ90-AS90 -> 0.2
A91: ='[1]SR 32 & Shuster Rd.'!A91 -> 13:00:00 | B91: ='[1]SR 32 & Shuster Rd.'!B91 -> 0 | C91: ='[1]SR 32 & Shuster Rd.'!C91 -> 1 | D91: ='[1]SR 32 & Shuster Rd.'!D91+'[1]SR 32 & Germany Rd.'!C91+'[1]SR 32 & Germany Rd.'!D91 -> 0 | E91: ='[1]SR 32 & Shuster Rd.'!E91 -> 0 | F91: ='[1]SR 32 & Shuster Rd.'!F91 -> 0 | G91: ='[1]SR 32 & Shuster Rd.'!G91 -> 12 | H91: ='[1]SR 32 & Shuster Rd.'!H91 -> 0 | I91: ='[1]SR 32 & Shuster Rd.'!I91 -> 0 | J91: ='[1]SR 32 & Shuster Rd.'!J91 -> 0 | K91: ='[1]SR 32 & Shuster Rd.'!K91 -> 0 | L91: ='[1]SR 32 & Shuster Rd.'!L91 -> 0 | M91: ='[1]SR 32 & Shuster Rd.'!M91 -> 0 | N91: ='[1]SR 32 & Shuster Rd.'!N91 -> 0 | O91: ='[1]SR 32 & Shuster Rd.'!O91 -> 12 | P91: ='[1]SR 32 & Shuster Rd.'!P91+'[1]SR 32 & Germany Rd.'!P91 -> 3 | Q91: ='[1]SR 32 & Shuster Rd.'!Q91 -> 0 | S91: Reduced Movement Total | T91: =T90*(1-AO90) -> 13.6 | U91: =(T90*(1-$AO90))+U90+V90 -> 107.6 | X91: =X90+Y90+Z90 -> 163 | AB91: =AB90*(1-AU90) -> 0 | AC91: =(AB90*(1-$AO90))+AC90+AD90 -> 17 | AF91: =AF90+AG90+AH90 -> 171
A92: ='[1]SR 32 & Shuster Rd.'!A92 -> 13:00:00 | B92: ='[1]SR 32 & Shuster Rd.'!B92 -> 0 | C92: ='[1]SR 32 & Shuster Rd.'!C92 -> 0 | D92: ='[1]SR 32 & Shuster Rd.'!D92+'[1]SR 32 & Germany Rd.'!C92+'[1]SR 32 & Germany Rd.'!D92 -> 0 | E92: ='[1]SR 32 & Shuster Rd.'!E92 -> 0 | F92: ='[1]SR 32 & Shuster Rd.'!F92 -> 0 | G92: ='[1]SR 32 & Shuster Rd.'!G92 -> 0 | H92: ='[1]SR 32 & Shuster Rd.'!H92 -> 0 | I92: ='[1]SR 32 & Shuster Rd.'!I92 -> 0 | J92: ='[1]SR 32 & Shuster Rd.'!J92 -> 0 | K92: ='[1]SR 32 & Shuster Rd.'!K92 -> 0 | L92: ='[1]SR 32 & Shuster Rd.'!L92 -> 0 | M92: ='[1]SR 32 & Shuster Rd.'!M92 -> 0 | N92: ='[1]SR 32 & Shuster Rd.'!N92 -> 0 | O92: ='[1]SR 32 & Shuster Rd.'!O92 -> 0 | P92: ='[1]SR 32 & Shuster Rd.'!P92+'[1]SR 32 & Germany Rd.'!P92 -> 0 | Q92: ='[1]SR 32 & Shuster Rd.'!Q92 -> 0 | S92: 13:00:00 | T92: =SUM(B90:B92) -> 4 | U92: 3 | V92: 22 | W92: 0 | X92: 4 | Y92: 40 | Z92: 0 | AA92: 0 | AB92: 3 | AC92: 1 | AD92: 3 | AE92: 0 | AF92: 4 | AG92: 39 | AH92: 7 | AI92: 0
A93: ='[1]SR 32 & Shuster Rd.'!A93 -> 13:15:00 | B93: ='[1]SR 32 & Shuster Rd.'!B93 -> 2 | C93: ='[1]SR 32 & Shuster Rd.'!C93 -> 3 | D93: ='[1]SR 32 & Shuster Rd.'!D93+'[1]SR 32 & Germany Rd.'!C93+'[1]SR 32 & Germany Rd.'!D93 -> 19 | E93: ='[1]SR 32 & Shuster Rd.'!E93 -> 0 | F93: ='[1]SR 32 & Shuster Rd.'!F93 -> 2 | G93: ='[1]SR 32 & Shuster Rd.'!G93 -> 28 | H93: ='[1]SR 32 & Shuster Rd.'!H93 -> 0 | I93: ='[1]SR 32 & Shuster Rd.'!I93 -> 0 | J93: ='[1]SR 32 & Shuster Rd.'!J93 -> 0 | K93: ='[1]SR 32 & Shuster Rd.'!K93 -> 4 | L93: ='[1]SR 32 & Shuster Rd.'!L93 -> 1 | M93: ='[1]SR 32 & Shuster Rd.'!M93 -> 0 | N93: ='[1]SR 32 & Shuster Rd.'!N93 -> 3 | O93: ='[1]SR 32 & Shuster Rd.'!O93 -> 39 | P93: ='[1]SR 32 & Shuster Rd.'!P93+'[1]SR 32 & Germany Rd.'!P93 -> 5 | Q93: ='[1]SR 32 & Shuster Rd.'!Q93 -> 0
A94: ='[1]SR 32 & Shuster Rd.'!A94 -> 13:15:00 | B94: ='[1]SR 32 & Shuster Rd.'!B94 -> 0 | C94: ='[1]SR 32 & Shuster Rd.'!C94 -> 0 | D94: ='[1]SR 32 & Shuster Rd.'!D94+'[1]SR 32 & Germany Rd.'!C94+'[1]SR 32 & Germany Rd.'!D94 -> 0 | E94: ='[1]SR 32 & Shuster Rd.'!E94 -> 0 | F94: ='[1]SR 32 & Shuster Rd.'!F94 -> 0 | G94: ='[1]SR 32 & Shuster Rd.'!G94 -> 7 | H94: ='[1]SR 32 & Shuster Rd.'!H94 -> 0 | I94: ='[1]SR 32 & Shuster Rd.'!I94 -> 0 | J94: ='[1]SR 32 & Shuster Rd.'!J94 -> 0 | K94: ='[1]SR 32 & Shuster Rd.'!K94 -> 0 | L94: ='[1]SR 32 & Shuster Rd.'!L94 -> 0 | M94: ='[1]SR 32 & Shuster Rd.'!M94 -> 0 | N94: ='[1]SR 32 & Shuster Rd.'!N94 -> 0 | O94: ='[1]SR 32 & Shuster Rd.'!O94 -> 6 | P94: ='[1]SR 32 & Shuster Rd.'!P94+'[1]SR 32 & Germany Rd.'!P94 -> 1 | Q94: ='[1]SR 32 & Shuster Rd.'!Q94 -> 0
A95: ='[1]SR 32 & Shuster Rd.'!A95 -> 13:15:00 | B95: ='[1]SR 32 & Shuster Rd.'!B95 -> 0 | C95: ='[1]SR 32 & Shuster Rd.'!C95 -> 0 | D95: ='[1]SR 32 & Shuster Rd.'!D95+'[1]SR 32 & Germany Rd.'!C95+'[1]SR 32 & Germany Rd.'!D95 -> 0 | E95: ='[1]SR 32 & Shuster Rd.'!E95 -> 0 | F95: ='[1]SR 32 & Shuster Rd.'!F95 -> 0 | G95: ='[1]SR 32 & Shuster Rd.'!G95 -> 0 | H95: ='[1]SR 32 & Shuster Rd.'!H95 -> 0 | I95: ='[1]SR 32 & Shuster Rd.'!I95 -> 0 | J95: ='[1]SR 32 & Shuster Rd.'!J95 -> 0 | K95: ='[1]SR 32 & Shuster Rd.'!K95 -> 0 | L95: ='[1]SR 32 & Shuster Rd.'!L95 -> 0 | M95: ='[1]SR 32 & Shuster Rd.'!M95 -> 0 | N95: ='[1]SR 32 & Shuster Rd.'!N95 -> 0 | O95: ='[1]SR 32 & Shuster Rd.'!O95 -> 0 | P95: ='[1]SR 32 & Shuster Rd.'!P95+'[1]SR 32 & Germany Rd.'!P95 -> 0 | Q95: ='[1]SR 32 & Shuster Rd.'!Q95 -> 0 | S95: 13:15:00 | T95: =SUM(B93:B95) -> 2 | U95: 3 | V95: 19 | W95: 0 | X95: 2 | Y95: 35 | Z95: 0 | AA95: 0 | AB95: 0 | AC95: 4 | AD95: 1 | AE95: 0 | AF95: 3 | AG95: 45 | AH95: 6 | AI95: 0
A96: ='[1]SR 32 & Shuster Rd.'!A96 -> 13:30:00 | B96: ='[1]SR 32 & Shuster Rd.'!B96 -> 1 | C96: ='[1]SR 32 & Shuster Rd.'!C96 -> 1 | D96: ='[1]SR 32 & Shuster Rd.'!D96+'[1]SR 32 & Germany Rd.'!C96+'[1]SR 32 & Germany Rd.'!D96 -> 23 | E96: ='[1]SR 32 & Shuster Rd.'!E96 -> 0 | F96: ='[1]SR 32 & Shuster Rd.'!F96 -> 3 | G96: ='[1]SR 32 & Shuster Rd.'!G96 -> 41 | H96: ='[1]SR 32 & Shuster Rd.'!H96 -> 2 | I96: ='[1]SR 32 & Shuster Rd.'!I96 -> 0 | J96: ='[1]SR 32 & Shuster Rd.'!J96 -> 0 | K96: ='[1]SR 32 & Shuster Rd.'!K96 -> 3 | L96: ='[1]SR 32 & Shuster Rd.'!L96 -> 2 | M96: ='[1]SR 32 & Shuster Rd.'!M96 -> 0 | N96: ='[1]SR 32 & Shuster Rd.'!N96 -> 3 | O96: ='[1]SR 32 & Shuster Rd.'!O96 -> 33 | P96: ='[1]SR 32 & Shuster Rd.'!P96+'[1]SR 32 & Germany Rd.'!P96 -> 12 | Q96: ='[1]SR 32 & Shuster Rd.'!Q96 -> 0
A97: ='[1]SR 32 & Shuster Rd.'!A97 -> 13:30:00 | B97: ='[1]SR 32 & Shuster Rd.'!B97 -> 1 | C97: ='[1]SR 32 & Shuster Rd.'!C97 -> 0 | D97: ='[1]SR 32 & Shuster Rd.'!D97+'[1]SR 32 & Germany Rd.'!C97+'[1]SR 32 & Germany Rd.'!D97 -> 1 | E97: ='[1]SR 32 & Shuster Rd.'!E97 -> 0 | F97: ='[1]SR 32 & Shuster Rd.'!F97 -> 0 | G97: ='[1]SR 32 & Shuster Rd.'!G97 -> 10 | H97: ='[1]SR 32 & Shuster Rd.'!H97 -> 0 | I97: ='[1]SR 32 & Shuster Rd.'!I97 -> 0 | J97: ='[1]SR 32 & Shuster Rd.'!J97 -> 0 | K97: ='[1]SR 32 & Shuster Rd.'!K97 -> 1 | L97: ='[1]SR 32 & Shuster Rd.'!L97 -> 0 | M97: ='[1]SR 32 & Shuster Rd.'!M97 -> 0 | N97: ='[1]SR 32 & Shuster Rd.'!N97 -> 0 | O97: ='[1]SR 32 & Shuster Rd.'!O97 -> 10 | P97: ='[1]SR 32 & Shuster Rd.'!P97+'[1]SR 32 & Germany Rd.'!P97 -> 1 | Q97: ='[1]SR 32 & Shuster Rd.'!Q97 -> 0
A98: ='[1]SR 32 & Shuster Rd.'!A98 -> 13:30:00 | B98: ='[1]SR 32 & Shuster Rd.'!B98 -> 0 | C98: ='[1]SR 32 & Shuster Rd.'!C98 -> 0 | D98: ='[1]SR 32 & Shuster Rd.'!D98+'[1]SR 32 & Germany Rd.'!C98+'[1]SR 32 & Germany Rd.'!D98 -> 0 | E98: ='[1]SR 32 & Shuster Rd.'!E98 -> 0 | F98: ='[1]SR 32 & Shuster Rd.'!F98 -> 0 | G98: ='[1]SR 32 & Shuster Rd.'!G98 -> 0 | H98: ='[1]SR 32 & Shuster Rd.'!H98 -> 0 | I98: ='[1]SR 32 & Shuster Rd.'!I98 -> 0 | J98: ='[1]SR 32 & Shuster Rd.'!J98 -> 0 | K98: ='[1]SR 32 & Shuster Rd.'!K98 -> 0 | L98: ='[1]SR 32 & Shuster Rd.'!L98 -> 0 | M98: ='[1]SR 32 & Shuster Rd.'!M98 -> 0 | N98: ='[1]SR 32 & Shuster Rd.'!N98 -> 0 | O98: ='[1]SR 32 & Shuster Rd.'!O98 -> 0 | P98: ='[1]SR 32 & Shuster Rd.'!P98+'[1]SR 32 & Germany Rd.'!P98 -> 0 | Q98: ='[1]SR 32 & Shuster Rd.'!Q98 -> 0 | S98: 13:30:00 | T98: =SUM(B96:B98) -> 2 | U98: 1 | V98: 24 | W98: 0 | X98: 3 | Y98: 51 | Z98: 2 | AA98: 0 | AB98: 0 | AC98: 4 | AD98: 2 | AE98: 0 | AF98: 3 | AG98: 43 | AH98: 13 | AI98: 0
A99: ='[1]SR 32 & Shuster Rd.'!A99 -> 13:45:00 | B99: ='[1]SR 32 & Shuster Rd.'!B99 -> 2 | C99: ='[1]SR 32 & Shuster Rd.'!C99 -> 4 | D99: ='[1]SR 32 & Shuster Rd.'!D99+'[1]SR 32 & Germany Rd.'!C99+'[1]SR 32 & Germany Rd.'!D99 -> 28 | E99: ='[1]SR 32 & Shuster Rd.'!E99 -> 0 | F99: ='[1]SR 32 & Shuster Rd.'!F99 -> 8 | G99: ='[1]SR 32 & Shuster Rd.'!G99 -> 37 | H99: ='[1]SR 32 & Shuster Rd.'!H99 -> 0 | I99: ='[1]SR 32 & Shuster Rd.'!I99 -> 0 | J99: ='[1]SR 32 & Shuster Rd.'!J99 -> 0 | K99: ='[1]SR 32 & Shuster Rd.'!K99 -> 4 | L99: ='[1]SR 32 & Shuster Rd.'!L99 -> 3 | M99: ='[1]SR 32 & Shuster Rd.'!M99 -> 0 | N99: ='[1]SR 32 & Shuster Rd.'!N99 -> 1 | O99: ='[1]SR 32 & Shuster Rd.'!O99 -> 28 | P99: ='[1]SR 32 & Shuster Rd.'!P99+'[1]SR 32 & Germany Rd.'!P99 -> 17 | Q99: ='[1]SR 32 & Shuster Rd.'!Q99 -> 0
A100: ='[1]SR 32 & Shuster Rd.'!A100 -> 13:45:00 | B100: ='[1]SR 32 & Shuster Rd.'!B100 -> 4 | C100: ='[1]SR 32 & Shuster Rd.'!C100 -> 0 | D100: ='[1]SR 32 & Shuster Rd.'!D100+'[1]SR 32 & Germany Rd.'!C100+'[1]SR 32 & Germany Rd.'!D100 -> 0 | E100: ='[1]SR 32 & Shuster Rd.'!E100 -> 0 | F100: ='[1]SR 32 & Shuster Rd.'!F100 -> 0 | G100: ='[1]SR 32 & Shuster Rd.'!G100 -> 14 | H100: ='[1]SR 32 & Shuster Rd.'!H100 -> 0 | I100: ='[1]SR 32 & Shuster Rd.'!I100 -> 0 | J100: ='[1]SR 32 & Shuster Rd.'!J100 -> 0 | K100: ='[1]SR 32 & Shuster Rd.'!K100 -> 0 | L100: ='[1]SR 32 & Shuster Rd.'!L100 -> 0 | M100: ='[1]SR 32 & Shuster Rd.'!M100 -> 0 | N100: ='[1]SR 32 & Shuster Rd.'!N100 -> 0 | O100: ='[1]SR 32 & Shuster Rd.'!O100 -> 13 | P100: ='[1]SR 32 & Shuster Rd.'!P100+'[1]SR 32 & Germany Rd.'!P100 -> 2 | Q100: ='[1]SR 32 & Shuster Rd.'!Q100 -> 0
A101: ='[1]SR 32 & Shuster Rd.'!A101 -> 13:45:00 | B101: ='[1]SR 32 & Shuster Rd.'!B101 -> 0 | C101: ='[1]SR 32 & Shuster Rd.'!C101 -> 0 | D101: ='[1]SR 32 & Shuster Rd.'!D101+'[1]SR 32 & Germany Rd.'!C101+'[1]SR 32 & Germany Rd.'!D101 -> 0 | E101: ='[1]SR 32 & Shuster Rd.'!E101 -> 0 | F101: ='[1]SR 32 & Shuster Rd.'!F101 -> 0 | G101: ='[1]SR 32 & Shuster Rd.'!G101 -> 0 | H101: ='[1]SR 32 & Shuster Rd.'!H101 -> 0 | I101: ='[1]SR 32 & Shuster Rd.'!I101 -> 0 | J101: ='[1]SR 32 & Shuster Rd.'!J101 -> 0 | K101: ='[1]SR 32 & Shuster Rd.'!K101 -> 0 | L101: ='[1]SR 32 & Shuster Rd.'!L101 -> 0 | M101: ='[1]SR 32 & Shuster Rd.'!M101 -> 0 | N101: ='[1]SR 32 & Shuster Rd.'!N101 -> 0 | O101: ='[1]SR 32 & Shuster Rd.'!O101 -> 0 | P101: ='[1]SR 32 & Shuster Rd.'!P101+'[1]SR 32 & Germany Rd.'!P101 -> 0 | Q101: ='[1]SR 32 & Shuster Rd.'!Q101 -> 0 | S101: 13:45:00 | T101: =SUM(B99:B101) -> 6 | U101: 4 | V101: 28 | W101: 0 | X101: 8 | Y101: 51 | Z101: 0 | AA101: 0 | AB101: 0 | AC101: 4 | AD101: 3 | AE101: 0 | AF101: 1 | AG101: 41 | AH101: 19 | AI101: 0
A102: ='[1]SR 32 & Shuster Rd.'!A102 -> 14:00:00 | B102: ='[1]SR 32 & Shuster Rd.'!B102 -> 22 | C102: ='[1]SR 32 & Shuster Rd.'!C102 -> 3 | D102: ='[1]SR 32 & Shuster Rd.'!D102+'[1]SR 32 & Germany Rd.'!C102+'[1]SR 32 & Germany Rd.'!D102 -> 35 | E102: ='[1]SR 32 & Shuster Rd.'!E102 -> 0 | F102: ='[1]SR 32 & Shuster Rd.'!F102 -> 3 | G102: ='[1]SR 32 & Shuster Rd.'!G102 -> 38 | H102: ='[1]SR 32 & Shuster Rd.'!H102 -> 1 | I102: ='[1]SR 32 & Shuster Rd.'!I102 -> 0 | J102: ='[1]SR 32 & Shuster Rd.'!J102 -> 1 | K102: ='[1]SR 32 & Shuster Rd.'!K102 -> 2 | L102: ='[1]SR 32 & Shuster Rd.'!L102 -> 6 | M102: ='[1]SR 32 & Shuster Rd.'!M102 -> 0 | N102: ='[1]SR 32 & Shuster Rd.'!N102 -> 5 | O102: ='[1]SR 32 & Shuster Rd.'!O102 -> 29 | P102: ='[1]SR 32 & Shuster Rd.'!P102+'[1]SR 32 & Germany Rd.'!P102 -> 7 | Q102: ='[1]SR 32 & Shuster Rd.'!Q102 -> 0 | S102: Movement Total | T102: =SUM(T92,T95,T98,T101) -> 14 | U102: 11 | V102: 93 | W102: 0 | X102: 17 | Y102: 177 | Z102: 2 | AA102: 0 | AB102: 3 | AC102: 13 | AD102: 9 | AE102: 0 | AF102: 11 | AG102: 168 | AH102: 45 | AI102: 0 | AK102: 0.2 | AL102: - | AM102: =IF(X$2=FALSE,LOOKUP((Y102+X102)/$AM$4,'Main Line Reduction Table'!$A$1:$B$21,'Main Line Reduction Table'!$C$1:$C$21),LOOKUP(Y102/$AM$4,'Main Line Reduction Table'!$A$1:$B$21,'Main Line Reduction Table'!$C$1:$C$21)) -> 0 | AN102: = | AO102: =AK102-AM102 -> 0.2 | AQ102: 0.2 | AR102: - | AS102: =IF(AF$2=FALSE,LOOKUP((AG102+AF102)/$AS$4,'Main Line Reduction Table'!$A$1:$B$21,'Main Line Reduction Table'!$C$1:$C$21),LOOKUP(AG102/$AS$4,'Main Line Reduction Table'!$A$1:$B$21,'Main Line Reduction Table'!$C$1:$C$21)) -> 0 | AT102: = | AU102: =AQ102-AS102 -> 0.2
A103: ='[1]SR 32 & Shuster Rd.'!A103 -> 14:00:00 | B103: ='[1]SR 32 & Shuster Rd.'!B103 -> 0 | C103: ='[1]SR 32 & Shuster Rd.'!C103 -> 0 | D103: ='[1]SR 32 & Shuster Rd.'!D103+'[1]SR 32 & Germany Rd.'!C103+'[1]SR 32 & Germany Rd.'!D103 -> 1 | E103: ='[1]SR 32 & Shuster Rd.'!E103 -> 0 | F103: ='[1]SR 32 & Shuster Rd.'!F103 -> 0 | G103: ='[1]SR 32 & Shuster Rd.'!G103 -> 11 | H103: ='[1]SR 32 & Shuster Rd.'!H103 -> 0 | I103: ='[1]SR 32 & Shuster Rd.'!I103 -> 0 | J103: ='[1]SR 32 & Shuster Rd.'!J103 -> 0 | K103: ='[1]SR 32 & Shuster Rd.'!K103 -> 0 | L103: ='[1]SR 32 & Shuster Rd.'!L103 -> 0 | M103: ='[1]SR 32 & Shuster Rd.'!M103 -> 0 | N103: ='[1]SR 32 & Shuster Rd.'!N103 -> 0 | O103: ='[1]SR 32 & Shuster Rd.'!O103 -> 10 | P103: ='[1]SR 32 & Shuster Rd.'!P103+'[1]SR 32 & Germany Rd.'!P103 -> 2 | Q103: ='[1]SR 32 & Shuster Rd.'!Q103 -> 0 | S103: Reduced Movement Total | T103: =T102*(1-AO102) -> 11.2 | U103: =(T102*(1-$AO102))+U102+V102 -> 115.2 | X103: =X102+Y102+Z102 -> 196 | AB103: =AB102*(1-AU102) -> 2.4 | AC103: =(AB102*(1-$AO102))+AC102+AD102 -> 24.4 | AF103: =AF102+AG102+AH102 -> 224
A104: ='[1]SR 32 & Shuster Rd.'!A104 -> 14:00:00 | B104: ='[1]SR 32 & Shuster Rd.'!B104 -> 0 | C104: ='[1]SR 32 & Shuster Rd.'!C104 -> 0 | D104: ='[1]SR 32 & Shuster Rd.'!D104+'[1]SR 32 & Germany Rd.'!C104+'[1]SR 32 & Germany Rd.'!D104 -> 0 | E104: ='[1]SR 32 & Shuster Rd.'!E104 -> 0 | F104: ='[1]SR 32 & Shuster Rd.'!F104 -> 0 | G104: ='[1]SR 32 & Shuster Rd.'!G104 -> 0 | H104: ='[1]SR 32 & Shuster Rd.'!H104 -> 0 | I104: ='[1]SR 32 & Shuster Rd.'!I104 -> 0 | J104: ='[1]SR 32 & Shuster Rd.'!J104 -> 0 | K104: ='[1]SR 32 & Shuster Rd.'!K104 -> 0 | L104: ='[1]SR 32 & Shuster Rd.'!L104 -> 0 | M104: ='[1]SR 32 & Shuster Rd.'!M104 -> 0 | N104: ='[1]SR 32 & Shuster Rd.'!N104 -> 0 | O104: ='[1]SR 32 & Shuster Rd.'!O104 -> 0 | P104: ='[1]SR 32 & Shuster Rd.'!P104+'[1]SR 32 & Germany Rd.'!P104 -> 0 | Q104: ='[1]SR 32 & Shuster Rd.'!Q104 -> 0 | S104: 14:00:00 | T104: =SUM(B102:B104) -> 22 | U104: 3 | V104: 36 | W104: 0 | X104: 3 | Y104: 49 | Z104: 1 | AA104: 0 | AB104: 1 | AC104: 2 | AD104: 6 | AE104: 0 | AF104: 5 | AG104: 39 | AH104: 9 | AI104: 0
A105: ='[1]SR 32 & Shuster Rd.'!A105 -> 14:15:00 | B105: ='[1]SR 32 & Shuster Rd.'!B105 -> 10 | C105: ='[1]SR 32 & Shuster Rd.'!C105 -> 1 | D105: ='[1]SR 32 & Shuster Rd.'!D105+'[1]SR 32 & Germany Rd.'!C105+'[1]SR 32 & Germany Rd.'!D105 -> 42 | E105: ='[1]SR 32 & Shuster Rd.'!E105 -> 0 | F105: ='[1]SR 32 & Shuster Rd.'!F105 -> 2 | G105: ='[1]SR 32 & Shuster Rd.'!G105 -> 54 | H105: ='[1]SR 32 & Shuster Rd.'!H105 -> 0 | I105: ='[1]SR 32 & Shuster Rd.'!I105 -> 0 | J105: ='[1]SR 32 & Shuster Rd.'!J105 -> 0 | K105: ='[1]SR 32 & Shuster Rd.'!K105 -> 3 | L105: ='[1]SR 32 & Shuster Rd.'!L105 -> 3 | M105: ='[1]SR 32 & Shuster Rd.'!M105 -> 0 | N105: ='[1]SR 32 & Shuster Rd.'!N105 -> 4 | O105: ='[1]SR 32 & Shuster Rd.'!O105 -> 52 | P105: ='[1]SR 32 & Shuster Rd.'!P105+'[1]SR 32 & Germany Rd.'!P105 -> 2 | Q105: ='[1]SR 32 & Shuster Rd.'!Q105 -> 0
A106: ='[1]SR 32 & Shuster Rd.'!A106 -> 14:15:00 | B106: ='[1]SR 32 & Shuster Rd.'!B106 -> 0 | C106: ='[1]SR 32 & Shuster Rd.'!C106 -> 0 | D106: ='[1]SR 32 & Shuster Rd.'!D106+'[1]SR 32 & Germany Rd.'!C106+'[1]SR 32 & Germany Rd.'!D106 -> 0 | E106: ='[1]SR 32 & Shuster Rd.'!E106 -> 0 | F106: ='[1]SR 32 & Shuster Rd.'!F106 -> 0 | G106: ='[1]SR 32 & Shuster Rd.'!G106 -> 6 | H106: ='[1]SR 32 & Shuster Rd.'!H106 -> 0 | I106: ='[1]SR 32 & Shuster Rd.'!I106 -> 0 | J106: ='[1]SR 32 & Shuster Rd.'!J106 -> 0 | K106: ='[1]SR 32 & Shuster Rd.'!K106 -> 1 | L106: ='[1]SR 32 & Shuster Rd.'!L106 -> 0 | M106: ='[1]SR 32 & Shuster Rd.'!M106 -> 0 | N106: ='[1]SR 32 & Shuster Rd.'!N106 -> 0 | O106: ='[1]SR 32 & Shuster Rd.'!O106 -> 12 | P106: ='[1]SR 32 & Shuster Rd.'!P106+'[1]SR 32 & Germany Rd.'!P106 -> 0 | Q106: ='[1]SR 32 & Shuster Rd.'!Q106 -> 0
A107: ='[1]SR 32 & Shuster Rd.'!A107 -> 14:15:00 | B107: ='[1]SR 32 & Shuster Rd.'!B107 -> 0 | C107: ='[1]SR 32 & Shuster Rd.'!C107 -> 0 | D107: ='[1]SR 32 & Shuster Rd.'!D107+'[1]SR 32 & Germany Rd.'!C107+'[1]SR 32 & Germany Rd.'!D107 -> 0 | E107: ='[1]SR 32 & Shuster Rd.'!E107 -> 0 | F107: ='[1]SR 32 & Shuster Rd.'!F107 -> 0 | G107: ='[1]SR 32 & Shuster Rd.'!G107 -> 0 | H107: ='[1]SR 32 & Shuster Rd.'!H107 -> 0 | I107: ='[1]SR 32 & Shuster Rd.'!I107 -> 0 | J107: ='[1]SR 32 & Shuster Rd.'!J107 -> 0 | K107: ='[1]SR 32 & Shuster Rd.'!K107 -> 0 | L107: ='[1]SR 32 & Shuster Rd.'!L107 -> 0 | M107: ='[1]SR 32 & Shuster Rd.'!M107 -> 0 | N107: ='[1]SR 32 & Shuster Rd.'!N107 -> 0 | O107: ='[1]SR 32 & Shuster Rd.'!O107 -> 0 | P107: ='[1]SR 32 & Shuster Rd.'!P107+'[1]SR 32 & Germany Rd.'!P107 -> 0 | Q107: ='[1]SR 32 & Shuster Rd.'!Q107 -> 0 | S107: 14:15:00 | T107: =SUM(B105:B107) -> 10 | U107: 1 | V107: 42 | W107: 0 | X107: 2 | Y107: 60 | Z107: 0 | AA107: 0 | AB107: 0 | AC107: 4 | AD107: 3 | AE107: 0 | AF107: 4 | AG107: 64 | AH107: 2 | AI107: 0
A108: ='[1]SR 32 & Shuster Rd.'!A108 -> 14:30:00 | B108: ='[1]SR 32 & Shuster Rd.'!B108 -> 11 | C108: ='[1]SR 32 & Shuster Rd.'!C108 -> 3 | D108: ='[1]SR 32 & Shuster Rd.'!D108+'[1]SR 32 & Germany Rd.'!C108+'[1]SR 32 & Germany Rd.'!D108 -> 34 | E108: ='[1]SR 32 & Shuster Rd.'!E108 -> 0 | F108: ='[1]SR 32 & Shuster Rd.'!F108 -> 3 | G108: ='[1]SR 32 & Shuster Rd.'!G108 -> 46 | H108: ='[1]SR 32 & Shuster Rd.'!H108 -> 1 | I108: ='[1]SR 32 & Shuster Rd.'!I108 -> 0 | J108: ='[1]SR 32 & Shuster Rd.'!J108 -> 0 | K108: ='[1]SR 32 & Shuster Rd.'!K108 -> 6 | L108: ='[1]SR 32 & Shuster Rd.'!L108 -> 3 | M108: ='[1]SR 32 & Shuster Rd.'!M108 -> 0 | N108: ='[1]SR 32 & Shuster Rd.'!N108 -> 4 | O108: ='[1]SR 32 & Shuster Rd.'!O108 -> 54 | P108: ='[1]SR 32 & Shuster Rd.'!P108+'[1]SR 32 & Germany Rd.'!P108 -> 4 | Q108: ='[1]SR 32 & Shuster Rd.'!Q108 -> 0
A109: ='[1]SR 32 & Shuster Rd.'!A109 -> 14:30:00 | B109: ='[1]SR 32 & Shuster Rd.'!B109 -> 1 | C109: ='[1]SR 32 & Shuster Rd.'!C109 -> 0 | D109: ='[1]SR 32 & Shuster Rd.'!D109+'[1]SR 32 & Germany Rd.'!C109+'[1]SR 32 & Germany Rd.'!D109 -> 2 | E109: ='[1]SR 32 & Shuster Rd.'!E109 -> 0 | F109: ='[1]SR 32 & Shuster Rd.'!F109 -> 2 | G109: ='[1]SR 32 & Shuster Rd.'!G109 -> 10 | H109: ='[1]SR 32 & Shuster Rd.'!H109 -> 0 | I109: ='[1]SR 32 & Shuster Rd.'!I109 -> 0 | J109: ='[1]SR 32 & Shuster Rd.'!J109 -> 0 | K109: ='[1]SR 32 & Shuster Rd.'!K109 -> 0 | L109: ='[1]SR 32 & Shuster Rd.'!L109 -> 0 | M109: ='[1]SR 32 & Shuster Rd.'!M109 -> 0 | N109: ='[1]SR 32 & Shuster Rd.'!N109 -> 0 | O109: ='[1]SR 32 & Shuster Rd.'!O109 -> 17 | P109: ='[1]SR 32 & Shuster Rd.'!P109+'[1]SR 32 & Germany Rd.'!P109 -> 2 | Q109: ='[1]SR 32 & Shuster Rd.'!Q109 -> 0
A110: ='[1]SR 32 & Shuster Rd.'!A110 -> 14:30:00 | B110: ='[1]SR 32 & Shuster Rd.'!B110 -> 0 | C110: ='[1]SR 32 & Shuster Rd.'!C110 -> 0 | D110: ='[1]SR 32 & Shuster Rd.'!D110+'[1]SR 32 & Germany Rd.'!C110+'[1]SR 32 & Germany Rd.'!D110 -> 0 | E110: ='[1]SR 32 & Shuster Rd.'!E110 -> 0 | F110: ='[1]SR 32 & Shuster Rd.'!F110 -> 0 | G110: ='[1]SR 32 & Shuster Rd.'!G110 -> 0 | H110: ='[1]SR 32 & Shuster Rd.'!H110 -> 0 | I110: ='[1]SR 32 & Shuster Rd.'!I110 -> 0 | J110: ='[1]SR 32 & Shuster Rd.'!J110 -> 0 | K110: ='[1]SR 32 & Shuster Rd.'!K110 -> 0 | L110: ='[1]SR 32 & Shuster Rd.'!L110 -> 0 | M110: ='[1]SR 32 & Shuster Rd.'!M110 -> 0 | N110: ='[1]SR 32 & Shuster Rd.'!N110 -> 0 | O110: ='[1]SR 32 & Shuster Rd.'!O110 -> 0 | P110: ='[1]SR 32 & Shuster Rd.'!P110+'[1]SR 32 & Germany Rd.'!P110 -> 0 | Q110: ='[1]SR 32 & Shuster Rd.'!Q110 -> 0 | S110: 14:30:00 | T110: =SUM(B108:B110) -> 12 | U110: 3 | V110: 36 | W110: 0 | X110: 5 | Y110: 56 | Z110: 1 | AA110: 0 | AB110: 0 | AC110: 6 | AD110: 3 | AE110: 0 | AF110: 4 | AG110: 71 | AH110: 6 | AI110: 0
A111: ='[1]SR 32 & Shuster Rd.'!A111 -> 14:45:00 | B111: ='[1]SR 32 & Shuster Rd.'!B111 -> 7 | C111: ='[1]SR 32 & Shuster Rd.'!C111 -> 5 | D111: ='[1]SR 32 & Shuster Rd.'!D111+'[1]SR 32 & Germany Rd.'!C111+'[1]SR 32 & Germany Rd.'!D111 -> 47 | E111: ='[1]SR 32 & Shuster Rd.'!E111 -> 0 | F111: ='[1]SR 32 & Shuster Rd.'!F111 -> 1 | G111: ='[1]SR 32 & Shuster Rd.'!G111 -> 48 | H111: ='[1]SR 32 & Shuster Rd.'!H111 -> 1 | I111: ='[1]SR 32 & Shuster Rd.'!I111 -> 0 | J111: ='[1]SR 32 & Shuster Rd.'!J111 -> 1 | K111: ='[1]SR 32 & Shuster Rd.'!K111 -> 4 | L111: ='[1]SR 32 & Shuster Rd.'!L111 -> 3 | M111: ='[1]SR 32 & Shuster Rd.'!M111 -> 0 | N111: ='[1]SR 32 & Shuster Rd.'!N111 -> 3 | O111: ='[1]SR 32 & Shuster Rd.'!O111 -> 35 | P111: ='[1]SR 32 & Shuster Rd.'!P111+'[1]SR 32 & Germany Rd.'!P111 -> 9 | Q111: ='[1]SR 32 & Shuster Rd.'!Q111 -> 0
A112: ='[1]SR 32 & Shuster Rd.'!A112 -> 14:45:00 | B112: ='[1]SR 32 & Shuster Rd.'!B112 -> 1 | C112: ='[1]SR 32 & Shuster Rd.'!C112 -> 0 | D112: ='[1]SR 32 & Shuster Rd.'!D112+'[1]SR 32 & Germany Rd.'!C112+'[1]SR 32 & Germany Rd.'!D112 -> 0 | E112: ='[1]SR 32 & Shuster Rd.'!E112 -> 0 | F112: ='[1]SR 32 & Shuster Rd.'!F112 -> 1 | G112: ='[1]SR 32 & Shuster Rd.'!G112 -> 6 | H112: ='[1]SR 32 & Shuster Rd.'!H112 -> 0 | I112: ='[1]SR 32 & Shuster Rd.'!I112 -> 0 | J112: ='[1]SR 32 & Shuster Rd.'!J112 -> 0 | K112: ='[1]SR 32 & Shuster Rd.'!K112 -> 0 | L112: ='[1]SR 32 & Shuster Rd.'!L112 -> 0 | M112: ='[1]SR 32 & Shuster Rd.'!M112 -> 0 | N112: ='[1]SR 32 & Shuster Rd.'!N112 -> 0 | O112: ='[1]SR 32 & Shuster Rd.'!O112 -> 9 | P112: ='[1]SR 32 & Shuster Rd.'!P112+'[1]SR 32 & Germany Rd.'!P112 -> 1 | Q112: ='[1]SR 32 & Shuster Rd.'!Q112 -> 0
A113: ='[1]SR 32 & Shuster Rd.'!A113 -> 14:45:00 | B113: ='[1]SR 32 & Shuster Rd.'!B113 -> 0 | C113: ='[1]SR 32 & Shuster Rd.'!C113 -> 0 | D113: ='[1]SR 32 & Shuster Rd.'!D113+'[1]SR 32 & Germany Rd.'!C113+'[1]SR 32 & Germany Rd.'!D113 -> 0 | E113: ='[1]SR 32 & Shuster Rd.'!E113 -> 0 | F113: ='[1]SR 32 & Shuster Rd.'!F113 -> 0 | G113: ='[1]SR 32 & Shuster Rd.'!G113 -> 0 | H113: ='[1]SR 32 & Shuster Rd.'!H113 -> 0 | I113: ='[1]SR 32 & Shuster Rd.'!I113 -> 0 | J113: ='[1]SR 32 & Shuster Rd.'!J113 -> 0 | K113: ='[1]SR 32 & Shuster Rd.'!K113 -> 0 | L113: ='[1]SR 32 & Shuster Rd.'!L113 -> 0 | M113: ='[1]SR 32 & Shuster Rd.'!M113 -> 0 | N113: ='[1]SR 32 & Shuster Rd.'!N113 -> 0 | O113: ='[1]SR 32 & Shuster Rd.'!O113 -> 0 | P113: ='[1]SR 32 & Shuster Rd.'!P113+'[1]SR 32 & Germany Rd.'!P113 -> 0 | Q113: ='[1]SR 32 & Shuster Rd.'!Q113 -> 0 | S113: 14:45:00 | T113: =SUM(B111:B113) -> 8 | U113: 5 | V113: 47 | W113: 0 | X113: 2 | Y113: 54 | Z113: 1 | AA113: 0 | AB113: 1 | AC113: 4 | AD113: 3 | AE113: 0 | AF113: 3 | AG113: 44 | AH113: 10 | AI113: 0
A114: ='[1]SR 32 & Shuster Rd.'!A114 -> 15:00:00 | B114: ='[1]SR 32 & Shuster Rd.'!B114 -> 11 | C114: ='[1]SR 32 & Shuster Rd.'!C114 -> 9 | D114: ='[1]SR 32 & Shuster Rd.'!D114+'[1]SR 32 & Germany Rd.'!C114+'[1]SR 32 & Germany Rd.'!D114 -> 71 | E114: ='[1]SR 32 & Shuster Rd.'!E114 -> 0 | F114: ='[1]SR 32 & Shuster Rd.'!F114 -> 2 | G114: ='[1]SR 32 & Shuster Rd.'!G114 -> 32 | H114: ='[1]SR 32 & Shuster Rd.'!H114 -> 0 | I114: ='[1]SR 32 & Shuster Rd.'!I114 -> 0 | J114: ='[1]SR 32 & Shuster Rd.'!J114 -> 0 | K114: ='[1]SR 32 & Shuster Rd.'!K114 -> 2 | L114: ='[1]SR 32 & Shuster Rd.'!L114 -> 2 | M114: ='[1]SR 32 & Shuster Rd.'!M114 -> 0 | N114: ='[1]SR 32 & Shuster Rd.'!N114 -> 6 | O114: ='[1]SR 32 & Shuster Rd.'!O114 -> 43 | P114: ='[1]SR 32 & Shuster Rd.'!P114+'[1]SR 32 & Germany Rd.'!P114 -> 9 | Q114: ='[1]SR 32 & Shuster Rd.'!Q114 -> 0 | S114: Movement Total | T114: =SUM(T104,T107,T110,T113) -> 52 | U114: 12 | V114: 161 | W114: 0 | X114: 12 | Y114: 219 | Z114: 3 | AA114: 0 | AB114: 2 | AC114: 16 | AD114: 15 | AE114: 0 | AF114: 16 | AG114: 218 | AH114: 27 | AI114: 0 | AK114: 0.4 | AL114: - | AM114: =IF(X$2=FALSE,LOOKUP((Y114+X114)/$AM$4,'Main Line Reduction Table'!$A$1:$B$21,'Main Line Reduction Table'!$C$1:$C$21),LOOKUP(Y114/$AM$4,'Main Line Reduction Table'!$A$1:$B$21,'Main Line Reduction Table'!$C$1:$C$21)) -> 0 | AN114: = | AO114: =AK114-AM114 -> 0.4 | AQ114: 0.2 | AR114: - | AS114: =IF(AF$2=FALSE,LOOKUP((AG114+AF114)/$AS$4,'Main Line Reduction Table'!$A$1:$B$21,'Main Line Reduction Table'!$C$1:$C$21),LOOKUP(AG114/$AS$4,'Main Line Reduction Table'!$A$1:$B$21,'Main Line Reduction Table'!$C$1:$C$21)) -> 0 | AT114: = | AU114: =AQ114-AS114 -> 0.2
A115: ='[1]SR 32 & Shuster Rd.'!A115 -> 15:00:00 | B115: ='[1]SR 32 & Shuster Rd.'!B115 -> 0 | C115: ='[1]SR 32 & Shuster Rd.'!C115 -> 0 | D115: ='[1]SR 32 & Shuster Rd.'!D115+'[1]SR 32 & Germany Rd.'!C115+'[1]SR 32 & Germany Rd.'!D115 -> 1 | E115: ='[1]SR 32 & Shuster Rd.'!E115 -> 0 | F115: ='[1]SR 32 & Shuster Rd.'!F115 -> 0 | G115: ='[1]SR 32 & Shuster Rd.'!G115 -> 4 | H115: ='[1]SR 32 & Shuster Rd.'!H115 -> 0 | I115: ='[1]SR 32 & Shuster Rd.'!I115 -> 0 | J115: ='[1]SR 32 & Shuster Rd.'!J115 -> 0 | K115: ='[1]SR 32 & Shuster Rd.'!K115 -> 0 | L115: ='[1]SR 32 & Shuster Rd.'!L115 -> 0 | M115: ='[1]SR 32 & Shuster Rd.'!M115 -> 0 | N115: ='[1]SR 32 & Shuster Rd.'!N115 -> 0 | O115: ='[1]SR 32 & Shuster Rd.'!O115 -> 6 | P115: ='[1]SR 32 & Shuster Rd.'!P115+'[1]SR 32 & Germany Rd.'!P115 -> 1 | Q115: ='[1]SR 32 & Shuster Rd.'!Q115 -> 0 | S115: Reduced Movement Total | T115: =T114*(1-AO114) -> 31.2 | U115: =(T114*(1-$AO114))+U114+V114 -> 204.2 | X115: =X114+Y114+Z114 -> 234 | AB115: =AB114*(1-AU114) -> 1.6 | AC115: =(AB114*(1-$AO114))+AC114+AD114 -> 32.2 | AF115: =AF114+AG114+AH114 -> 261
A116: ='[1]SR 32 & Shuster Rd.'!A116 -> 15:00:00 | B116: ='[1]SR 32 & Shuster Rd.'!B116 -> 0 | C116: ='[1]SR 32 & Shuster Rd.'!C116 -> 0 | D116: ='[1]SR 32 & Shuster Rd.'!D116+'[1]SR 32 & Germany Rd.'!C116+'[1]SR 32 & Germany Rd.'!D116 -> 0 | E116: ='[1]SR 32 & Shuster Rd.'!E116 -> 0 | F116: ='[1]SR 32 & Shuster Rd.'!F116 -> 0 | G116: ='[1]SR 32 & Shuster Rd.'!G116 -> 0 | H116: ='[1]SR 32 & Shuster Rd.'!H116 -> 0 | I116: ='[1]SR 32 & Shuster Rd.'!I116 -> 0 | J116: ='[1]SR 32 & Shuster Rd.'!J116 -> 0 | K116: ='[1]SR 32 & Shuster Rd.'!K116 -> 0 | L116: ='[1]SR 32 & Shuster Rd.'!L116 -> 0 | M116: ='[1]SR 32 & Shuster Rd.'!M116 -> 0 | N116: ='[1]SR 32 & Shuster Rd.'!N116 -> 0 | O116: ='[1]SR 32 & Shuster Rd.'!O116 -> 0 | P116: ='[1]SR 32 & Shuster Rd.'!P116+'[1]SR 32 & Germany Rd.'!P116 -> 0 | Q116: ='[1]SR 32 & Shuster Rd.'!Q116 -> 0 | S116: 15:00:00 | T116: =SUM(B114:B116) -> 11 | U116: 9 | V116: 72 | W116: 0 | X116: 2 | Y116: 36 | Z116: 0 | AA116: 0 | AB116: 0 | AC116: 2 | AD116: 2 | AE116: 0 | AF116: 6 | AG116: 49 | AH116: 10 | AI116: 0
A117: ='[1]SR 32 & Shuster Rd.'!A117 -> 15:15:00 | B117: ='[1]SR 32 & Shuster Rd.'!B117 -> 7 | C117: ='[1]SR 32 & Shuster Rd.'!C117 -> 5 | D117: ='[1]SR 32 & Shuster Rd.'!D117+'[1]SR 32 & Germany Rd.'!C117+'[1]SR 32 & Germany Rd.'!D117 -> 55 | E117: ='[1]SR 32 & Shuster Rd.'!E117 -> 0 | F117: ='[1]SR 32 & Shuster Rd.'!F117 -> 1 | G117: ='[1]SR 32 & Shuster Rd.'!G117 -> 44 | H117: ='[1]SR 32 & Shuster Rd.'!H117 -> 3 | I117: ='[1]SR 32 & Shuster Rd.'!I117 -> 0 | J117: ='[1]SR 32 & Shuster Rd.'!J117 -> 1 | K117: ='[1]SR 32 & Shuster Rd.'!K117 -> 6 | L117: ='[1]SR 32 & Shuster Rd.'!L117 -> 1 | M117: ='[1]SR 32 & Shuster Rd.'!M117 -> 0 | N117: ='[1]SR 32 & Shuster Rd.'!N117 -> 2 | O117: ='[1]SR 32 & Shuster Rd.'!O117 -> 52 | P117: ='[1]SR 32 & Shuster Rd.'!P117+'[1]SR 32 & Germany Rd.'!P117 -> 2 | Q117: ='[1]SR 32 & Shuster Rd.'!Q117 -> 0
A118: ='[1]SR 32 & Shuster Rd.'!A118 -> 15:15:00 | B118: ='[1]SR 32 & Shuster Rd.'!B118 -> 1 | C118: ='[1]SR 32 & Shuster Rd.'!C118 -> 0 | D118: ='[1]SR 32 & Shuster Rd.'!D118+'[1]SR 32 & Germany Rd.'!C118+'[1]SR 32 & Germany Rd.'!D118 -> 1 | E118: ='[1]SR 32 & Shuster Rd.'!E118 -> 0 | F118: ='[1]SR 32 & Shuster Rd.'!F118 -> 1 | G118: ='[1]SR 32 & Shuster Rd.'!G118 -> 8 | H118: ='[1]SR 32 & Shuster Rd.'!H118 -> 0 | I118: ='[1]SR 32 & Shuster Rd.'!I118 -> 0 | J118: ='[1]SR 32 & Shuster Rd.'!J118 -> 0 | K118: ='[1]SR 32 & Shuster Rd.'!K118 -> 0 | L118: ='[1]SR 32 & Shuster Rd.'!L118 -> 0 | M118: ='[1]SR 32 & Shuster Rd.'!M118 -> 0 | N118: ='[1]SR 32 & Shuster Rd.'!N118 -> 0 | O118: ='[1]SR 32 & Shuster Rd.'!O118 -> 4 | P118: ='[1]SR 32 & Shuster Rd.'!P118+'[1]SR 32 & Germany Rd.'!P118 -> 1 | Q118: ='[1]SR 32 & Shuster Rd.'!Q118 -> 0
A119: ='[1]SR 32 & Shuster Rd.'!A119 -> 15:15:00 | B119: ='[1]SR 32 & Shuster Rd.'!B119 -> 0 | C119: ='[1]SR 32 & Shuster Rd.'!C119 -> 0 | D119: ='[1]SR 32 & Shuster Rd.'!D119+'[1]SR 32 & Germany Rd.'!C119+'[1]SR 32 & Germany Rd.'!D119 -> 0 | E119: ='[1]SR 32 & Shuster Rd.'!E119 -> 0 | F119: ='[1]SR 32 & Shuster Rd.'!F119 -> 0 | G119: ='[1]SR 32 & Shuster Rd.'!G119 -> 0 | H119: ='[1]SR 32 & Shuster Rd.'!H119 -> 0 | I119: ='[1]SR 32 & Shuster Rd.'!I119 -> 0 | J119: ='[1]SR 32 & Shuster Rd.'!J119 -> 0 | K119: ='[1]SR 32 & Shuster Rd.'!K119 -> 0 | L119: ='[1]SR 32 & Shuster Rd.'!L119 -> 0 | M119: ='[1]SR 32 & Shuster Rd.'!M119 -> 0 | N119: ='[1]SR 32 & Shuster Rd.'!N119 -> 0 | O119: ='[1]SR 32 & Shuster Rd.'!O119 -> 0 | P119: ='[1]SR 32 & Shuster Rd.'!P119+'[1]SR 32 & Germany Rd.'!P119 -> 0 | Q119: ='[1]SR 32 & Shuster Rd.'!Q119 -> 0 | S119: 15:15:00 | T119: =SUM(B117:B119) -> 8 | U119: 5 | V119: 56 | W119: 0 | X119: 2 | Y119: 52 | Z119: 3 | AA119: 0 | AB119: 1 | AC119: 6 | AD119: 1 | AE119: 0 | AF119: 2 | AG119: 56 | AH119: 3 | AI119: 0
A120: ='[1]SR 32 & Shuster Rd.'!A120 -> 15:30:00 | B120: ='[1]SR 32 & Shuster Rd.'!B120 -> 11 | C120: ='[1]SR 32 & Shuster Rd.'!C120 -> 4 | D120: ='[1]SR 32 & Shuster Rd.'!D120+'[1]SR 32 & Germany Rd.'!C120+'[1]SR 32 & Germany Rd.'!D120 -> 53 | E120: ='[1]SR 32 & Shuster Rd.'!E120 -> 0 | F120: ='[1]SR 32 & Shuster Rd.'!F120 -> 2 | G120: ='[1]SR 32 & Shuster Rd.'!G120 -> 43 | H120: ='[1]SR 32 & Shuster Rd.'!H120 -> 1 | I120: ='[1]SR 32 & Shuster Rd.'!I120 -> 0 | J120: ='[1]SR 32 & Shuster Rd.'!J120 -> 3 | K120: ='[1]SR 32 & Shuster Rd.'!K120 -> 5 | L120: ='[1]SR 32 & Shuster Rd.'!L120 -> 4 | M120: ='[1]SR 32 & Shuster Rd.'!M120 -> 0 | N120: ='[1]SR 32 & Shuster Rd.'!N120 -> 4 | O120: ='[1]SR 32 & Shuster Rd.'!O120 -> 59 | P120: ='[1]SR 32 & Shuster Rd.'!P120+'[1]SR 32 & Germany Rd.'!P120 -> 14 | Q120: ='[1]SR 32 & Shuster Rd.'!Q120 -> 0
A121: ='[1]SR 32 & Shuster Rd.'!A121 -> 15:30:00 | B121: ='[1]SR 32 & Shuster Rd.'!B121 -> 0 | C121: ='[1]SR 32 & Shuster Rd.'!C121 -> 0 | D121: ='[1]SR 32 & Shuster Rd.'!D121+'[1]SR 32 & Germany Rd.'!C121+'[1]SR 32 & Germany Rd.'!D121 -> 0 | E121: ='[1]SR 32 & Shuster Rd.'!E121 -> 0 | F121: ='[1]SR 32 & Shuster Rd.'!F121 -> 0 | G121: ='[1]SR 32 & Shuster Rd.'!G121 -> 4 | H121: ='[1]SR 32 & Shuster Rd.'!H121 -> 0 | I121: ='[1]SR 32 & Shuster Rd.'!I121 -> 0 | J121: ='[1]SR 32 & Shuster Rd.'!J121 -> 0 | K121: ='[1]SR 32 & Shuster Rd.'!K121 -> 0 | L121: ='[1]SR 32 & Shuster Rd.'!L121 -> 0 | M121: ='[1]SR 32 & Shuster Rd.'!M121 -> 0 | N121: ='[1]SR 32 & Shuster Rd.'!N121 -> 1 | O121: ='[1]SR 32 & Shuster Rd.'!O121 -> 6 | P121: ='[1]SR 32 & Shuster Rd.'!P121+'[1]SR 32 & Germany Rd.'!P121 -> 0 | Q121: ='[1]SR 32 & Shuster Rd.'!Q121 -> 0
A122: ='[1]SR 32 & Shuster Rd.'!A122 -> 15:30:00 | B122: ='[1]SR 32 & Shuster Rd.'!B122 -> 0 | C122: ='[1]SR 32 & Shuster Rd.'!C122 -> 0 | D122: ='[1]SR 32 & Shuster Rd.'!D122+'[1]SR 32 & Germany Rd.'!C122+'[1]SR 32 & Germany Rd.'!D122 -> 0 | E122: ='[1]SR 32 & Shuster Rd.'!E122 -> 0 | F122: ='[1]SR 32 & Shuster Rd.'!F122 -> 0 | G122: ='[1]SR 32 & Shuster Rd.'!G122 -> 0 | H122: ='[1]SR 32 & Shuster Rd.'!H122 -> 0 | I122: ='[1]SR 32 & Shuster Rd.'!I122 -> 0 | J122: ='[1]SR 32 & Shuster Rd.'!J122 -> 0 | K122: ='[1]SR 32 & Shuster Rd.'!K122 -> 0 | L122: ='[1]SR 32 & Shuster Rd.'!L122 -> 0 | M122: ='[1]SR 32 & Shuster Rd.'!M122 -> 0 | N122: ='[1]SR 32 & Shuster Rd.'!N122 -> 0 | O122: ='[1]SR 32 & Shuster Rd.'!O122 -> 0 | P122: ='[1]SR 32 & Shuster Rd.'!P122+'[1]SR 32 & Germany Rd.'!P122 -> 0 | Q122: ='[1]SR 32 & Shuster Rd.'!Q122 -> 0 | S122: 15:30:00 | T122: =SUM(B120:B122) -> 11 | U122: 4 | V122: 53 | W122: 0 | X122: 2 | Y122: 47 | Z122: 1 | AA122: 0 | AB122: 3 | AC122: 5 | AD122: 4 | AE122: 0 | AF122: 5 | AG122: 65 | AH122: 14 | AI122: 0
A123: ='[1]SR 32 & Shuster Rd.'!A123 -> 15:45:00 | B123: ='[1]SR 32 & Shuster Rd.'!B123 -> 3 | C123: ='[1]SR 32 & Shuster Rd.'!C123 -> 6 | D123: ='[1]SR 32 & Shuster Rd.'!D123+'[1]SR 32 & Germany Rd.'!C123+'[1]SR 32 & Germany Rd.'!D123 -> 35 | E123: ='[1]SR 32 & Shuster Rd.'!E123 -> 0 | F123: ='[1]SR 32 & Shuster Rd.'!F123 -> 2 | G123: ='[1]SR 32 & Shuster Rd.'!G123 -> 48 | H123: ='[1]SR 32 & Shuster Rd.'!H123 -> 1 | I123: ='[1]SR 32 & Shuster Rd.'!I123 -> 0 | J123: ='[1]SR 32 & Shuster Rd.'!J123 -> 0 | K123: ='[1]SR 32 & Shuster Rd.'!K123 -> 4 | L123: ='[1]SR 32 & Shuster Rd.'!L123 -> 1 | M123: ='[1]SR 32 & Shuster Rd.'!M123 -> 0 | N123: ='[1]SR 32 & Shuster Rd.'!N123 -> 2 | O123: ='[1]SR 32 & Shuster Rd.'!O123 -> 65 | P123: ='[1]SR 32 & Shuster Rd.'!P123+'[1]SR 32 & Germany Rd.'!P123 -> 10 | Q123: ='[1]SR 32 & Shuster Rd.'!Q123 -> 0
A124: ='[1]SR 32 & Shuster Rd.'!A124 -> 15:45:00 | B124: ='[1]SR 32 & Shuster Rd.'!B124 -> 0 | C124: ='[1]SR 32 & Shuster Rd.'!C124 -> 0 | D124: ='[1]SR 32 & Shuster Rd.'!D124+'[1]SR 32 & Germany Rd.'!C124+'[1]SR 32 & Germany Rd.'!D124 -> 1 | E124: ='[1]SR 32 & Shuster Rd.'!E124 -> 0 | F124: ='[1]SR 32 & Shuster Rd.'!F124 -> 0 | G124: ='[1]SR 32 & Shuster Rd.'!G124 -> 13 | H124: ='[1]SR 32 & Shuster Rd.'!H124 -> 0 | I124: ='[1]SR 32 & Shuster Rd.'!I124 -> 0 | J124: ='[1]SR 32 & Shuster Rd.'!J124 -> 0 | K124: ='[1]SR 32 & Shuster Rd.'!K124 -> 0 | L124: ='[1]SR 32 & Shuster Rd.'!L124 -> 0 | M124: ='[1]SR 32 & Shuster Rd.'!M124 -> 0 | N124: ='[1]SR 32 & Shuster Rd.'!N124 -> 1 | O124: ='[1]SR 32 & Shuster Rd.'!O124 -> 6 | P124: ='[1]SR 32 & Shuster Rd.'!P124+'[1]SR 32 & Germany Rd.'!P124 -> 2 | Q124: ='[1]SR 32 & Shuster Rd.'!Q124 -> 0
A125: ='[1]SR 32 & Shuster Rd.'!A125 -> 15:45:00 | B125: ='[1]SR 32 & Shuster Rd.'!B125 -> 0 | C125: ='[1]SR 32 & Shuster Rd.'!C125 -> 0 | D125: ='[1]SR 32 & Shuster Rd.'!D125+'[1]SR 32 & Germany Rd.'!C125+'[1]SR 32 & Germany Rd.'!D125 -> 0 | E125: ='[1]SR 32 & Shuster Rd.'!E125 -> 0 | F125: ='[1]SR 32 & Shuster Rd.'!F125 -> 0 | G125: ='[1]SR 32 & Shuster Rd.'!G125 -> 0 | H125: ='[1]SR 32 & Shuster Rd.'!H125 -> 0 | I125: ='[1]SR 32 & Shuster Rd.'!I125 -> 0 | J125: ='[1]SR 32 & Shuster Rd.'!J125 -> 0 | K125: ='[1]SR 32 & Shuster Rd.'!K125 -> 0 | L125: ='[1]SR 32 & Shuster Rd.'!L125 -> 0 | M125: ='[1]SR 32 & Shuster Rd.'!M125 -> 0 | N125: ='[1]SR 32 & Shuster Rd.'!N125 -> 0 | O125: ='[1]SR 32 & Shuster Rd.'!O125 -> 0 | P125: ='[1]SR 32 & Shuster Rd.'!P125+'[1]SR 32 & Germany Rd.'!P125 -> 0 | Q125: ='[1]SR 32 & Shuster Rd.'!Q125 -> 0 | S125: 15:45:00 | T125: =SUM(B123:B125) -> 3 | U125: 6 | V125: 36 | W125: 0 | X125: 2 | Y125: 61 | Z125: 1 | AA125: 0 | AB125: 0 | AC125: 4 | AD125: 1 | AE125: 0 | AF125: 3 | AG125: 71 | AH125: 12 | AI125: 0
A126: ='[1]SR 32 & Shuster Rd.'!A126 -> 16:00:00 | B126: ='[1]SR 32 & Shuster Rd.'!B126 -> 6 | C126: ='[1]SR 32 & Shuster Rd.'!C126 -> 14 | D126: ='[1]SR 32 & Shuster Rd.'!D126+'[1]SR 32 & Germany Rd.'!C126+'[1]SR 32 & Germany Rd.'!D126 -> 54 | E126: ='[1]SR 32 & Shuster Rd.'!E126 -> 0 | F126: ='[1]SR 32 & Shuster Rd.'!F126 -> 2 | G126: ='[1]SR 32 & Shuster Rd.'!G126 -> 45 | H126: ='[1]SR 32 & Shuster Rd.'!H126 -> 1 | I126: ='[1]SR 32 & Shuster Rd.'!I126 -> 0 | J126: ='[1]SR 32 & Shuster Rd.'!J126 -> 0 | K126: ='[1]SR 32 & Shuster Rd.'!K126 -> 2 | L126: ='[1]SR 32 & Shuster Rd.'!L126 -> 2 | M126: ='[1]SR 32 & Shuster Rd.'!M126 -> 0 | N126: ='[1]SR 32 & Shuster Rd.'!N126 -> 2 | O126: ='[1]SR 32 & Shuster Rd.'!O126 -> 85 | P126: ='[1]SR 32 & Shuster Rd.'!P126+'[1]SR 32 & Germany Rd.'!P126 -> 7 | Q126: ='[1]SR 32 & Shuster Rd.'!Q126 -> 0 | S126: Movement Total | T126: =SUM(T116,T119,T122,T125) -> 33 | U126: 24 | V126: 217 | W126: 0 | X126: 8 | Y126: 196 | Z126: 5 | AA126: 0 | AB126: 4 | AC126: 17 | AD126: 8 | AE126: 0 | AF126: 16 | AG126: 241 | AH126: 39 | AI126: 0 | AK126: 0.2 | AL126: - | AM126: =IF(X$2=FALSE,LOOKUP((Y126+X126)/$AM$4,'Main Line Reduction Table'!$A$1:$B$21,'Main Line Reduction Table'!$C$1:$C$21),LOOKUP(Y126/$AM$4,'Main Line Reduction Table'!$A$1:$B$21,'Main Line Reduction Table'!$C$1:$C$21)) -> 0 | AN126: = | AO126: =AK126-AM126 -> 0.2 | AQ126: 0.2 | AR126: - | AS126: =IF(AF$2=FALSE,LOOKUP((AG126+AF126)/$AS$4,'Main Line Reduction Table'!$A$1:$B$21,'Main Line Reduction Table'!$C$1:$C$21),LOOKUP(AG126/$AS$4,'Main Line Reduction Table'!$A$1:$B$21,'Main Line Reduction Table'!$C$1:$C$21)) -> 0 | AT126: = | AU126: =AQ126-AS126 -> 0.2
A127: ='[1]SR 32 & Shuster Rd.'!A127 -> 16:00:00 | B127: ='[1]SR 32 & Shuster Rd.'!B127 -> 0 | C127: ='[1]SR 32 & Shuster Rd.'!C127 -> 0 | D127: ='[1]SR 32 & Shuster Rd.'!D127+'[1]SR 32 & Germany Rd.'!C127+'[1]SR 32 & Germany Rd.'!D127 -> 2 | E127: ='[1]SR 32 & Shuster Rd.'!E127 -> 0 | F127: ='[1]SR 32 & Shuster Rd.'!F127 -> 0 | G127: ='[1]SR 32 & Shuster Rd.'!G127 -> 5 | H127: ='[1]SR 32 & Shuster Rd.'!H127 -> 0 | I127: ='[1]SR 32 & Shuster Rd.'!I127 -> 0 | J127: ='[1]SR 32 & Shuster Rd.'!J127 -> 0 | K127: ='[1]SR 32 & Shuster Rd.'!K127 -> 0 | L127: ='[1]SR 32 & Shuster Rd.'!L127 -> 0 | M127: ='[1]SR 32 & Shuster Rd.'!M127 -> 0 | N127: ='[1]SR 32 & Shuster Rd.'!N127 -> 0 | O127: ='[1]SR 32 & Shuster Rd.'!O127 -> 8 | P127: ='[1]SR 32 & Shuster Rd.'!P127+'[1]SR 32 & Germany Rd.'!P127 -> 0 | Q127: ='[1]SR 32 & Shuster Rd.'!Q127 -> 0 | S127: Reduced Movement Total | T127: =T126*(1-AO126) -> 26.4 | U127: =(T126*(1-$AO126))+U126+V126 -> 267.4 | X127: =X126+Y126+Z126 -> 209 | AB127: =AB126*(1-AU126) -> 3.2 | AC127: =(AB126*(1-$AO126))+AC126+AD126 -> 28.2 | AF127: =AF126+AG126+AH126 -> 296
A128: ='[1]SR 32 & Shuster Rd.'!A128 -> 16:00:00 | B128: ='[1]SR 32 & Shuster Rd.'!B128 -> 0 | C128: ='[1]SR 32 & Shuster Rd.'!C128 -> 0 | D128: ='[1]SR 32 & Shuster Rd.'!D128+'[1]SR 32 & Germany Rd.'!C128+'[1]SR 32 & Germany Rd.'!D128 -> 0 | E128: ='[1]SR 32 & Shuster Rd.'!E128 -> 0 | F128: ='[1]SR 32 & Shuster Rd.'!F128 -> 0 | G128: ='[1]SR 32 & Shuster Rd.'!G128 -> 0 | H128: ='[1]SR 32 & Shuster Rd.'!H128 -> 0 | I128: ='[1]SR 32 & Shuster Rd.'!I128 -> 0 | J128: ='[1]SR 32 & Shuster Rd.'!J128 -> 0 | K128: ='[1]SR 32 & Shuster Rd.'!K128 -> 0 | L128: ='[1]SR 32 & Shuster Rd.'!L128 -> 0 | M128: ='[1]SR 32 & Shuster Rd.'!M128 -> 0 | N128: ='[1]SR 32 & Shuster Rd.'!N128 -> 0 | O128: ='[1]SR 32 & Shuster Rd.'!O128 -> 0 | P128: ='[1]SR 32 & Shuster Rd.'!P128+'[1]SR 32 & Germany Rd.'!P128 -> 0 | Q128: ='[1]SR 32 & Shuster Rd.'!Q128 -> 0 | S128: 16:00:00 | T128: =SUM(B126:B128) -> 6 | U128: 14 | V128: 56 | W128: 0 | X128: 2 | Y128: 50 | Z128: 1 | AA128: 0 | AB128: 0 | AC128: 2 | AD128: 2 | AE128: 0 | AF128: 2 | AG128: 93 | AH128: 7 | AI128: 0
A129: ='[1]SR 32 & Shuster Rd.'!A129 -> 16:15:00 | B129: ='[1]SR 32 & Shuster Rd.'!B129 -> 9 | C129: ='[1]SR 32 & Shuster Rd.'!C129 -> 12 | D129: ='[1]SR 32 & Shuster Rd.'!D129+'[1]SR 32 & Germany Rd.'!C129+'[1]SR 32 & Germany Rd.'!D129 -> 55 | E129: ='[1]SR 32 & Shuster Rd.'!E129 -> 0 | F129: ='[1]SR 32 & Shuster Rd.'!F129 -> 2 | G129: ='[1]SR 32 & Shuster Rd.'!G129 -> 38 | H129: ='[1]SR 32 & Shuster Rd.'!H129 -> 0 | I129: ='[1]SR 32 & Shuster Rd.'!I129 -> 0 | J129: ='[1]SR 32 & Shuster Rd.'!J129 -> 2 | K129: ='[1]SR 32 & Shuster Rd.'!K129 -> 7 | L129: ='[1]SR 32 & Shuster Rd.'!L129 -> 2 | M129: ='[1]SR 32 & Shuster Rd.'!M129 -> 0 | N129: ='[1]SR 32 & Shuster Rd.'!N129 -> 0 | O129: ='[1]SR 32 & Shuster Rd.'!O129 -> 77 | P129: ='[1]SR 32 & Shuster Rd.'!P129+'[1]SR 32 & Germany Rd.'!P129 -> 7 | Q129: ='[1]SR 32 & Shuster Rd.'!Q129 -> 0
A130: ='[1]SR 32 & Shuster Rd.'!A130 -> 16:15:00 | B130: ='[1]SR 32 & Shuster Rd.'!B130 -> 0 | C130: ='[1]SR 32 & Shuster Rd.'!C130 -> 1 | D130: ='[1]SR 32 & Shuster Rd.'!D130+'[1]SR 32 & Germany Rd.'!C130+'[1]SR 32 & Germany Rd.'!D130 -> 1 | E130: ='[1]SR 32 & Shuster Rd.'!E130 -> 0 | F130: ='[1]SR 32 & Shuster Rd.'!F130 -> 1 | G130: ='[1]SR 32 & Shuster Rd.'!G130 -> 7 | H130: ='[1]SR 32 & Shuster Rd.'!H130 -> 0 | I130: ='[1]SR 32 & Shuster Rd.'!I130 -> 0 | J130: ='[1]SR 32 & Shuster Rd.'!J130 -> 0 | K130: ='[1]SR 32 & Shuster Rd.'!K130 -> 0 | L130: ='[1]SR 32 & Shuster Rd.'!L130 -> 0 | M130: ='[1]SR 32 & Shuster Rd.'!M130 -> 0 | N130: ='[1]SR 32 & Shuster Rd.'!N130 -> 0 | O130: ='[1]SR 32 & Shuster Rd.'!O130 -> 4 | P130: ='[1]SR 32 & Shuster Rd.'!P130+'[1]SR 32 & Germany Rd.'!P130 -> 0 | Q130: ='[1]SR 32 & Shuster Rd.'!Q130 -> 0
A131: ='[1]SR 32 & Shuster Rd.'!A131 -> 16:15:00 | B131: ='[1]SR 32 & Shuster Rd.'!B131 -> 0 | C131: ='[1]SR 32 & Shuster Rd.'!C131 -> 0 | D131: ='[1]SR 32 & Shuster Rd.'!D131+'[1]SR 32 & Germany Rd.'!C131+'[1]SR 32 & Germany Rd.'!D131 -> 0 | E131: ='[1]SR 32 & Shuster Rd.'!E131 -> 0 | F131: ='[1]SR 32 & Shuster Rd.'!F131 -> 0 | G131: ='[1]SR 32 & Shuster Rd.'!G131 -> 0 | H131: ='[1]SR 32 & Shuster Rd.'!H131 -> 0 | I131: ='[1]SR 32 & Shuster Rd.'!I131 -> 0 | J131: ='[1]SR 32 & Shuster Rd.'!J131 -> 0 | K131: ='[1]SR 32 & Shuster Rd.'!K131 -> 0 | L131: ='[1]SR 32 & Shuster Rd.'!L131 -> 0 | M131: ='[1]SR 32 & Shuster Rd.'!M131 -> 0 | N131: ='[1]SR 32 & Shuster Rd.'!N131 -> 0 | O131: ='[1]SR 32 & Shuster Rd.'!O131 -> 0 | P131: ='[1]SR 32 & Shuster Rd.'!P131+'[1]SR 32 & Germany Rd.'!P131 -> 0 | Q131: ='[1]SR 32 & Shuster Rd.'!Q131 -> 0 | S131: 16:15:00 | T131: =SUM(B129:B131) -> 9 | U131: 13 | V131: 56 | W131: 0 | X131: 3 | Y131: 45 | Z131: 0 | AA131: 0 | AB131: 2 | AC131: 7 | AD131: 2 | AE131: 0 | AF131: 0 | AG131: 81 | AH131: 7 | AI131: 0
A132: ='[1]SR 32 & Shuster Rd.'!A132 -> 16:30:00 | B132: ='[1]SR 32 & Shuster Rd.'!B132 -> 16 | C132: ='[1]SR 32 & Shuster Rd.'!C132 -> 5 | D132: ='[1]SR 32 & Shuster Rd.'!D132+'[1]SR 32 & Germany Rd.'!C132+'[1]SR 32 & Germany Rd.'!D132 -> 68 | E132: ='[1]SR 32 & Shuster Rd.'!E132 -> 0 | F132: ='[1]SR 32 & Shuster Rd.'!F132 -> 1 | G132: ='[1]SR 32 & Shuster Rd.'!G132 -> 45 | H132: ='[1]SR 32 & Shuster Rd.'!H132 -> 0 | I132: ='[1]SR 32 & Shuster Rd.'!I132 -> 0 | J132: ='[1]SR 32 & Shuster Rd.'!J132 -> 0 | K132: ='[1]SR 32 & Shuster Rd.'!K132 -> 3 | L132: ='[1]SR 32 & Shuster Rd.'!L132 -> 3 | M132: ='[1]SR 32 & Shuster Rd.'!M132 -> 0 | N132: ='[1]SR 32 & Shuster Rd.'!N132 -> 2 | O132: ='[1]SR 32 & Shuster Rd.'!O132 -> 70 | P132: ='[1]SR 32 & Shuster Rd.'!P132+'[1]SR 32 & Germany Rd.'!P132 -> 7 | Q132: ='[1]SR 32 & Shuster Rd.'!Q132 -> 0
A133: ='[1]SR 32 & Shuster Rd.'!A133 -> 16:30:00 | B133: ='[1]SR 32 & Shuster Rd.'!B133 -> 1 | C133: ='[1]SR 32 & Shuster Rd.'!C133 -> 0 | D133: ='[1]SR 32 & Shuster Rd.'!D133+'[1]SR 32 & Germany Rd.'!C133+'[1]SR 32 & Germany Rd.'!D133 -> 2 | E133: ='[1]SR 32 & Shuster Rd.'!E133 -> 0 | F133: ='[1]SR 32 & Shuster Rd.'!F133 -> 0 | G133: ='[1]SR 32 & Shuster Rd.'!G133 -> 6 | H133: ='[1]SR 32 & Shuster Rd.'!H133 -> 0 | I133: ='[1]SR 32 & Shuster Rd.'!I133 -> 0 | J133: ='[1]SR 32 & Shuster Rd.'!J133 -> 0 | K133: ='[1]SR 32 & Shuster Rd.'!K133 -> 0 | L133: ='[1]SR 32 & Shuster Rd.'!L133 -> 0 | M133: ='[1]SR 32 & Shuster Rd.'!M133 -> 0 | N133: ='[1]SR 32 & Shuster Rd.'!N133 -> 0 | O133: ='[1]SR 32 & Shuster Rd.'!O133 -> 3 | P133: ='[1]SR 32 & Shuster Rd.'!P133+'[1]SR 32 & Germany Rd.'!P133 -> 0 | Q133: ='[1]SR 32 & Shuster Rd.'!Q133 -> 0
A134: ='[1]SR 32 & Shuster Rd.'!A134 -> 16:30:00 | B134: ='[1]SR 32 & Shuster Rd.'!B134 -> 0 | C134: ='[1]SR 32 & Shuster Rd.'!C134 -> 0 | D134: ='[1]SR 32 & Shuster Rd.'!D134+'[1]SR 32 & Germany Rd.'!C134+'[1]SR 32 & Germany Rd.'!D134 -> 0 | E134: ='[1]SR 32 & Shuster Rd.'!E134 -> 0 | F134: ='[1]SR 32 & Shuster Rd.'!F134 -> 0 | G134: ='[1]SR 32 & Shuster Rd.'!G134 -> 0 | H134: ='[1]SR 32 & Shuster Rd.'!H134 -> 0 | I134: ='[1]SR 32 & Shuster Rd.'!I134 -> 0 | J134: ='[1]SR 32 & Shuster Rd.'!J134 -> 0 | K134: ='[1]SR 32 & Shuster Rd.'!K134 -> 0 | L134: ='[1]SR 32 & Shuster Rd.'!L134 -> 0 | M134: ='[1]SR 32 & Shuster Rd.'!M134 -> 0 | N134: ='[1]SR 32 & Shuster Rd.'!N134 -> 0 | O134: ='[1]SR 32 & Shuster Rd.'!O134 -> 0 | P134: ='[1]SR 32 & Shuster Rd.'!P134+'[1]SR 32 & Germany Rd.'!P134 -> 0 | Q134: ='[1]SR 32 & Shuster Rd.'!Q134 -> 0 | S134: 16:30:00 | T134: =SUM(B132:B134) -> 17 | U134: 5 | V134: 70 | W134: 0 | X134: 1 | Y134: 51 | Z134: 0 | AA134: 0 | AB134: 0 | AC134: 3 | AD134: 3 | AE134: 0 | AF134: 2 | AG134: 73 | AH134: 7 | AI134: 0
A135: ='[1]SR 32 & Shuster Rd.'!A135 -> 16:45:00 | B135: ='[1]SR 32 & Shuster Rd.'!B135 -> 5 | C135: ='[1]SR 32 & Shuster Rd.'!C135 -> 6 | D135: ='[1]SR 32 & Shuster Rd.'!D135+'[1]SR 32 & Germany Rd.'!C135+'[1]SR 32 & Germany Rd.'!D135 -> 57 | E135: ='[1]SR 32 & Shuster Rd.'!E135 -> 0 | F135: ='[1]SR 32 & Shuster Rd.'!F135 -> 1 | G135: ='[1]SR 32 & Shuster Rd.'!G135 -> 34 | H135: ='[1]SR 32 & Shuster Rd.'!H135 -> 0 | I135: ='[1]SR 32 & Shuster Rd.'!I135 -> 0 | J135: ='[1]SR 32 & Shuster Rd.'!J135 -> 0 | K135: ='[1]SR 32 & Shuster Rd.'!K135 -> 6 | L135: ='[1]SR 32 & Shuster Rd.'!L135 -> 1 | M135: ='[1]SR 32 & Shuster Rd.'!M135 -> 0 | N135: ='[1]SR 32 & Shuster Rd.'!N135 -> 4 | O135: ='[1]SR 32 & Shuster Rd.'!O135 -> 76 | P135: ='[1]SR 32 & Shuster Rd.'!P135+'[1]SR 32 & Germany Rd.'!P135 -> 4 | Q135: ='[1]SR 32 & Shuster Rd.'!Q135 -> 0
A136: ='[1]SR 32 & Shuster Rd.'!A136 -> 16:45:00 | B136: ='[1]SR 32 & Shuster Rd.'!B136 -> 0 | C136: ='[1]SR 32 & Shuster Rd.'!C136 -> 0 | D136: ='[1]SR 32 & Shuster Rd.'!D136+'[1]SR 32 & Germany Rd.'!C136+'[1]SR 32 & Germany Rd.'!D136 -> 0 | E136: ='[1]SR 32 & Shuster Rd.'!E136 -> 0 | F136: ='[1]SR 32 & Shuster Rd.'!F136 -> 0 | G136: ='[1]SR 32 & Shuster Rd.'!G136 -> 5 | H136: ='[1]SR 32 & Shuster Rd.'!H136 -> 0 | I136: ='[1]SR 32 & Shuster Rd.'!I136 -> 0 | J136: ='[1]SR 32 & Shuster Rd.'!J136 -> 0 | K136: ='[1]SR 32 & Shuster Rd.'!K136 -> 1 | L136: ='[1]SR 32 & Shuster Rd.'!L136 -> 0 | M136: ='[1]SR 32 & Shuster Rd.'!M136 -> 0 | N136: ='[1]SR 32 & Shuster Rd.'!N136 -> 0 | O136: ='[1]SR 32 & Shuster Rd.'!O136 -> 18 | P136: ='[1]SR 32 & Shuster Rd.'!P136+'[1]SR 32 & Germany Rd.'!P136 -> 1 | Q136: ='[1]SR 32 & Shuster Rd.'!Q136 -> 0
A137: ='[1]SR 32 & Shuster Rd.'!A137 -> 16:45:00 | B137: ='[1]SR 32 & Shuster Rd.'!B137 -> 0 | C137: ='[1]SR 32 & Shuster Rd.'!C137 -> 0 | D137: ='[1]SR 32 & Shuster Rd.'!D137+'[1]SR 32 & Germany Rd.'!C137+'[1]SR 32 & Germany Rd.'!D137 -> 0 | E137: ='[1]SR 32 & Shuster Rd.'!E137 -> 0 | F137: ='[1]SR 32 & Shuster Rd.'!F137 -> 0 | G137: ='[1]SR 32 & Shuster Rd.'!G137 -> 0 | H137: ='[1]SR 32 & Shuster Rd.'!H137 -> 0 | I137: ='[1]SR 32 & Shuster Rd.'!I137 -> 0 | J137: ='[1]SR 32 & Shuster Rd.'!J137 -> 0 | K137: ='[1]SR 32 & Shuster Rd.'!K137 -> 0 | L137: ='[1]SR 32 & Shuster Rd.'!L137 -> 0 | M137: ='[1]SR 32 & Shuster Rd.'!M137 -> 0 | N137: ='[1]SR 32 & Shuster Rd.'!N137 -> 0 | O137: ='[1]SR 32 & Shuster Rd.'!O137 -> 0 | P137: ='[1]SR 32 & Shuster Rd.'!P137+'[1]SR 32 & Germany Rd.'!P137 -> 0 | Q137: ='[1]SR 32 & Shuster Rd.'!Q137 -> 0 | S137: 16:45:00 | T137: =SUM(B135:B137) -> 5 | U137: 6 | V137: 57 | W137: 0 | X137: 1 | Y137: 39 | Z137: 0 | AA137: 0 | AB137: 0 | AC137: 7 | AD137: 1 | AE137: 0 | AF137: 4 | AG137: 94 | AH137: 5 | AI137: 0
A138: ='[1]SR 32 & Shuster Rd.'!A138 -> 17:00:00 | B138: ='[1]SR 32 & Shuster Rd.'!B138 -> 4 | C138: ='[1]SR 32 & Shuster Rd.'!C138 -> 3 | D138: ='[1]SR 32 & Shuster Rd.'!D138+'[1]SR 32 & Germany Rd.'!C138+'[1]SR 32 & Germany Rd.'!D138 -> 61 | E138: ='[1]SR 32 & Shuster Rd.'!E138 -> 0 | F138: ='[1]SR 32 & Shuster Rd.'!F138 -> 2 | G138: ='[1]SR 32 & Shuster Rd.'!G138 -> 47 | H138: ='[1]SR 32 & Shuster Rd.'!H138 -> 2 | I138: ='[1]SR 32 & Shuster Rd.'!I138 -> 0 | J138: ='[1]SR 32 & Shuster Rd.'!J138 -> 2 | K138: ='[1]SR 32 & Shuster Rd.'!K138 -> 5 | L138: ='[1]SR 32 & Shuster Rd.'!L138 -> 1 | M138: ='[1]SR 32 & Shuster Rd.'!M138 -> 0 | N138: ='[1]SR 32 & Shuster Rd.'!N138 -> 4 | O138: ='[1]SR 32 & Shuster Rd.'!O138 -> 54 | P138: ='[1]SR 32 & Shuster Rd.'!P138+'[1]SR 32 & Germany Rd.'!P138 -> 11 | Q138: ='[1]SR 32 & Shuster Rd.'!Q138 -> 0 | S138: Movement Total | T138: =SUM(T128,T131,T134,T137) -> 37 | U138: 38 | V138: 239 | W138: 0 | X138: 7 | Y138: 185 | Z138: 1 | AA138: 0 | AB138: 2 | AC138: 19 | AD138: 8 | AE138: 0 | AF138: 8 | AG138: 341 | AH138: 26 | AI138: 0 | AK138: 0.2 | AL138: - | AM138: =IF(X$2=FALSE,LOOKUP((Y138+X138)/$AM$4,'Main Line Reduction Table'!$A$1:$B$21,'Main Line Reduction Table'!$C$1:$C$21),LOOKUP(Y138/$AM$4,'Main Line Reduction Table'!$A$1:$B$21,'Main Line Reduction Table'!$C$1:$C$21)) -> 0 | AN138: = | AO138: =AK138-AM138 -> 0.2 | AQ138: 0.2 | AR138: - | AS138: =IF(AF$2=FALSE,LOOKUP((AG138+AF138)/$AS$4,'Main Line Reduction Table'!$A$1:$B$21,'Main Line Reduction Table'!$C$1:$C$21),LOOKUP(AG138/$AS$4,'Main Line Reduction Table'!$A$1:$B$21,'Main Line Reduction Table'!$C$1:$C$21)) -> 0 | AT138: = | AU138: =AQ138-AS138 -> 0.2
A139: ='[1]SR 32 & Shuster Rd.'!A139 -> 17:00:00 | B139: ='[1]SR 32 & Shuster Rd.'!B139 -> 0 | C139: ='[1]SR 32 & Shuster Rd.'!C139 -> 0 | D139: ='[1]SR 32 & Shuster Rd.'!D139+'[1]SR 32 & Germany Rd.'!C139+'[1]SR 32 & Germany Rd.'!D139 -> 2 | E139: ='[1]SR 32 & Shuster Rd.'!E139 -> 0 | F139: ='[1]SR 32 & Shuster Rd.'!F139 -> 0 | G139: ='[1]SR 32 & Shuster Rd.'!G139 -> 5 | H139: ='[1]SR 32 & Shuster Rd.'!H139 -> 0 | I139: ='[1]SR 32 & Shuster Rd.'!I139 -> 0 | J139: ='[1]SR 32 & Shuster Rd.'!J139 -> 0 | K139: ='[1]SR 32 & Shuster Rd.'!K139 -> 0 | L139: ='[1]SR 32 & Shuster Rd.'!L139 -> 0 | M139: ='[1]SR 32 & Shuster Rd.'!M139 -> 0 | N139: ='[1]SR 32 & Shuster Rd.'!N139 -> 0 | O139: ='[1]SR 32 & Shuster Rd.'!O139 -> 7 | P139: ='[1]SR 32 & Shuster Rd.'!P139+'[1]SR 32 & Germany Rd.'!P139 -> 0 | Q139: ='[1]SR 32 & Shuster Rd.'!Q139 -> 0 | S139: Reduced Movement Total | T139: =T138*(1-AO138) -> 29.6 | U139: =(T138*(1-$AO138))+U138+V138 -> 306.6 | X139: =X138+Y138+Z138 -> 193 | AB139: =AB138*(1-AU138) -> 1.6 | AC139: =(AB138*(1-$AO138))+AC138+AD138 -> 28.6 | AF139: =AF138+AG138+AH138 -> 375
A140: ='[1]SR 32 & Shuster Rd.'!A140 -> 17:00:00 | B140: ='[1]SR 32 & Shuster Rd.'!B140 -> 0 | C140: ='[1]SR 32 & Shuster Rd.'!C140 -> 0 | D140: ='[1]SR 32 & Shuster Rd.'!D140+'[1]SR 32 & Germany Rd.'!C140+'[1]SR 32 & Germany Rd.'!D140 -> 0 | E140: ='[1]SR 32 & Shuster Rd.'!E140 -> 0 | F140: ='[1]SR 32 & Shuster Rd.'!F140 -> 0 | G140: ='[1]SR 32 & Shuster Rd.'!G140 -> 0 | H140: ='[1]SR 32 & Shuster Rd.'!H140 -> 0 | I140: ='[1]SR 32 & Shuster Rd.'!I140 -> 0 | J140: ='[1]SR 32 & Shuster Rd.'!J140 -> 0 | K140: ='[1]SR 32 & Shuster Rd.'!K140 -> 0 | L140: ='[1]SR 32 & Shuster Rd.'!L140 -> 0 | M140: ='[1]SR 32 & Shuster Rd.'!M140 -> 0 | N140: ='[1]SR 32 & Shuster Rd.'!N140 -> 0 | O140: ='[1]SR 32 & Shuster Rd.'!O140 -> 0 | P140: ='[1]SR 32 & Shuster Rd.'!P140+'[1]SR 32 & Germany Rd.'!P140 -> 0 | Q140: ='[1]SR 32 & Shuster Rd.'!Q140 -> 0 | S140: 17:00:00 | T140: =SUM(B138:B140) -> 4 | U140: 3 | V140: 63 | W140: 0 | X140: 2 | Y140: 52 | Z140: 2 | AA140: 0 | AB140: 2 | AC140: 5 | AD140: 1 | AE140: 0 | AF140: 4 | AG140: 61 | AH140: 11 | AI140: 0
A141: ='[1]SR 32 & Shuster Rd.'!A141 -> 17:15:00 | B141: ='[1]SR 32 & Shuster Rd.'!B141 -> 4 | C141: ='[1]SR 32 & Shuster Rd.'!C141 -> 9 | D141: ='[1]SR 32 & Shuster Rd.'!D141+'[1]SR 32 & Germany Rd.'!C141+'[1]SR 32 & Germany Rd.'!D141 -> 57 | E141: ='[1]SR 32 & Shuster Rd.'!E141 -> 0 | F141: ='[1]SR 32 & Shuster Rd.'!F141 -> 2 | G141: ='[1]SR 32 & Shuster Rd.'!G141 -> 50 | H141: ='[1]SR 32 & Shuster Rd.'!H141 -> 0 | I141: ='[1]SR 32 & Shuster Rd.'!I141 -> 0 | J141: ='[1]SR 32 & Shuster Rd.'!J141 -> 0 | K141: ='[1]SR 32 & Shuster Rd.'!K141 -> 2 | L141: ='[1]SR 32 & Shuster Rd.'!L141 -> 1 | M141: ='[1]SR 32 & Shuster Rd.'!M141 -> 0 | N141: ='[1]SR 32 & Shuster Rd.'!N141 -> 4 | O141: ='[1]SR 32 & Shuster Rd.'!O141 -> 61 | P141: ='[1]SR 32 & Shuster Rd.'!P141+'[1]SR 32 & Germany Rd.'!P141 -> 5 | Q141: ='[1]SR 32 & Shuster Rd.'!Q141 -> 0
A142: ='[1]SR 32 & Shuster Rd.'!A142 -> 17:15:00 | B142: ='[1]SR 32 & Shuster Rd.'!B142 -> 2 | C142: ='[1]SR 32 & Shuster Rd.'!C142 -> 0 | D142: ='[1]SR 32 & Shuster Rd.'!D142+'[1]SR 32 & Germany Rd.'!C142+'[1]SR 32 & Germany Rd.'!D142 -> 1 | E142: ='[1]SR 32 & Shuster Rd.'!E142 -> 0 | F142: ='[1]SR 32 & Shuster Rd.'!F142 -> 0 | G142: ='[1]SR 32 & Shuster Rd.'!G142 -> 2 | H142: ='[1]SR 32 & Shuster Rd.'!H142 -> 0 | I142: ='[1]SR 32 & Shuster Rd.'!I142 -> 0 | J142: ='[1]SR 32 & Shuster Rd.'!J142 -> 0 | K142: ='[1]SR 32 & Shuster Rd.'!K142 -> 0 | L142: ='[1]SR 32 & Shuster Rd.'!L142 -> 0 | M142: ='[1]SR 32 & Shuster Rd.'!M142 -> 0 | N142: ='[1]SR 32 & Shuster Rd.'!N142 -> 0 | O142: ='[1]SR 32 & Shuster Rd.'!O142 -> 5 | P142: ='[1]SR 32 & Shuster Rd.'!P142+'[1]SR 32 & Germany Rd.'!P142 -> 2 | Q142: ='[1]SR 32 & Shuster Rd.'!Q142 -> 0
A143: ='[1]SR 32 & Shuster Rd.'!A143 -> 17:15:00 | B143: ='[1]SR 32 & Shuster Rd.'!B143 -> 0 | C143: ='[1]SR 32 & Shuster Rd.'!C143 -> 0 | D143: ='[1]SR 32 & Shuster Rd.'!D143+'[1]SR 32 & Germany Rd.'!C143+'[1]SR 32 & Germany Rd.'!D143 -> 0 | E143: ='[1]SR 32 & Shuster Rd.'!E143 -> 0 | F143: ='[1]SR 32 & Shuster Rd.'!F143 -> 0 | G143: ='[1]SR 32 & Shuster Rd.'!G143 -> 0 | H143: ='[1]SR 32 & Shuster Rd.'!H143 -> 0 | I143: ='[1]SR 32 & Shuster Rd.'!I143 -> 0 | J143: ='[1]SR 32 & Shuster Rd.'!J143 -> 0 | K143: ='[1]SR 32 & Shuster Rd.'!K143 -> 0 | L143: ='[1]SR 32 & Shuster Rd.'!L143 -> 0 | M143: ='[1]SR 32 & Shuster Rd.'!M143 -> 0 | N143: ='[1]SR 32 & Shuster Rd.'!N143 -> 0 | O143: ='[1]SR 32 & Shuster Rd.'!O143 -> 0 | P143: ='[1]SR 32 & Shuster Rd.'!P143+'[1]SR 32 & Germany Rd.'!P143 -> 0 | Q143: ='[1]SR 32 & Shuster Rd.'!Q143 -> 0 | S143: 17:15:00 | T143: =SUM(B141:B143) -> 6 | U143: 9 | V143: 58 | W143: 0 | X143: 2 | Y143: 52 | Z143: 0 | AA143: 0 | AB143: 0 | AC143: 2 | AD143: 1 | AE143: 0 | AF143: 4 | AG143: 66 | AH143: 7 | AI143: 0
A144: ='[1]SR 32 & Shuster Rd.'!A144 -> 17:30:00 | B144: ='[1]SR 32 & Shuster Rd.'!B144 -> 25 | C144: ='[1]SR 32 & Shuster Rd.'!C144 -> 3 | D144: ='[1]SR 32 & Shuster Rd.'!D144+'[1]SR 32 & Germany Rd.'!C144+'[1]SR 32 & Germany Rd.'!D144 -> 67 | E144: ='[1]SR 32 & Shuster Rd.'!E144 -> 0 | F144: ='[1]SR 32 & Shuster Rd.'!F144 -> 1 | G144: ='[1]SR 32 & Shuster Rd.'!G144 -> 47 | H144: ='[1]SR 32 & Shuster Rd.'!H144 -> 0 | I144: ='[1]SR 32 & Shuster Rd.'!I144 -> 1 | J144: ='[1]SR 32 & Shuster Rd.'!J144 -> 0 | K144: ='[1]SR 32 & Shuster Rd.'!K144 -> 3 | L144: ='[1]SR 32 & Shuster Rd.'!L144 -> 3 | M144: ='[1]SR 32 & Shuster Rd.'!M144 -> 0 | N144: ='[1]SR 32 & Shuster Rd.'!N144 -> 7 | O144: ='[1]SR 32 & Shuster Rd.'!O144 -> 51 | P144: ='[1]SR 32 & Shuster Rd.'!P144+'[1]SR 32 & Germany Rd.'!P144 -> 4 | Q144: ='[1]SR 32 & Shuster Rd.'!Q144 -> 0
A145: ='[1]SR 32 & Shuster Rd.'!A145 -> 17:30:00 | B145: ='[1]SR 32 & Shuster Rd.'!B145 -> 1 | C145: ='[1]SR 32 & Shuster Rd.'!C145 -> 0 | D145: ='[1]SR 32 & Shuster Rd.'!D145+'[1]SR 32 & Germany Rd.'!C145+'[1]SR 32 & Germany Rd.'!D145 -> 1 | E145: ='[1]SR 32 & Shuster Rd.'!E145 -> 0 | F145: ='[1]SR 32 & Shuster Rd.'!F145 -> 0 | G145: ='[1]SR 32 & Shuster Rd.'!G145 -> 6 | H145: ='[1]SR 32 & Shuster Rd.'!H145 -> 0 | I145: ='[1]SR 32 & Shuster Rd.'!I145 -> 0 | J145: ='[1]SR 32 & Shuster Rd.'!J145 -> 0 | K145: ='[1]SR 32 & Shuster Rd.'!K145 -> 0 | L145: ='[1]SR 32 & Shuster Rd.'!L145 -> 0 | M145: ='[1]SR 32 & Shuster Rd.'!M145 -> 0 | N145: ='[1]SR 32 & Shuster Rd.'!N145 -> 0 | O145: ='[1]SR 32 & Shuster Rd.'!O145 -> 2 | P145: ='[1]SR 32 & Shuster Rd.'!P145+'[1]SR 32 & Germany Rd.'!P145 -> 1 | Q145: ='[1]SR 32 & Shuster Rd.'!Q145 -> 0
A146: ='[1]SR 32 & Shuster Rd.'!A146 -> 17:30:00 | B146: ='[1]SR 32 & Shuster Rd.'!B146 -> 0 | C146: ='[1]SR 32 & Shuster Rd.'!C146 -> 0 | D146: ='[1]SR 32 & Shuster Rd.'!D146+'[1]SR 32 & Germany Rd.'!C146+'[1]SR 32 & Germany Rd.'!D146 -> 0 | E146: ='[1]SR 32 & Shuster Rd.'!E146 -> 0 | F146: ='[1]SR 32 & Shuster Rd.'!F146 -> 0 | G146: ='[1]SR 32 & Shuster Rd.'!G146 -> 0 | H146: ='[1]SR 32 & Shuster Rd.'!H146 -> 0 | I146: ='[1]SR 32 & Shuster Rd.'!I146 -> 0 | J146: ='[1]SR 32 & Shuster Rd.'!J146 -> 0 | K146: ='[1]SR 32 & Shuster Rd.'!K146 -> 0 | L146: ='[1]SR 32 & Shuster Rd.'!L146 -> 0 | M146: ='[1]SR 32 & Shuster Rd.'!M146 -> 0 | N146: ='[1]SR 32 & Shuster Rd.'!N146 -> 0 | O146: ='[1]SR 32 & Shuster Rd.'!O146 -> 0 | P146: ='[1]SR 32 & Shuster Rd.'!P146+'[1]SR 32 & Germany Rd.'!P146 -> 0 | Q146: ='[1]SR 32 & Shuster Rd.'!Q146 -> 0 | S146: 17:30:00 | T146: =SUM(B144:B146) -> 26 | U146: 3 | V146: 68 | W146: 0 | X146: 1 | Y146: 53 | Z146: 0 | AA146: 1 | AB146: 0 | AC146: 3 | AD146: 3 | AE146: 0 | AF146: 7 | AG146: 53 | AH146: 5 | AI146: 0
A147: ='[1]SR 32 & Shuster Rd.'!A147 -> 17:45:00 | B147: ='[1]SR 32 & Shuster Rd.'!B147 -> 6 | C147: ='[1]SR 32 & Shuster Rd.'!C147 -> 4 | D147: ='[1]SR 32 & Shuster Rd.'!D147+'[1]SR 32 & Germany Rd.'!C147+'[1]SR 32 & Germany Rd.'!D147 -> 39 | E147: ='[1]SR 32 & Shuster Rd.'!E147 -> 0 | F147: ='[1]SR 32 & Shuster Rd.'!F147 -> 0 | G147: ='[1]SR 32 & Shuster Rd.'!G147 -> 55 | H147: ='[1]SR 32 & Shuster Rd.'!H147 -> 0 | I147: ='[1]SR 32 & Shuster Rd.'!I147 -> 0 | J147: ='[1]SR 32 & Shuster Rd.'!J147 -> 1 | K147: ='[1]SR 32 & Shuster Rd.'!K147 -> 3 | L147: ='[1]SR 32 & Shuster Rd.'!L147 -> 1 | M147: ='[1]SR 32 & Shuster Rd.'!M147 -> 0 | N147: ='[1]SR 32 & Shuster Rd.'!N147 -> 6 | O147: ='[1]SR 32 & Shuster Rd.'!O147 -> 42 | P147: ='[1]SR 32 & Shuster Rd.'!P147+'[1]SR 32 & Germany Rd.'!P147 -> 0 | Q147: ='[1]SR 32 & Shuster Rd.'!Q147 -> 0
A148: ='[1]SR 32 & Shuster Rd.'!A148 -> 17:45:00 | B148: ='[1]SR 32 & Shuster Rd.'!B148 -> 0 | C148: ='[1]SR 32 & Shuster Rd.'!C148 -> 0 | D148: ='[1]SR 32 & Shuster Rd.'!D148+'[1]SR 32 & Germany Rd.'!C148+'[1]SR 32 & Germany Rd.'!D148 -> 1 | E148: ='[1]SR 32 & Shuster Rd.'!E148 -> 0 | F148: ='[1]SR 32 & Shuster Rd.'!F148 -> 0 | G148: ='[1]SR 32 & Shuster Rd.'!G148 -> 10 | H148: ='[1]SR 32 & Shuster Rd.'!H148 -> 0 | I148: ='[1]SR 32 & Shuster Rd.'!I148 -> 0 | J148: ='[1]SR 32 & Shuster Rd.'!J148 -> 0 | K148: ='[1]SR 32 & Shuster Rd.'!K148 -> 0 | L148: ='[1]SR 32 & Shuster Rd.'!L148 -> 0 | M148: ='[1]SR 32 & Shuster Rd.'!M148 -> 0 | N148: ='[1]SR 32 & Shuster Rd.'!N148 -> 0 | O148: ='[1]SR 32 & Shuster Rd.'!O148 -> 3 | P148: ='[1]SR 32 & Shuster Rd.'!P148+'[1]SR 32 & Germany Rd.'!P148 -> 0 | Q148: ='[1]SR 32 & Shuster Rd.'!Q148 -> 0
A149: ='[1]SR 32 & Shuster Rd.'!A149 -> 17:45:00 | B149: ='[1]SR 32 & Shuster Rd.'!B149 -> 0 | C149: ='[1]SR 32 & Shuster Rd.'!C149 -> 0 | D149: ='[1]SR 32 & Shuster Rd.'!D149+'[1]SR 32 & Germany Rd.'!C149+'[1]SR 32 & Germany Rd.'!D149 -> 0 | E149: ='[1]SR 32 & Shuster Rd.'!E149 -> 0 | F149: ='[1]SR 32 & Shuster Rd.'!F149 -> 0 | G149: ='[1]SR 32 & Shuster Rd.'!G149 -> 0 | H149: ='[1]SR 32 & Shuster Rd.'!H149 -> 0 | I149: ='[1]SR 32 & Shuster Rd.'!I149 -> 0 | J149: ='[1]SR 32 & Shuster Rd.'!J149 -> 0 | K149: ='[1]SR 32 & Shuster Rd.'!K149 -> 0 | L149: ='[1]SR 32 & Shuster Rd.'!L149 -> 0 | M149: ='[1]SR 32 & Shuster Rd.'!M149 -> 0 | N149: ='[1]SR 32 & Shuster Rd.'!N149 -> 0 | O149: ='[1]SR 32 & Shuster Rd.'!O149 -> 0 | P149: ='[1]SR 32 & Shuster Rd.'!P149+'[1]SR 32 & Germany Rd.'!P149 -> 0 | Q149: ='[1]SR 32 & Shuster Rd.'!Q149 -> 0 | S149: 17:45:00 | T149: =SUM(B147:B149) -> 6 | U149: 4 | V149: 40 | W149: 0 | X149: 0 | Y149: 65 | Z149: 0 | AA149: 0 | AB149: 1 | AC149: 3 | AD149: 1 | AE149: 0 | AF149: 6 | AG149: 45 | AH149: 0 | AI149: 0
S150: Movement Total | T150: =SUM(T140,T143,T146,T149) -> 42 | U150: 19 | V150: 229 | W150: 0 | X150: 5 | Y150: 222 | Z150: 2 | AA150: 1 | AB150: 3 | AC150: 13 | AD150: 6 | AE150: 0 | AF150: 21 | AG150: 225 | AH150: 23 | AI150: 0 | AK150: 0.2 | AL150: - | AM150: =IF(X$2=FALSE,LOOKUP((Y150+X150)/$AM$4,'Main Line Reduction Table'!$A$1:$B$21,'Main Line Reduction Table'!$C$1:$C$21),LOOKUP(Y150/$AM$4,'Main Line Reduction Table'!$A$1:$B$21,'Main Line Reduction Table'!$C$1:$C$21)) -> 0 | AN150: = | AO150: =AK150-AM150 -> 0.2 | AQ150: 0.2 | AR150: - | AS150: =IF(AF$2=FALSE,LOOKUP((AG150+AF150)/$AS$4,'Main Line Reduction Table'!$A$1:$B$21,'Main Line Reduction Table'!$C$1:$C$21),LOOKUP(AG150/$AS$4,'Main Line Reduction Table'!$A$1:$B$21,'Main Line Reduction Table'!$C$1:$C$21)) -> 0 | AT150: = | AU150: =AQ150-AS150 -> 0.2
S151: Reduced Movement Total | T151: =T150*(1-AO150) -> 33.6 | U151: =(T150*(1-$AO150))+U150+V150 -> 281.6 | X151: =X150+Y150+Z150 -> 229 | AB151: =AB150*(1-AU150) -> 2.4 | AC151: =(AB150*(1-$AO150))+AC150+AD150 -> 21.4 | AF151: =AF150+AG150+AH150 -> 269
A366: 12:00:00 | B366: 8 | C366: 1 | D366: 26 | E366: 0 | F366: 31 | G366: 48 | H366: 2 | I366: 0 | J366: 2 | K366: 0 | L366: 0 | M366: 0 | N366: 1 | O366: 60 | P366: 9 | Q366: 0
A367: 12:00:00 | B367: 0 | C367: 0 | D367: 1 | E367: 0 | F367: 0 | G367: 0 | H367: 0 | I367: 0 | J367: 0 | K367: 1 | L367: 0 | M367: 0 | N367: 0 | O367: 2 | P367: 0 | Q367: 0
A368: 12:00:00 | B368: 0 | C368: 0 | D368: 0 | E368: 0 | F368: 0 | G368: 0 | H368: 0 | I368: 0 | J368: 0 | K368: 0 | L368: 0 | M368: 0 | N368: 0 | O368: 0 | P368: 0 | Q368: 0
A369: 12:15:00 | B369: 10 | C369: 0 | D369: 28 | E369: 0 | F369: 33 | G369: 45 | H369: 1 | I369: 0 | J369: 5 | K369: 1 | L369: 0 | M369: 0 | N369: 0 | O369: 41 | P369: 12 | Q369: 0
A370: 12:15:00 | B370: 0 | C370: 0 | D370: 0 | E370: 0 | F370: 0 | G370: 1 | H370: 0 | I370: 0 | J370: 0 | K370: 1 | L370: 0 | M370: 0 | N370: 0 | O370: 1 | P370: 0 | Q370: 0
A371: 12:15:00 | B371: 0 | C371: 0 | D371: 0 | E371: 0 | F371: 0 | G371: 0 | H371: 0 | I371: 0 | J371: 0 | K371: 0 | L371: 0 | M371: 0 | N371: 0 | O371: 0 | P371: 0 | Q371: 0
A372: 12:30:00 | B372: 5 | C372: 0 | D372: 29 | E372: 0 | F372: 26 | G372: 41 | H372: 4 | I372: 0 | J372: 6 | K372: 0 | L372: 0 | M372: 0 | N372: 0 | O372: 44 | P372: 6 | Q372: 0
A373: 12:30:00 | B373: 2 | C373: 0 | D373: 1 | E373: 0 | F373: 2 | G373: 0 | H373: 0 | I373: 0 | J373: 0 | K373: 0 | L373: 0 | M373: 0 | N373: 0 | O373: 3 | P373: 0 | Q373: 0
A374: 12:30:00 | B374: 0 | C374: 0 | D374: 0 | E374: 0 | F374: 0 | G374: 0 | H374: 0 | I374: 0 | J374: 0 | K374: 0 | L374: 0 | M374: 0 | N374: 0 | O374: 0 | P374: 0 | Q374: 0
A375: 12:45:00 | B375: 6 | C375: 0 | D375: 36 | E375: 0 | F375: 33 | G375: 42 | H375: 6 | I375: 0 | J375: 1 | K375: 2 | L375: 1 | M375: 0 | N375: 3 | O375: 53 | P375: 13 | Q375: 0
A376: 12:45:00 | B376: 0 | C376: 0 | D376: 2 | E376: 0 | F376: 0 | G376: 2 | H376: 0 | I376: 0 | J376: 0 | K376: 0 | L376: 0 | M376: 0 | N376: 0 | O376: 0 | P376: 0 | Q376: 0
A377: 12:45:00 | B377: 0 | C377: 0 | D377: 0 | E377: 0 | F377: 0 | G377: 0 | H377: 0 | I377: 0 | J377: 0 | K377: 0 | L377: 0 | M377: 0 | N377: 0 | O377: 0 | P377: 0 | Q377: 0
A378: 13:00:00 | B378: 9 | C378: 2 | D378: 27 | E378: 0 | F378: 32 | G378: 37 | H378: 1 | I378: 0 | J378: 2 | K378: 3 | L378: 0 | M378: 0 | N378: 0 | O378: 56 | P378: 11 | Q378: 0
A379: 13:00:00 | B379: 1 | C379: 0 | D379: 0 | E379: 0 | F379: 2 | G379: 0 | H379: 0 | I379: 0 | J379: 0 | K379: 0 | L379: 0 | M379: 0 | N379: 0 | O379: 2 | P379: 0 | Q379: 0
A380: 13:00:00 | B380: 0 | C380: 0 | D380: 0 | E380: 0 | F380: 0 | G380: 0 | H380: 0 | I380: 0 | J380: 0 | K380: 0 | L380: 0 | M380: 0 | N380: 0 | O380: 0 | P380: 0 | Q380: 0
A381: 13:15:00 | B381: 7 | C381: 1 | D381: 25 | E381: 0 | F381: 44 | G381: 44 | H381: 4 | I381: 0 | J381: 0 | K381: 1 | L381: 1 | M381: 0 | N381: 0 | O381: 53 | P381: 6 | Q381: 0
A382: 13:15:00 | B382: 0 | C382: 0 | D382: 0 | E382: 0 | F382: 1 | G382: 1 | H382: 0 | I382: 0 | J382: 0 | K382: 0 | L382: 0 | M382: 0 | N382: 0 | O382: 2 | P382: 0 | Q382: 0
A383: 13:15:00 | B383: 0 | C383: 0 | D383: 0 | E383: 0 | F383: 0 | G383: 0 | H383: 0 | I383: 0 | J383: 0 | K383: 0 | L383: 0 | M383: 0 | N383: 0 | O383: 0 | P383: 0 | Q383: 0
A384: 13:30:00 | B384: 12 | C384: 3 | D384: 36 | E384: 0 | F384: 30 | G384: 41 | H384: 0 | I384: 0 | J384: 5 | K384: 1 | L384: 0 | M384: 0 | N384: 0 | O384: 43 | P384: 12 | Q384: 0
A385: 13:30:00 | B385: 0 | C385: 0 | D385: 1 | E385: 0 | F385: 1 | G385: 1 | H385: 0 | I385: 0 | J385: 0 | K385: 1 | L385: 0 | M385: 0 | N385: 1 | O385: 2 | P385: 0 | Q385: 0
A386: 13:30:00 | B386: 0 | C386: 0 | D386: 0 | E386: 0 | F386: 0 | G386: 0 | H386: 0 | I386: 0 | J386: 0 | K386: 0 | L386: 0 | M386: 0 | N386: 0 | O386: 0 | P386: 0 | Q386: 0
A387: 13:45:00 | B387: 9 | C387: 1 | D387: 30 | E387: 0 | F387: 23 | G387: 55 | H387: 1 | I387: 0 | J387: 1 | K387: 0 | L387: 0 | M387: 0 | N387: 0 | O387: 52 | P387: 10 | Q387: 0
A388: 13:45:00 | B388: 0 | C388: 0 | D388: 0 | E388: 0 | F388: 1 | G388: 4 | H388: 0 | I388: 0 | J388: 0 | K388: 0 | L388: 0 | M388: 0 | N388: 0 | O388: 0 | P388: 0 | Q388: 0
A389: 13:45:00 | B389: 0 | C389: 0 | D389: 0 | E389: 0 | F389: 0 | G389: 0 | H389: 0 | I389: 0 | J389: 0 | K389: 0 | L389: 0 | M389: 0 | N389: 0 | O389: 0 | P389: 0 | Q389: 0
A390: 14:00:00 | B390: 12 | C390: 1 | D390: 27 | E390: 0 | F390: 50 | G390: 68 | H390: 1 | I390: 0 | J390: 5 | K390: 1 | L390: 0 | M390: 0 | N390: 0 | O390: 64 | P390: 4 | Q390: 0
A391: 14:00:00 | B391: 0 | C391: 0 | D391: 1 | E391: 0 | F391: 1 | G391: 2 | H391: 0 | I391: 0 | J391: 0 | K391: 0 | L391: 0 | M391: 0 | N391: 0 | O391: 2 | P391: 1 | Q391: 0
A392: 14:00:00 | B392: 0 | C392: 0 | D392: 0 | E392: 0 | F392: 0 | G392: 0 | H392: 0 | I392: 0 | J392: 0 | K392: 0 | L392: 0 | M392: 0 | N392: 0 | O392: 0 | P392: 0 | Q392: 0
A393: 14:15:00 | B393: 8 | C393: 1 | D393: 28 | E393: 0 | F393: 41 | G393: 65 | H393: 0 | I393: 0 | J393: 5 | K393: 2 | L393: 1 | M393: 0 | N393: 0 | O393: 50 | P393: 7 | Q393: 0
A394: 14:15:00 | B394: 0 | C394: 0 | D394: 0 | E394: 0 | F394: 1 | G394: 1 | H394: 0 | I394: 0 | J394: 0 | K394: 2 | L394: 0 | M394: 0 | N394: 0 | O394: 1 | P394: 1 | Q394: 0
A395: 14:15:00 | B395: 0 | C395: 0 | D395: 0 | E395: 0 | F395: 0 | G395: 0 | H395: 0 | I395: 0 | J395: 0 | K395: 0 | L395: 0 | M395: 0 | N395: 0 | O395: 0 | P395: 0 | Q395: 0
A396: 14:30:00 | B396: 16 | C396: 3 | D396: 31 | E396: 0 | F396: 45 | G396: 48 | H396: 4 | I396: 0 | J396: 0 | K396: 2 | L396: 0 | M396: 0 | N396: 0 | O396: 67 | P396: 10 | Q396: 0
A397: 14:30:00 | B397: 1 | C397: 0 | D397: 0 | E397: 0 | F397: 0 | G397: 1 | H397: 0 | I397: 0 | J397: 0 | K397: 0 | L397: 0 | M397: 0 | N397: 0 | O397: 2 | P397: 0 | Q397: 0
A398: 14:30:00 | B398: 0 | C398: 0 | D398: 0 | E398: 0 | F398: 0 | G398: 0 | H398: 0 | I398: 0 | J398: 0 | K398: 0 | L398: 0 | M398: 0 | N398: 0 | O398: 0 | P398: 0 | Q398: 0
A399: 14:45:00 | B399: 16 | C399: 1 | D399: 30 | E399: 0 | F399: 56 | G399: 62 | H399: 3 | I399: 0 | J399: 2 | K399: 1 | L399: 1 | M399: 0 | N399: 0 | O399: 52 | P399: 12 | Q399: 0
A400: 14:45:00 | B400: 1 | C400: 2 | D400: 2 | E400: 0 | F400: 1 | G400: 1 | H400: 1 | I400: 0 | J400: 1 | K400: 0 | L400: 0 | M400: 0 | N400: 0 | O400: 0 | P400: 0 | Q400: 0
A401: 14:45:00 | B401: 0 | C401: 0 | D401: 0 | E401: 0 | F401: 0 | G401: 0 | H401: 0 | I401: 0 | J401: 0 | K401: 0 | L401: 0 | M401: 0 | N401: 0 | O401: 0 | P401: 0 | Q401: 0
A402: 15:00:00 | B402: 18 | C402: 1 | D402: 43 | E402: 0 | F402: 73 | G402: 94 | H402: 3 | I402: 0 | J402: 6 | K402: 1 | L402: 0 | M402: 0 | N402: 1 | O402: 38 | P402: 9 | Q402: 0
A403: 15:00:00 | B403: 1 | C403: 0 | D403: 2 | E403: 0 | F403: 1 | G403: 1 | H403: 0 | I403: 0 | J403: 0 | K403: 1 | L403: 0 | M403: 0 | N403: 0 | O403: 4 | P403: 1 | Q403: 0
A404: 15:00:00 | B404: 0 | C404: 0 | D404: 0 | E404: 0 | F404: 0 | G404: 0 | H404: 0 | I404: 0 | J404: 0 | K404: 0 | L404: 0 | M404: 0 | N404: 0 | O404: 0 | P404: 0 | Q404: 0
A405: 15:15:00 | B405: 14 | C405: 1 | D405: 30 | E405: 0 | F405: 61 | G405: 79 | H405: 5 | I405: 0 | J405: 2 | K405: 0 | L405: 0 | M405: 0 | N405: 0 | O405: 52 | P405: 7 | Q405: 0
A406: 15:15:00 | B406: 0 | C406: 0 | D406: 2 | E406: 0 | F406: 0 | G406: 2 | H406: 1 | I406: 0 | J406: 0 | K406: 1 | L406: 0 | M406: 0 | N406: 0 | O406: 3 | P406: 0 | Q406: 0
A407: 15:15:00 | B407: 0 | C407: 0 | D407: 0 | E407: 0 | F407: 0 | G407: 0 | H407: 0 | I407: 0 | J407: 0 | K407: 0 | L407: 0 | M407: 0 | N407: 0 | O407: 0 | P407: 0 | Q407: 0
A408: 15:30:00 | B408: 16 | C408: 1 | D408: 32 | E408: 0 | F408: 64 | G408: 107 | H408: 1 | I408: 0 | J408: 1 | K408: 0 | L408: 0 | M408: 0 | N408: 0 | O408: 54 | P408: 10 | Q408: 0
A409: 15:30:00 | B409: 0 | C409: 0 | D409: 4 | E409: 0 | F409: 1 | G409: 3 | H409: 0 | I409: 0 | J409: 0 | K409: 0 | L409: 0 | M409: 0 | N409: 0 | O409: 1 | P409: 3 | Q409: 0
A410: 15:30:00 | B410: 0 | C410: 0 | D410: 0 | E410: 0 | F410: 0 | G410: 0 | H410: 0 | I410: 0 | J410: 0 | K410: 0 | L410: 0 | M410: 0 | N410: 0 | O410: 0 | P410: 0 | Q410: 0
A411: 15:45:00 | B411: 12 | C411: 1 | D411: 32 | E411: 0 | F411: 65 | G411: 94 | H411: 8 | I411: 0 | J411: 4 | K411: 1 | L411: 1 | M411: 0 | N411: 0 | O411: 47 | P411: 17 | Q411: 0
A412: 15:45:00 | B412: 0 | C412: 0 | D412: 0 | E412: 0 | F412: 1 | G412: 1 | H412: 0 | I412: 0 | J412: 0 | K412: 0 | L412: 0 | M412: 0 | N412: 0 | O412: 2 | P412: 1 | Q412: 0
A413: 15:45:00 | B413: 0 | C413: 0 | D413: 0 | E413: 0 | F413: 0 | G413: 0 | H413: 0 | I413: 0 | J413: 0 | K413: 0 | L413: 0 | M413: 0 | N413: 0 | O413: 0 | P413: 0 | Q413: 0
A414: 16:00:00 | B414: 19 | C414: 2 | D414: 49 | E414: 0 | F414: 66 | G414: 104 | H414: 2 | I414: 0 | J414: 5 | K414: 1 | L414: 0 | M414: 0 | N414: 0 | O414: 55 | P414: 15 | Q414: 0
... 23 more rows

Sheet HCS+ for N-S Mainline
A1: Data Formatted for HCS+ Warrants for a North/South Major Street
D2: ='Traffic Count'!T3 -> #1 | G2: ='Traffic Count'!AB3 -> #3 | J2: ='Traffic Count'!AF3 -> #4 | M2: ='Traffic Count'!X3 -> #2
D3: ='Traffic Count'!T4 -> SchusterRd--Southbound | G3: ='Traffic Count'!AB4 -> SchusterRd--Northbound | J3: ='Traffic Count'!AF4 -> S.R. 32--Eastbound | M3: ='Traffic Count'!X4 -> S.R. 32--Westbound
D4: Left | E4: Thru | F4: Right | G4: Left | H4: Thru | I4: Right | J4: Left | K4: Thru | L4: Right | M4: Left | N4: Thru | O4: Right
A5: ='Traffic Count'!S8 -> 06:00:00 | B5: - | C5: =A5+TIME(1,0,0) -> 07:00:00 | D5: ='Traffic Count'!V18 -> 71 | E5: ='Traffic Count'!U18 -> 6 | F5: ='Traffic Count'!T19 -> 14.4 | G5: ='Traffic Count'!AD18 -> 11 | H5: ='Traffic Count'!AC18 -> 19 | I5: ='Traffic Count'!AB19 -> 1.6 | J5: ='Traffic Count'!AH18 -> 60 | K5: ='Traffic Count'!AG18 -> 128 | L5: ='Traffic Count'!AF18 -> 2 | M5: ='Traffic Count'!Z18 -> 0 | N5: ='Traffic Count'!Y18 -> 275 | O5: ='Traffic Count'!X18 -> 31
A6: ='Traffic Count'!S20 -> 07:00:00 | B6: - | C6: =A6+TIME(1,0,0) -> 08:00:00 | D6: ='Traffic Count'!V30 -> 76 | E6: ='Traffic Count'!U30 -> 10 | F6: ='Traffic Count'!T31 -> 60.6 | G6: ='Traffic Count'!AD30 -> 16 | H6: ='Traffic Count'!AC30 -> 33 | I6: ='Traffic Count'!AB31 -> 1.6 | J6: ='Traffic Count'!AH30 -> 90 | K6: ='Traffic Count'!AG30 -> 198 | L6: ='Traffic Count'!AF30 -> 11 | M6: ='Traffic Count'!Z30 -> 2 | N6: ='Traffic Count'!Y30 -> 311 | O6: ='Traffic Count'!X30 -> 30
A7: ='Traffic Count'!S32 -> 08:00:00 | B7: - | C7: =A7+TIME(1,0,0) -> 09:00:00 | D7: ='Traffic Count'!V42 -> 55 | E7: ='Traffic Count'!U42 -> 6 | F7: ='Traffic Count'!T43 -> 13.2 | G7: ='Traffic Count'!AD42 -> 10 | H7: ='Traffic Count'!AC42 -> 13 | I7: ='Traffic Count'!AB43 -> 1.6 | J7: ='Traffic Count'!AH42 -> 29 | K7: ='Traffic Count'!AG42 -> 174 | L7: ='Traffic Count'!AF42 -> 6 | M7: ='Traffic Count'!Z42 -> 0 | N7: ='Traffic Count'!Y42 -> 202 | O7: ='Traffic Count'!X42 -> 8
A8: ='Traffic Count'!S44 -> 09:00:00 | B8: - | C8: 10:00:00 | D8: ='Traffic Count'!V54 -> 44 | E8: ='Traffic Count'!U54 -> 6 | F8: ='Traffic Count'!T55 -> 11.2 | G8: ='Traffic Count'!AD54 -> 5 | H8: ='Traffic Count'!AC54 -> 20 | I8: ='Traffic Count'!AB55 -> 1.6 | J8: ='Traffic Count'!AH54 -> 14 | K8: ='Traffic Count'!AG54 -> 174 | L8: ='Traffic Count'!AF54 -> 4 | M8: ='Traffic Count'!Z54 -> 3 | N8: ='Traffic Count'!Y54 -> 150 | O8: ='Traffic Count'!X54 -> 7
A9: ='Traffic Count'!S56 -> 10:00:00 | B9: - | C9: 11:00:00 | D9: ='Traffic Count'!V66 -> 67 | E9: ='Traffic Count'!U66 -> 9 | F9: ='Traffic Count'!T67 -> 13.6 | G9: ='Traffic Count'!AD66 -> 6 | H9: ='Traffic Count'!AC66 -> 15 | I9: ='Traffic Count'!AB67 -> 1.6 | J9: ='Traffic Count'!AH66 -> 20 | K9: ='Traffic Count'!AG66 -> 171 | L9: ='Traffic Count'!AF66 -> 4 | M9: ='Traffic Count'!Z66 -> 1 | N9: ='Traffic Count'!Y66 -> 155 | O9: ='Traffic Count'!X66 -> 5
A10: ='Traffic Count'!S68 -> 11:00:00 | B10: - | C10: 12:00:00 | D10: ='Traffic Count'!V78 -> 58 | E10: ='Traffic Count'!U78 -> 8 | F10: ='Traffic Count'!T79 -> 10.8 | G10: ='Traffic Count'!AD78 -> 2 | H10: ='Traffic Count'!AC78 -> 15 | I10: ='Traffic Count'!AB79 -> 0 | J10: ='Traffic Count'!AH78 -> 19 | K10: ='Traffic Count'!AG78 -> 177 | L10: ='Traffic Count'!AF78 -> 5 | M10: ='Traffic Count'!Z78 -> 1 | N10: ='Traffic Count'!Y78 -> 149 | O10: ='Traffic Count'!X78 -> 9
A11: ='Traffic Count'!S80 -> 12:00:00 | B11: - | C11: 13:00:00 | D11: ='Traffic Count'!V90 -> 79 | E11: ='Traffic Count'!U90 -> 15 | F11: ='Traffic Count'!T91 -> 13.6 | G11: ='Traffic Count'!AD90 -> 7 | H11: ='Traffic Count'!AC90 -> 10 | I11: ='Traffic Count'!AB91 -> 0 | J11: ='Traffic Count'!AH90 -> 17 | K11: ='Traffic Count'!AG90 -> 141 | L11: ='Traffic Count'!AF90 -> 13 | M11: ='Traffic Count'!Z90 -> 2 | N11: ='Traffic Count'!Y90 -> 154 | O11: ='Traffic Count'!X90 -> 7
A12: ='Traffic Count'!S92 -> 13:00:00 | B12: - | C12: 14:00:00 | D12: ='Traffic Count'!V102 -> 93 | E12: ='Traffic Count'!U102 -> 11 | F12: ='Traffic Count'!T103 -> 11.2 | G12: ='Traffic Count'!AD102 -> 9 | H12: ='Traffic Count'!AC102 -> 13 | I12: ='Traffic Count'!AB103 -> 2.4 | J12: ='Traffic Count'!AH102 -> 45 | K12: ='Traffic Count'!AG102 -> 168 | L12: ='Traffic Count'!AF102 -> 11 | M12: ='Traffic Count'!Z102 -> 2 | N12: ='Traffic Count'!Y102 -> 177 | O12: ='Traffic Count'!X102 -> 17
A13: ='Traffic Count'!S104 -> 14:00:00 | B13: - | C13: 15:00:00 | D13: ='Traffic Count'!V114 -> 161 | E13: ='Traffic Count'!U114 -> 12 | F13: ='Traffic Count'!T115 -> 31.2 | G13: ='Traffic Count'!AD114 -> 15 | H13: ='Traffic Count'!AC114 -> 16 | I13: ='Traffic Count'!AB115 -> 1.6 | J13: ='Traffic Count'!AH114 -> 27 | K13: ='Traffic Count'!AG114 -> 218 | L13: ='Traffic Count'!AF114 -> 16 | M13: ='Traffic Count'!Z114 -> 3 | N13: ='Traffic Count'!Y114 -> 219 | O13: ='Traffic Count'!X114 -> 12
A14: ='Traffic Count'!S116 -> 15:00:00 | B14: - | C14: 16:00:00 | D14: ='Traffic Count'!V126 -> 217 | E14: ='Traffic Count'!U126 -> 24 | F14: ='Traffic Count'!T127 -> 26.4 | G14: ='Traffic Count'!AD126 -> 8 | H14: ='Traffic Count'!AC126 -> 17 | I14: ='Traffic Count'!AB127 -> 3.2 | J14: ='Traffic Count'!AH126 -> 39 | K14: ='Traffic Count'!AG126 -> 241 | L14: ='Traffic Count'!AF126 -> 16 | M14: ='Traffic Count'!Z126 -> 5 | N14: ='Traffic Count'!Y126 -> 196 | O14: ='Traffic Count'!X126 -> 8
A15: ='Traffic Count'!S128 -> 16:00:00 | B15: - | C15: 17:00:00 | D15: ='Traffic Count'!V138 -> 239 | E15: ='Traffic Count'!U138 -> 38 | F15: ='Traffic Count'!T139 -> 29.6 | G15: ='Traffic Count'!AD138 -> 8 | H15: ='Traffic Count'!AC138 -> 19 | I15: ='Traffic Count'!AB139 -> 1.6 | J15: ='Traffic Count'!AH138 -> 26 | K15: ='Traffic Count'!AG138 -> 341 | L15: ='Traffic Count'!AF138 -> 8 | M15: ='Traffic Count'!Z138 -> 1 | N15: ='Traffic Count'!Y138 -> 185 | O15: ='Traffic Count'!X138 -> 7
A16: ='Traffic Count'!S140 -> 17:00:00 | B16: - | C16: 18:00:00 | D16: ='Traffic Count'!V150 -> 229 | E16: ='Traffic Count'!U150 -> 19 | F16: ='Traffic Count'!T151 -> 33.6 | G16: ='Traffic Count'!AD150 -> 6 | H16: ='Traffic Count'!AC150 -> 13 | I16: ='Traffic Count'!AB151 -> 2.4 | J16: ='Traffic Count'!AH150 -> 23 | K16: ='Traffic Count'!AG150 -> 225 | L16: ='Traffic Count'!AF150 -> 21 | M16: ='Traffic Count'!Z150 -> 2 | N16: ='Traffic Count'!Y150 -> 222 | O16: ='Traffic Count'!X150 -> 5

Sheet HCS+ for E-W Mainline
A1: Data Formatted for HCS+ Warrants for an East/West Major Street
D2: ='HCS+ for N-S Mainline'!J2 -> #4 | G2: ='HCS+ for N-S Mainline'!M2 -> #2 | J2: ='HCS+ for N-S Mainline'!G2 -> #3 | M2: ='HCS+ for N-S Mainline'!D2 -> #1
D3: ='Traffic Count'!AF4 -> S.R. 32--Eastbound | G3: ='HCS+ for N-S Mainline'!M3 -> S.R. 32--Westbound | J3: ='HCS+ for N-S Mainline'!G3 -> SchusterRd--Northbound | M3: ='HCS+ for N-S Mainline'!D3 -> SchusterRd--Southbound
D4: ='HCS+ for N-S Mainline'!J4 -> Left | E4: ='HCS+ for N-S Mainline'!K4 -> Thru | F4: ='HCS+ for N-S Mainline'!L4 -> Right | G4: ='HCS+ for N-S Mainline'!M4 -> Left | H4: ='HCS+ for N-S Mainline'!N4 -> Thru | I4: ='HCS+ for N-S Mainline'!O4 -> Right | J4: ='HCS+ for N-S Mainline'!G4 -> Left | K4: ='HCS+ for N-S Mainline'!H4 -> Thru | L4: ='HCS+ for N-S Mainline'!I4 -> Right | M4: ='HCS+ for N-S Mainline'!D4 -> Left | N4: ='HCS+ for N-S Mainline'!E4 -> Thru | O4: ='HCS+ for N-S Mainline'!F4 -> Right
A5: ='Traffic Count'!S8 -> 06:00:00 | B5: - | C5: =A5+TIME(1,0,0) -> 07:00:00 | D5: ='HCS+ for N-S Mainline'!J5 -> 60 | E5: ='HCS+ for N-S Mainline'!K5 -> 128 | F5: ='HCS+ for N-S Mainline'!L5 -> 2 | G5: ='HCS+ for N-S Mainline'!M5 -> 0 | H5: ='HCS+ for N-S Mainline'!N5 -> 275 | I5: ='HCS+ for N-S Mainline'!O5 -> 31 | J5: ='HCS+ for N-S Mainline'!G5 -> 11 | K5: ='HCS+ for N-S Mainline'!H5 -> 19 | L5: ='HCS+ for N-S Mainline'!I5 -> 1.6 | M5: ='HCS+ for N-S Mainline'!D5 -> 71 | N5: ='HCS+ for N-S Mainline'!E5 -> 6 | O5: ='HCS+ for N-S Mainline'!F5 -> 14.4
A6: ='Traffic Count'!S20 -> 07:00:00 | B6: - | C6: =A6+TIME(1,0,0) -> 08:00:00 | D6: ='HCS+ for N-S Mainline'!J6 -> 90 | E6: ='HCS+ for N-S Mainline'!K6 -> 198 | F6: ='HCS+ for N-S Mainline'!L6 -> 11 | G6: ='HCS+ for N-S Mainline'!M6 -> 2 | H6: ='HCS+ for N-S Mainline'!N6 -> 311 | I6: ='HCS+ for N-S Mainline'!O6 -> 30 | J6: ='HCS+ for N-S Mainline'!G6 -> 16 | K6: ='HCS+ for N-S Mainline'!H6 -> 33 | L6: ='HCS+ for N-S Mainline'!I6 -> 1.6 | M6: ='HCS+ for N-S Mainline'!D6 -> 76 | N6: ='HCS+ for N-S Mainline'!E6 -> 10 | O6: ='HCS+ for N-S Mainline'!F6 -> 60.6
A7: ='Traffic Count'!S32 -> 08:00:00 | B7: - | C7: =A7+TIME(1,0,0) -> 09:00:00 | D7: ='HCS+ for N-S Mainline'!J7 -> 29 | E7: ='HCS+ for N-S Mainline'!K7 -> 174 | F7: ='HCS+ for N-S Mainline'!L7 -> 6 | G7: ='HCS+ for N-S Mainline'!M7 -> 0 | H7: ='HCS+ for N-S Mainline'!N7 -> 202 | I7: ='HCS+ for N-S Mainline'!O7 -> 8 | J7: ='HCS+ for N-S Mainline'!G7 -> 10 | K7: ='HCS+ for N-S Mainline'!H7 -> 13 | L7: ='HCS+ for N-S Mainline'!I7 -> 1.6 | M7: ='HCS+ for N-S Mainline'!D7 -> 55 | N7: ='HCS+ for N-S Mainline'!E7 -> 6 | O7: ='HCS+ for N-S Mainline'!F7 -> 13.2
A8: ='Traffic Count'!S44 -> 09:00:00 | B8: - | C8: 10:00:00 | D8: ='HCS+ for N-S Mainline'!J8 -> 14 | E8: ='HCS+ for N-S Mainline'!K8 -> 174 | F8: ='HCS+ for N-S Mainline'!L8 -> 4 | G8: ='HCS+ for N-S Mainline'!M8 -> 3 | H8: ='HCS+ for N-S Mainline'!N8 -> 150 | I8: ='HCS+ for N-S Mainline'!O8 -> 7 | J8: ='HCS+ for N-S Mainline'!G8 -> 5 | K8: ='HCS+ for N-S Mainline'!H8 -> 20 | L8: ='HCS+ for N-S Mainline'!I8 -> 1.6 | M8: ='HCS+ for N-S Mainline'!D8 -> 44 | N8: ='HCS+ for N-S Mainline'!E8 -> 6 | O8: ='HCS+ for N-S Mainline'!F8 -> 11.2
A9: ='Traffic Count'!S56 -> 10:00:00 | B9: - | C9: 11:00:00 | D9: ='HCS+ for N-S Mainline'!J9 -> 20 | E9: ='HCS+ for N-S Mainline'!K9 -> 171 | F9: ='HCS+ for N-S Mainline'!L9 -> 4 | G9: ='HCS+ for N-S Mainline'!M9 -> 1 | H9: ='HCS+ for N-S Mainline'!N9 -> 155 | I9: ='HCS+ for N-S Mainline'!O9 -> 5 | J9: ='HCS+ for N-S Mainline'!G9 -> 6 | K9: ='HCS+ for N-S Mainline'!H9 -> 15 | L9: ='HCS+ for N-S Mainline'!I9 -> 1.6 | M9: ='HCS+ for N-S Mainline'!D9 -> 67 | N9: ='HCS+ for N-S Mainline'!E9 -> 9 | O9: ='HCS+ for N-S Mainline'!F9 -> 13.6
A10: ='Traffic Count'!S68 -> 11:00:00 | B10: - | C10: 12:00:00 | D10: ='HCS+ for N-S Mainline'!J10 -> 19 | E10: ='HCS+ for N-S Mainline'!K10 -> 177 | F10: ='HCS+ for N-S Mainline'!L10 -> 5 | G10: ='HCS+ for N-S Mainline'!M10 -> 1 | H10: ='HCS+ for N-S Mainline'!N10 -> 149 | I10: ='HCS+ for N-S Mainline'!O10 -> 9 | J10: ='HCS+ for N-S Mainline'!G10 -> 2 | K10: ='HCS+ for N-S Mainline'!H10 -> 15 | L10: ='HCS+ for N-S Mainline'!I10 -> 0 | M10: ='HCS+ for N-S Mainline'!D10 -> 58 | N10: ='HCS+ for N-S Mainline'!E10 -> 8 | O10: ='HCS+ for N-S Mainline'!F10 -> 10.8
A11: ='Traffic Count'!S80 -> 12:00:00 | B11: - | C11: 13:00:00 | D11: ='HCS+ for N-S Mainline'!J11 -> 17 | E11: ='HCS+ for N-S Mainline'!K11 -> 141 | F11: ='HCS+ for N-S Mainline'!L11 -> 13 | G11: ='HCS+ for N-S Mainline'!M11 -> 2 | H11: ='HCS+ for N-S Mainline'!N11 -> 154 | I11: ='HCS+ for N-S Mainline'!O11 -> 7 | J11: ='HCS+ for N-S Mainline'!G11 -> 7 | K11: ='HCS+ for N-S Mainline'!H11 -> 10 | L11: ='HCS+ for N-S Mainline'!I11 -> 0 | M11: ='HCS+ for N-S Mainline'!D11 -> 79 | N11: ='HCS+ for N-S Mainline'!E11 -> 15 | O11: ='HCS+ for N-S Mainline'!F11 -> 13.6
A12: ='Traffic Count'!S92 -> 13:00:00 | B12: - | C12: 14:00:00 | D12: ='HCS+ for N-S Mainline'!J12 -> 45 | E12: ='HCS+ for N-S Mainline'!K12 -> 168 | F12: ='HCS+ for N-S Mainline'!L12 -> 11 | G12: ='HCS+ for N-S Mainline'!M12 -> 2 | H12: ='HCS+ for N-S Mainline'!N12 -> 177 | I12: ='HCS+ for N-S Mainline'!O12 -> 17 | J12: ='HCS+ for N-S Mainline'!G12 -> 9 | K12: ='HCS+ for N-S Mainline'!H12 -> 13 | L12: ='HCS+ for N-S Mainline'!I12 -> 2.4 | M12: ='HCS+ for N-S Mainline'!D12 -> 93 | N12: ='HCS+ for N-S Mainline'!E12 -> 11 | O12: ='HCS+ for N-S Mainline'!F12 -> 11.2
A13: ='Traffic Count'!S104 -> 14:00:00 | B13: - | C13: 15:00:00 | D13: ='HCS+ for N-S Mainline'!J13 -> 27 | E13: ='HCS+ for N-S Mainline'!K13 -> 218 | F13: ='HCS+ for N-S Mainline'!L13 -> 16 | G13: ='HCS+ for N-S Mainline'!M13 -> 3 | H13: ='HCS+ for N-S Mainline'!N13 -> 219 | I13: ='HCS+ for N-S Mainline'!O13 -> 12 | J13: ='HCS+ for N-S Mainline'!G13 -> 15 | K13: ='HCS+ for N-S Mainline'!H13 -> 16 | L13: ='HCS+ for N-S Mainline'!I13 -> 1.6 | M13: ='HCS+ for N-S Mainline'!D13 -> 161 | N13: ='HCS+ for N-S Mainline'!E13 -> 12 | O13: ='HCS+ for N-S Mainline'!F13 -> 31.2
A14: ='Traffic Count'!S116 -> 15:00:00 | B14: - | C14: 16:00:00 | D14: ='HCS+ for N-S Mainline'!J14 -> 39 | E14: ='HCS+ for N-S Mainline'!K14 -> 241 | F14: ='HCS+ for N-S Mainline'!L14 -> 16 | G14: ='HCS+ for N-S Mainline'!M14 -> 5 | H14: ='HCS+ for N-S Mainline'!N14 -> 196 | I14: ='HCS+ for N-S Mainline'!O14 -> 8 | J14: ='HCS+ for N-S Mainline'!G14 -> 8 | K14: ='HCS+ for N-S Mainline'!H14 -> 17 | L14: ='HCS+ for N-S Mainline'!I14 -> 3.2 | M14: ='HCS+ for N-S Mainline'!D14 -> 217 | N14: ='HCS+ for N-S Mainline'!E14 -> 24 | O14: ='HCS+ for N-S Mainline'!F14 -> 26.4
A15: ='Traffic Count'!S128 -> 16:00:00 | B15: - | C15: 17:00:00 | D15: ='HCS+ for N-S Mainline'!J15 -> 26 | E15: ='HCS+ for N-S Mainline'!K15 -> 341 | F15: ='HCS+ for N-S Mainline'!L15 -> 8 | G15: ='HCS+ for N-S Mainline'!M15 -> 1 | H15: ='HCS+ for N-S Mainline'!N15 -> 185 | I15: ='HCS+ for N-S Mainline'!O15 -> 7 | J15: ='HCS+ for N-S Mainline'!G15 -> 8 | K15: ='HCS+ for N-S Mainline'!H15 -> 19 | L15: ='HCS+ for N-S Mainline'!I15 -> 1.6 | M15: ='HCS+ for N-S Mainline'!D15 -> 239 | N15: ='HCS+ for N-S Mainline'!E15 -> 38 | O15: ='HCS+ for N-S Mainline'!F15 -> 29.6
A16: ='Traffic Count'!S140 -> 17:00:00 | B16: - | C16: 18:00:00 | D16: ='HCS+ for N-S Mainline'!J16 -> 23 | E16: ='HCS+ for N-S Mainline'!K16 -> 225 | F16: ='HCS+ for N-S Mainline'!L16 -> 21 | G16: ='HCS+ for N-S Mainline'!M16 -> 2 | H16: ='HCS+ for N-S Mainline'!N16 -> 222 | I16: ='HCS+ for N-S Mainline'!O16 -> 5 | J16: ='HCS+ for N-S Mainline'!G16 -> 6 | K16: ='HCS+ for N-S Mainline'!H16 -> 13 | L16: ='HCS+ for N-S Mainline'!I16 -> 2.4 | M16: ='HCS+ for N-S Mainline'!D16 -> 229 | N16: ='HCS+ for N-S Mainline'!E16 -> 19 | O16: ='HCS+ for N-S Mainline'!F16 -> 33.6

Sheet Main Line Reduction Table
A1: 0 | B1: 399 | C1: 0
A2: 400 | B2: 499 | C2: 0.05
A3: 500 | B3: 599 | C3: 0.1
A4: 600 | B4: 699 | C4: 0.15
A5: 700 | B5: 799 | C5: 0.2
A6: 800 | B6: 899 | C6: 0.25
A7: 900 | B7: 999 | C7: 0.3
A8: 1000 | B8: 1099 | C8: 0.35
A9: 1100 | B9: 1199 | C9: 0.4
A10: 1200 | B10: 1299 | C10: 0.45
A11: 1300 | B11: 1399 | C11: 0.5
A12: 1400 | B12: 1499 | C12: 0.55
A13: 1500 | B13: 1599 | C13: 0.6
A14: 1600 | B14: 1699 | C14: 0.65
A15: 1700 | B15: 1799 | C15: 0.7
A16: 1800 | B16: 1899 | C16: 0.75
A17: 1900 | B17: 1999 | C17: 0.8
A18: 2000 | B18: 2099 | C18: 0.85
A19: 2100 | B19: 2199 | C19: 0.9
A20: 2200 | B20: 2299 | C20: 0.95
A21: 2300 | B21: 2399 | C21: 1
A27: North/South
A28: East/West

Sheet Sheet1
